Workbook

Sheet Server10 Lotto3 VRTX
A5: Server10 Lotto3 VRTX | F5: List Price *
F6: =F13*C12 -> 0
A7: Components:
A11: VRTX Chassis | B11: Categoria: BladeServerEnclosure | F11: =10281 -> 10281
B12: Quantity: | F12: =SUM(F16:F142) -> 9
F13: =SUM(F11:F12) -> 10290
B15: Base
B16: PowerEdge VRTX Tower Chassis | C16: 1 | E16: [210-ABCU][800-BBFF]
B17: Tower to Rack Conversion Kit for VRTX Chassis - Kit | C17: 1 | E17: [350-BBDK]
B18: Rack Rails, 3U for VRTX Rack Chassis - Kit | C18: 1 | E18: [770-BBDS]
B20: Configurazione dello chassis
B21: PowerEdge VRTX Tower Configuration for 2.5 inch Hard Drives (max 25) | C21: 1 | E21: [321-BBDI]
B23: Configurazione RAID
B24: Poweredge VRTX 2.5 HD HotPlug Backplane with Dual Controller in Redundant Mode | C24: 1 | E24: [321-BBIQ][780-BBFQ]
B26: Spedizione
B27: VRTX EMEA1 Ship Docs (English/French/German/Spanish/Russian/Hebrew) | C27: 1 | E27: [338-BFFF]
B29: Packaging
B30: Shipping Materials, VRTX Tower Chassis with up to Two Half-Height Server Nodes | C30: 1 | E30: [340-AAWF]
B32: Sistema documentazione
B33: No System Documentation, No OpenManage DVD Kit | C33: 1 | E33: [631-AACK]
B35: Alimentatore
B36: PowerEdge VRTX Redundant Power Supply, 4 x 1100W, (2+2) | C36: 1 | E36: [450-AAYC]
B38: Cavi di alimentazione
B39: Italian Spare Power Cord 220V | C39: 4 | E39: [450-AAYN]
B41: Guide per rack
B42: No Rails | C42: 1 | E42: [770-BBCR]
B44: Unità ottica interna
B45: No Internal Optical Drive | E45: [429-AAIQ][429-AAIS]
B47: Pannello frontale
B48: PowerEdge VRTX Locking Security Bezel | C48: 1 | E48: [350-BBCU]
B50: Chassis Management Controller
B51: Chassis Management Controller Card for PowerEdge VRTX Chassis | C51: 1 | E51: [403-BBCR][405-AABX]
B53: Scheda di rete secondaria per fabric A
B54: PowerEdge VRTX 1Gb Switch Module, Internal 16 ports to External 8 ports | C54: 1 | E54: [540-BBCP]
B56: Dischi rigidi (max 25)
B57: 300GB 10K RPM SAS 12Gbps 2.5in Hot-plug Hard Drive | C57: 2 | E57: [400-AJQC]
B59: 300GB 10K RPM SAS 12Gbps 2.5in Hot-plug Hard Drive - Kit | D59: =VLOOKUP($B$59, HDD_C,3, FALSE) -> 10L3-HDD300GB-DELL | E59: =VLOOKUP($B$59, HDD_C,5, FALSE) -> [400-AJQC] | F59: =VLOOKUP($B$59, HDD_C,6, FALSE)*C59 -> 0
B61: 1.2TB 10K RPM SAS 12Gbps 2.5in Hot-plug Hard Drive - Kit | D61: =VLOOKUP($B$61, HDD_C,3, FALSE) -> 10L3-HDD1TB-DELL | E61: =VLOOKUP($B$61, HDD_C,5, FALSE) -> [400-AJPX] | F61: =VLOOKUP($B$61, HDD_C,6, FALSE)*C61 -> 0
B63: Alimentatore
B64: PowerEdge VRTX Redundant Power Supply, 4 x 1600W, (2+2) | C64: 1 | E64: [450-AEJX]
B66: Cavi di alimentazione
B67: Italian Spare Power Cord 220V | C67: 4 | E67: [450-AAYN]
B69: Additional Card for PCIe Slot 1 (Full height)
B70: None | C70: =VLOOKUP($B$70, PCI_C1, 2, FALSE) ->  | D70: =VLOOKUP($B$70, PCI_C1, 3, FALSE) ->  | E70: =VLOOKUP($B$70, PCI_C1, 5, FALSE) ->  | F70: =VLOOKUP($B$70, PCI_C1, 6, FALSE) -> 
B72: Additional Card for PCIe Slot 2 (Full height)
B73: None | C73: =VLOOKUP($B$73, PCI_C2, 2, FALSE) ->  | D73: =VLOOKUP($B$73, PCI_C2, 3, FALSE) ->  | E73: =VLOOKUP($B$73, PCI_C2, 5, FALSE) ->  | F73: =VLOOKUP($B$73, PCI_C2, 6, FALSE) -> 
B75: Additional Card for PCIe Slot 3 (Full height)
B76: None | C76: =VLOOKUP($B$76, PCI_C3, 2, FALSE) ->  | D76: =VLOOKUP($B$76, PCI_C3, 3, FALSE) ->  | E76: =VLOOKUP($B$76, PCI_C3, 5, FALSE) ->  | F76: =VLOOKUP($B$76, PCI_C3, 6, FALSE) -> 
B78: Additional Card for PCIe Slot 4 (Low Profile)
B79: None | C79: =VLOOKUP($B$79, PCI_C4, 2, FALSE) ->  | D79: =VLOOKUP($B$79, PCI_C4, 3, FALSE) ->  | E79: =VLOOKUP($B$79, PCI_C4, 5, FALSE) ->  | F79: =VLOOKUP($B$79, PCI_C4, 6, FALSE) -> 
B81: Additional Card for PCIe Slot 5 (Low Profile)
B82: None | C82: =VLOOKUP($B$82, PCI_C5, 2, FALSE) ->  | D82: =VLOOKUP($B$82, PCI_C5, 3, FALSE) ->  | E82: =VLOOKUP($B$82, PCI_C5, 5, FALSE) ->  | F82: =VLOOKUP($B$82, PCI_C5, 6, FALSE) -> 
B84: Additional Card for PCIe Slot 6 (Low Profile)
B85: None | C85: =VLOOKUP($B$85, PCI_C6, 2, FALSE) ->  | D85: =VLOOKUP($B$85, PCI_C6, 3, FALSE) ->  | E85: =VLOOKUP($B$85, PCI_C6, 5, FALSE) ->  | F85: =VLOOKUP($B$85, PCI_C6, 6, FALSE) -> 
B87: Additional Card for PCIe Slot 7 (Low Profile)
B88: None | C88: =VLOOKUP($B$88, PCI_C5, 2, FALSE) ->  | D88: =VLOOKUP($B$88, PCI_C5, 3, FALSE) ->  | E88: =VLOOKUP($B$88, PCI_C5, 5, FALSE) ->  | F88: =VLOOKUP($B$88, PCI_C5, 6, FALSE) -> 
B90: Additional Card for PCIe Slot 8 (Low Profile)
B91: None | C91: =VLOOKUP($B$91, PCI_C6, 2, FALSE) ->  | D91: =VLOOKUP($B$91, PCI_C6, 3, FALSE) ->  | E91: =VLOOKUP($B$91, PCI_C6, 5, FALSE) ->  | F91: =VLOOKUP($B$91, PCI_C6, 6, FALSE) -> 
A94: PowerEdge M630 per VRTX Chassies | B94: Categoria: Blade | F94: 2
B95: Quantity: | C95: 2 | F95: 3
F96: 4
B97: Base
B98: PowerEdge M630 Motherboard MLK | C98: 1 | E98: [210-ACZY][329-BCZJ][330-BBBG][340-AFBP][340-ANUJ][461-AACZ][634-BBLZ][750-AACQ][750-AACR][750-AACS][750-AACT][750-AACU]
B100: Configurazione dello chassis
B101: 2.5" Backplane with up to 2 Hard Drives and PERC RAID Controller | C101: 1 | E101: [406-BBEO]
B103: Raffreddamento
B104: Standard Cooling | C104: 1 | E104: [384-BBDP]
B106: Processore
B107: Intel Xeon E5-2620 v4 2.1GHz,20M Cache,8.0GT/s QPI,Turbo,HT,8C/16T (85W) Max Mem 2133MHz | C107: 1 | E107: [338-BJCZ]
B109: Processore aggiuntivo
B110: No Additional Processor | C110: =VLOOKUP($B$110, CPU_C, 2, FALSE) -> 0 | D110: =VLOOKUP($B$110, CPU_C, 3, FALSE) ->  | E110: =VLOOKUP($B$110, CPU_C, 5, FALSE) -> [374-BBBX] | F110: =VLOOKUP(B110, CPU_C, 12, FALSE) -> 
B112: Tipo di configurazione memoria
B113: Performance Optimized | C113: 1 | E113: [370-AAIP]
B115: Memoria Totale in GB per singolo Blade | D115: =IF(('Server10 Lotto3 VRTX'!$D$8=0),"",'Server10 Lotto3 VRTX'!#REF!) -> 
B116: 32
B118: Tipo e velocità della memoria DIMM
B119: 2400MT/s RDIMMs | C119: 1 | E119: [370-ACPH]
B121: Capacità di memoria
B122: =IF($B$110="No Additional Processor",VLOOKUP($B$116, MEM_C1, 8, FALSE),VLOOKUP($B$116, MEM_C2, 8, FALSE)) -> 16GB RDIMM, 2400MT/s, Dual Rank, x8 Data Width | C122: =IF($B$110="No Additional Processor",VLOOKUP($B$116, MEM_C1, 9, FALSE),VLOOKUP($B$116, MEM_C2, 9, FALSE)) -> 2 | E122: =IF($B$110="No Additional Processor",VLOOKUP($B$116, MEM_C1, 10, FALSE),VLOOKUP($B$116, MEM_C2, 10, FALSE)) -> [370-ACNX]
B124: =IF($B$110="No Additional Processor",VLOOKUP($B$116, MEM_C1, 2, FALSE),VLOOKUP($B$116, MEM_C2, 2, FALSE)) ->  | C124: =IF($B$110="No Additional Processor",VLOOKUP($B$116, MEM_C1, 3, FALSE),VLOOKUP($B$116, MEM_C2, 3, FALSE)) ->  | D124: =IF($B$110="No Additional Processor",VLOOKUP($B$116, MEM_C1, 4, FALSE),VLOOKUP($B$116, MEM_C2, 4, FALSE)) ->  | E124: =IF($B$110="No Additional Processor",VLOOKUP($B$116, MEM_C1, 6, FALSE),VLOOKUP($B$116, MEM_C2, 6, FALSE)) ->  | F124: =IF($B$110="No Additional Processor",VLOOKUP($B$116, MEM_C1, 7, FALSE),VLOOKUP($B$116, MEM_C2, 7, FALSE)) -> 
B126: =IF($B$110="No Additional Processor",VLOOKUP($B$116, MEM_C1, 11, FALSE),VLOOKUP($B$116, MEM_C2, 11, FALSE)) ->  | C126: =IF($B$110="No Additional Processor",VLOOKUP($B$116, MEM_C1, 12, FALSE),VLOOKUP($B$116, MEM_C2, 12, FALSE)) ->  | D126: =IF($B$110="No Additional Processor",VLOOKUP($B$116, MEM_C1, 13, FALSE),VLOOKUP($B$116, MEM_C2, 13, FALSE)) ->  | E126: =IF($B$110="No Additional Processor",VLOOKUP($B$116, MEM_C1, 15, FALSE),VLOOKUP($B$116, MEM_C2, 15, FALSE)) ->  | F126: =IF($B$110="No Additional Processor",VLOOKUP($B$116, MEM_C1, 16, FALSE),VLOOKUP($B$116, MEM_C2, 16, FALSE)) -> 
B128: Sistema operativo preinstallato
B129: Windows Server 2012 R2, Standard Edition, Factory Installed, No Media, 2 Socket, 2 VMs | C129: 1 | E129: [618-BBDS]
B131: Kit supporti sistema operativo
B132: Windows Server 2012 R2, Standard Edition, Media Kit | C132: 1 | E132: [618-BBDF]
B134: Controller RAID
B135: H330 Controller | C135: 1 | E135: [405-AAED]
B137: Dischi rigidi
B138: 300GB 10K RPM SAS 12Gbps 2.5in Hot-plug Hard Drive | C138: 2 | E138: [400-AJQC]
B140: RAID Configuration
B141: C3 - RAID 1 for H330/H730/H730P (2 HDDs, SAS/SATA/SSD) | C141: 1 | E141: [780-BBLW]

Sheet Server10 Lotto1 R630 (hidden)
A5: Server10 Lotto1 R630 | H5: List Price *
H6: =F17*C16 -> 0
A11: Components: Server DELL PowerEdge R630 (1CPU Intel® Xeon® E5-2650 v3, 32GB RDIMM, 2xHDD 300GB 10K RPM SAS 12Gbps 2.5in)
A15: PowerEdge R630 | B15: Category: Server | F15: =1806 -> 1806
B16: Quantity: | F16: =SUM(F20:F145) -> 0
F17: =SUM(F15:F16) -> 1806
B19: Base
B20: PowerEdge R630 Server, 8HDD, TPM | C20: 1 | E20: [210-ACXS][329-BCIY][461-AACZ]
B22: Chassis Configuration
B23: Chassis with up to 8, 2.5" Hard Drives, up to 2 PCIe Slots (With Optional Riser) | C23: 1 | E23: [321-BBKJ]
B25: Processor
B26: Intel® Xeon® E5-2650 v3 2.3GHz,25M Cache,9.60GT/s QPI,Turbo,HT,10C/20T (105W) Max Mem 2133MHz | C26: 1 | E26: [338-BFFF]
B28: Additional Processor
B29: No Additional Processor | C29: =VLOOKUP($B$29, CPU_A, 2, FALSE) -> 0 | D29: =VLOOKUP($B$29, CPU_A, 3, FALSE) ->  | E29: =VLOOKUP($B$29, CPU_A, 5, FALSE) -> [374-BBBX] | F29: =VLOOKUP(B29, CPU_A, 12, FALSE) -> 
B31: Processor Thermal Configuration
B32: 1 CPU up to 120W | C32: 1 | E32: [370-ABWN][412-AAEE]
B33: =VLOOKUP($B$29, CPU_A, 6, FALSE) ->  | C33: =VLOOKUP($B$29, CPU_A, 7, FALSE) ->  | E33: =VLOOKUP($B$29, CPU_A, 8, FALSE) -> 
B35: Memory Configuration Type
B36: Performance Optimized | C36: 1 | E36: [370-AAIP]
B38: Total Memory in GB | D38: =IF(('Server10 Lotto1 R630'!$D$12=0),"",'Server10 Lotto1 R630'!#REF!) -> 
B39: 32
B41: Memory DIMM Type and Speed
B42: 2133MT/s RDIMMs | C42: 1 | E42: [370-ABUF]
B44: Memory Capacity
B45: =IF($B$29="No Additional Processor",VLOOKUP($B$39, MEM_A1, 8, FALSE),VLOOKUP($B$39, MEM_A2, 8, FALSE)) -> 16GB RDIMM, 2133MT/s, Dual Rank, x4 Data Width | C45: =IF($B$29="No Additional Processor",VLOOKUP($B$39, MEM_A1, 9, FALSE),VLOOKUP($B$39, MEM_A2, 9, FALSE)) -> 2 | E45: =IF($B$29="No Additional Processor",VLOOKUP($B$39, MEM_A1, 10, FALSE),VLOOKUP($B$39, MEM_A2, 10, FALSE)) -> [370-ABUG]
B47: =IF($B$29="No Additional Processor",VLOOKUP($B$39, MEM_A1, 2, FALSE),VLOOKUP($B$39, MEM_A2, 2, FALSE)) ->  | C47: =IF($B$29="No Additional Processor",VLOOKUP($B$39, MEM_A1, 3, FALSE),VLOOKUP($B$39, MEM_A2, 3, FALSE)) ->  | D47: =IF($B$29="No Additional Processor",VLOOKUP($B$39, MEM_A1, 4, FALSE),VLOOKUP($B$39, MEM_A2, 4, FALSE)) ->  | E47: =IF($B$29="No Additional Processor",VLOOKUP($B$39, MEM_A1, 6, FALSE),VLOOKUP($B$39, MEM_A2, 6, FALSE)) ->  | F47: =IF($B$29="No Additional Processor",VLOOKUP($B$39, MEM_A1, 7, FALSE),VLOOKUP($B$39, MEM_A2, 7, FALSE)) -> 
B49: =IF($B$29="No Additional Processor",VLOOKUP($B$39, MEM_A1, 11, FALSE),VLOOKUP($B$39, MEM_A2, 11, FALSE)) ->  | C49: =IF($B$29="No Additional Processor",VLOOKUP($B$39, MEM_A1, 12, FALSE),VLOOKUP($B$39, MEM_A2, 12, FALSE)) ->  | D49: =IF($B$29="No Additional Processor",VLOOKUP($B$39, MEM_A1, 13, FALSE),VLOOKUP($B$39, MEM_A2, 13, FALSE)) ->  | E49: =IF($B$29="No Additional Processor",VLOOKUP($B$39, MEM_A1, 15, FALSE),VLOOKUP($B$39, MEM_A2, 15, FALSE)) ->  | F49: =IF($B$29="No Additional Processor",VLOOKUP($B$39, MEM_A1, 16, FALSE),VLOOKUP($B$39, MEM_A2, 16, FALSE)) -> 
B51: Operating System
B52: No Operating System | C52: =VLOOKUP($B$52, OS_A, 2, FALSE) ->  | D52: =VLOOKUP($B$52, OS_A, 3, FALSE) ->  | E52: =VLOOKUP($B$52, OS_A, 5, FALSE) -> [611-BBBF] | F52: =VLOOKUP($B$52, OS_A, 6, FALSE) -> 
B54: OS Media Kits
B55: No Media Required | C55: 1 | E55: [605-BBFN]
B57: Client Access Licenses
B58: =VLOOKUP($B$52, OS_A, 7, FALSE) -> None | D58: =VLOOKUP($B$52, OS_A, 9, FALSE) ->  | E58: =VLOOKUP($B$52, OS_A, 11, FALSE) ->  | F58: =VLOOKUP($B$52, OS_A, 12, FALSE)*C58 -> 0
B60: =VLOOKUP($B$52, OS_A, 13, FALSE) -> None | D60: =VLOOKUP($B$52, OS_A, 15, FALSE) ->  | E60: =VLOOKUP($B$52, OS_A, 17, FALSE) ->  | F60: =VLOOKUP($B$52, OS_A, 18, FALSE)*C60 -> 0
B62: RAID Controller
B63: PERC H330 RAID Controller | C63: 1 | E63: [405-AAEF]
B65: Hard Drives
B66: 300GB 10K RPM SAS 12Gbps 2.5in Hot-plug Hard Drive | C66: 2 | E66: [400-AJPK]
B68: 300GB 10K RPM SAS 12Gbps 2.5in Hot-plug Hard Drive,CusKit | D68: =VLOOKUP($B$68, HDD_A,3, FALSE) -> 10L1-HDD300GB | E68: =VLOOKUP($B$68, HDD_A,5, FALSE) -> [400-AJOQ] | F68: =VLOOKUP($B$68, HDD_A,6, FALSE)*C68 -> 0
B70: 1TB 7.2K RPM NLSAS 6Gbps 2.5in Hot-plug Hard Drive,13G,CusKit | D70: =VLOOKUP($B$70, HDD_A,3, FALSE) -> 10L1-HDD1TB | E70: =VLOOKUP($B$70, HDD_A,5, FALSE) -> [400-AEFF] | F70: =VLOOKUP($B$70, HDD_A,6, FALSE)*C70 -> 0
B72: RAID Configuration HDD 300GB
B73: C3 - RAID 1 for H330 (2 HDDs) | C73: 1 | E73: =VLOOKUP($B$73, RAID_A1, 2, FALSE) -> [780-BBJK]
B74: Hot Spare for 300GB HDD | C74: No
B76: RAID Configuration HDD 1TB
C77: 1 | E77: =VLOOKUP($B$77, RAID_A2, 2, FALSE) -> 
B78: Hot Spare for 1TB HDD | C78: No
B80: Power Management BIOS Settings
B81: Performance BIOS Setting | C81: 1 | E81: [384-BBBL]
B83: Power Supply
B84: Dual, Hot-plug, Redundant Power Supply (1+1), 750W, Titanium, 200-240VAC | C84: 1 | E84: [450-ADWT]
B86: Power Cords
B87: Rack Power Cord 2M (C13/C14 12A) | C87: 2 | E87: [450-AADY]
B89: PCIe Riser
B90: =VLOOKUP(B29, CPU_A, 9, FALSE) -> Riser with up to 1, x8 PCIe Slots + 1, x16 PCIe Slots for x8, 2 PCIe Chassis with 1 Processor | C90: =VLOOKUP($B$29, CPU_A, 10, FALSE) -> 1 | E90: =VLOOKUP($B$29, CPU_A, 11, FALSE) -> [330-BBCS]
B92: Embedded Systems Management
B93: iDrac8, Enterprise | C93: 1 | E93: [385-BBHO]
B95: Network Daughter Card
B96: Broadcom 5720 QP 1Gb Network Daughter Card | C96: 1 | E96: [540-BBBW]
B98: Additional Card for PCIe Slot 1 (Low Profile)
B99: None | C99: =VLOOKUP($B$99, PCI_A1, 2, FALSE) ->  | D99: =VLOOKUP($B$99, PCI_A1, 3, FALSE) ->  | E99: =VLOOKUP($B$99, PCI_A1, 5, FALSE) ->  | F99: =VLOOKUP($B$99, PCI_A1, 6, FALSE) -> 
B101: Additional Card for PCIe Slot 2 (Full height)
B102: None | C102: =VLOOKUP($B$102, PCI_A2, 2, FALSE) ->  | D102: =VLOOKUP($B$102, PCI_A2, 3, FALSE) ->  | E102: =VLOOKUP($B$102, PCI_A2, 5, FALSE) ->  | F102: =VLOOKUP($B$102, PCI_A2, 6, FALSE) -> 
B104: Bezel
B105: Bezel 8 Drive Chassis | C105: 1 | E105: [325-BBII]
B107: Rack Rails
B108: ReadyRails™ Sliding Rails Without Cable Management Arm | C108: 1 | E108: [770-BBBC]
B110: Internal Optical Drive
B111: No Internal Optical Drive for 8 HDD Chassis | C111: 1 | E111: [429-AAQN]
B113: Server Accessories
B114: PowerEdge SFP+, 10GbE SR/SX, Optical Tranceiver, LC Connector, for Intel and Broadcom,CusKit | C114: =(VLOOKUP(B102,PCI_A2,8,FALSE))+((VLOOKUP(B99,PCI_A1,8,FALSE))) -> 0 | E114: [407-BBQE]
B116: System Documentation
B117: Electronic System Documentation and OpenManage DVD Kit | C117: 1 | E117: [343-BBDK]
B119: SHIPPING
B120: R630 Shipping - 8 Drive Chassis, EMEA1 (English/French/German/Spanish/Russian/Hebrew) | C120: 1 | E120: [340-AMIN]
B122: Order Information
B123: PowerEdge Order - EMEA | C123: 1 | E123: [800-11671]
B125: Base warranty
B126: 3Yr Basic Warranty - Next Business Day - Minimum Warranty | C126: 1 | E126: [709-12767][709-12768]
B128: Servizi di assitenza
B129: Dell Channel Order - Service Info only | C129: 1 | E129: [710-31085]
B131: Warranty Upgrades
B132: None | C132: =VLOOKUP($B$132, SO_A1, 2, FALSE) ->  | D132: =VLOOKUP($B$132, SO_A1, 3, FALSE) ->  | E132: =VLOOKUP($B$132, SO_A1, 5, FALSE) ->  | F132: =VLOOKUP($B$132, SO_A1, 6, FALSE) -> 
B134: Protezione dei dati - Keep Your Hard Drive
B135: None | C135: =VLOOKUP($B$135, SO_A2, 2, FALSE) ->  | D135: =VLOOKUP($B$135, SO_A2, 3, FALSE) ->  | E135: =VLOOKUP($B$135, SO_A2,5, FALSE) ->  | F135: =VLOOKUP($B$135, SO_A2, 6, FALSE) -> 
B137: Servizi di Installazione
B138: No Installation Service Selected | C138: 1 | E138: [683-11870]
B140: Channel only - Support Extension
B141: Channel 39M Basic Warranty - Next Business Day | C141: 1 | E141: [723-28776]
B143: Warranty Upgrades - Non-Std/Local POS
B144: CSTM CONSIP - 39M Onsite Labor Support for CRU for Servers with Basic Warranty | C144: 1 | E144: [681-24467]

Sheet Server10 Lotto3 HP CS250
A5: Server10 Lotto3 CS250-HC | H5: List Price *
H6: =F17*C16 -> 0
A11: Components: HP ConvergedSystem 250-HC StoreVirtual System
A15: ConvergedSystem 250-HC | B15: Category: Server | F15: =75694 -> 75694
B16: Quantity: | F16: =SUM(F20:F62)*4 -> 0
F17: =SUM(F15:F16) -> 75694
B19: Base
B20: HPE HC 250 System for VMware vSphere Sys | C20: 1 | E20: M0T03A
B22: Configurazione dello chassis
B23: HPE Hyper Converged 250 Node | C23: 4 | E23: M0T04A
B25: Processori per singolo Nodo
B26: HPE XL1x0r Gen9 E5-2640v4 Kit | C26: 1 | E26: 793016-L21
B27: HPE XL1x0r Gen9 E5-2640v4 FIO Kit | C27: 1 | E27: 793016-B21
B29: Additional Processor
B30: No Additional Processor | C30: =VLOOKUP($B$30, CPU_B, 2, FALSE) -> 0 | D30: =VLOOKUP($B$30, CPU_B, 3, FALSE) ->  | F30: =VLOOKUP(B30, CPU_B, 12, FALSE) -> 
B32: Processor Thermal Configuration
B33: 1 CPU Standard | C33: 1 | E33: [370-ABWF][374-BBHM][750-AAEL]
B34: =VLOOKUP($B$30, CPU_B, 6, FALSE) ->  | C34: =VLOOKUP($B$30, CPU_B, 7, FALSE) ->  | E34: =VLOOKUP($B$30, CPU_B, 8, FALSE) -> 
B36: Memory Configuration Type
B37: Performance Optimized | C37: 1 | E37: [370-AAIP]
B39: Memoria Totale in GB per singolo Nodo | D39: =IF(('Server10 Lotto3 HP CS250'!$D$12=0),"",'Server10 Lotto3 HP CS250'!#REF!) -> 
B40: 192
B42: Capacità di memoria
B43: =IF($B$30="No Additional Processor",VLOOKUP($B$40, MEM_B1, 8, FALSE),VLOOKUP($B$40, MEM_B2, 8, FALSE)) -> HPE 32GB 2Rx4 PC4-2400T-R Kit | C43: 6 | E43: =IF($B$30="No Additional Processor",VLOOKUP($B$40, MEM_B1, 10, FALSE),VLOOKUP($B$40, MEM_B2, 10, FALSE)) -> 728629-B21
B45: =IF($B$30="No Additional Processor",VLOOKUP($B$40, MEM_B1, 2, FALSE),VLOOKUP($B$40, MEM_B2, 2, FALSE)) ->  | C45: =IF($B$30="No Additional Processor",VLOOKUP($B$40, MEM_B1, 3, FALSE),VLOOKUP($B$40, MEM_B2, 3, FALSE)) ->  | D45: =IF($B$30="No Additional Processor",VLOOKUP($B$40, MEM_B1, 4, FALSE),VLOOKUP($B$40, MEM_B2, 4, FALSE)) ->  | E45: =IF($B$30="No Additional Processor",VLOOKUP($B$40, MEM_B1, 6, FALSE),VLOOKUP($B$40, MEM_B2, 6, FALSE)) ->  | F45: =IF($B$30="No Additional Processor",VLOOKUP($B$40, MEM_B1, 7, FALSE),VLOOKUP($B$40, MEM_B2, 7, FALSE)) -> 
B47: Dischi rigidi per singolo Nodo
B48: HP 480GB 6G SATA MU-3 SFF SC SSD | C48: 2 | E48: 717971-B21
B50: HP 1.2TB 12G SAS 10K 2.5in SC ENT HDD | C50: 3 | E50: 781518-B21
B52: None | C52: =VLOOKUP($B$52, HDD_B,4, FALSE) -> 0 | D52: =VLOOKUP($B$52, HDD_B,3, FALSE) ->  | E52: =VLOOKUP($B$52, HDD_B,5, FALSE) ->  | F52: =VLOOKUP($B$52, HDD_B,6, FALSE)*C52 -> 0
B54: Servizi di Installazione
B55: No Installation Service Selected | C55: 1 | E55: [683-11870]
B57: Channel only - Support Extension
B58: Channel 39M Basic Warranty - Next Business Day | C58: 1 | E58: [723-28780]
B60: Warranty Upgrades - Non-Std/Local POS
B61: CSTM CONSIP - 39M Onsite Labor Support for CRU for Servers with Basic Warranty | C61: 1 | E61: [681-24467]
B63: Sistema operativo preinstallato
B64: HPE HC 250 SW LTU for VMware vSphere 6.0 | C64: 4 | E64: M0T20A
B65: VMw vSphere EntPlus 1P 3yr SW | C65: 8 | E65: BD715A
B66: VMw vCenter Server Std for vSph 3yr SW | C66: 1 | E66: BD725A

Sheet RACK, Accessori e Servizi
D1: Indicare il numero delle Opzioni
M3: SERVIZI
C4: =IF(SRV_A+SRV_B+SRV_C>=1,"Servizi Specialistici","") -> 
C5: =IF(SRV_A+SRV_B+SRV_C>=1,"Servizio Specialistico di creazione, configurazione e installazione fino a 5 VM","") ->  | K5: =IF(J5>=1,"10L3-SO-AVV","") -> 
C7: =IF(SRV_A+SRV_B+SRV_C>=1,"Servizio Specialistico di migrazione da server fisico a virtuale fino a 5 VM","") ->  | K7: =IF(J7>=1,"10L3-SO-MIG","") -> 
M10: Solo per CS250-HC
C11: =IF(SRV_B>=1,"HP 5130-24G-4SFP+ EI Switch include: 4 x HP X240 10G SFP+ SFP+ 3m DAC Cable","") ->  | K11: =IF(J11>=1,"10L3-SWITCH","") -> 
N14: In questo foglio deve essere indicata la quantità delle opzioni Hardware e dei Servizi da acquistare. Di seguito è possibile configurare fino a 10 tipologie di armadio Rack a seconda della tipologia e del numero di Server inseriti al suo interno.
C15: =IF(SRV_C+SRV_B>=1,"Rack (OpzRack)","") -> 
C16: =IF(SRV_C+SRV_B>=1,"Tecnosteel: armadio Rack 19'' 42U ''Tecno SuperServer''","") ->  | K16: =IF(J16>=1,"10L3-RACK","") -> 
C18: =IF(SRV_C+SRV_B>=1,"KVM (OpzGUIRack)","") -> 
C19: =IF(SRV_C+SRV_B>=1,"Tecnosteel: OneView 1U Rackmount Console 17'' with Italian Keyboard","") ->  | K19: =IF(J19>=1,"10L3-GUI","") -> 
C21: =IF(SRV_C+SRV_B>=1,"KVM Option (OpzSWGUIRack)","") -> 
C22: =IF(SRV_C+SRV_B>=1,"Tecnosteel: 8-port remote KVM switch with one remote user","") ->  | K22: =IF(J22>=1,"10L3-KVMIP","") -> 
C24: =IF(SRV_C+SRV_B>=1,"Uninterrupted Power Supply (OpzUPS 3000VA)","") -> 
C25: =IF(SRV_C+SRV_B>=1,"Riello - UPS MSR3000EVO 3000VA 2U Rackmount (SNMP+USB+RS232)","") ->  | K25: =IF(J25>=1,"10L3-UPS","") -> 
D28: Totale-
D29: RACK A | E29: RACK B | F29: RACK C | G29: RACK D | H29: RACK E | I29: RACK F | J29: RACK G | K29: RACK H | L29: RACK I | M29: RACK J
C30: =J16 -> 0 | D30: =IF(H50>0,IF(C30-H50=0,0,C30-H50),0) -> 0 | E30: =IF(I50>0,IF(D30-I50=0,0,D30-I50),0) -> 0 | F30: 0 | G30: 0 | H30: 0 | I30: 0 | J30: 0 | K30: 0 | L30: 0 | M30: 0
D33: Server Modello 1 | G33: =SRV_C -> 0
D34: Server Modello 2 | G34: =SRV_AA -> 0
D35: Server Modello 3 | G35: =SRV_AAA -> 0
D36: Server Modello 4 | G36: =SRV_B -> 0
D37: Server Modello 5 | G37: =SRV_BB -> 0
D38: Server Modello 6 | G38: =J11 -> 0
H40: =SUM(H4:H11)+H13+H64*2+H66*2 -> 0 | I40: 0 | J40: 0 | K40: 0 | L40: 0 | M40: 0 | N40: 0 | O40: 0 | P40: 0 | Q40: 0
C48: Rack ancora da configurare | F48: =J16-H50-I50-J50-K50-L50-M50-N50-O50-P50-Q50 -> 0
C50: Indicare il numero di rack per questa configurazione
E52: Totali | F52: da inserire | H52: =IF(C30>0,D29,"") ->  | I52: =IF(D30>0,E29,"") -> 
C54: DELL PowerEdge VRTX | E54: =G33 -> 0 | F54: =(E54-(H54*$H$50)-(I54*$I$50)-(J54*$J$50)-(K54*$K$50)-(L54*$L$50)-(M54*$M$50)-(N54*$N$50)-(O54*$O$50)-(P54*$P$50)-(Q54*$Q$50)) -> 0
C55: =IF(G36>0,"HP CS250-HC","") ->  | E55: =G36 -> 0 | F55: =(E55-(H55*$H$50)-(I55*$I$50)-(J55*$J$50)-(K55*$K$50)-(L55*$L$50)-(M55*$M$50)-(N55*$N$50)-(O55*$O$50)-(P55*$P$50)-(Q55*$Q$50)) -> 0
C56: =IF(G38>0,"Switch di rete","") ->  | E56: =J11 -> 0 | F56: 0
C58: =IF(J19>0,"OpzGUIRack Disponibili"," ") ->  | E58: =J19 -> 0 | F58: =J19-H58*H50-I58*I50-J58*J50-K58*K50-L58*L50-M58*M50-N58*N50-O58*O50-P58*P50-Q58*Q50 -> 0
C60: =IF(J22>0,"OpzSWGUIRack Disponibili"," ") ->  | E60: =J22 -> 0 | F60: =J22-H60*H50-I60*I50-J60*J50-K60*K50-L60*L50-M60*M50-N60*N50-O60*O50-P60*P50-Q60*Q50 -> 0
C62: =IF(J25>0,"OpzUPS 3000VA Disponibili"," ") ->  | E62: =J25 -> 0 | F62: =J25-H62*H50-I62*I50-J62*J50-K62*K50-L62*L50-M62*M50-N62*N50-O62*O50-P62*P50-Q62*Q50 -> 0

Sheet Riepilogo
B1: Amministrazione | R1: CONFIGURATORE ELETTRONICO CONVENZIONE CONSIP SERVER 10 LOTTO 3 | V1: 1
B2: N° Identificativo Ordine | I2: =IF(G4=R46,"Configurazione OK",U4) -> Nel "Tot Ordine Portale CONSIP" deve essere inserito l'importo totale risultante dall'ordinativo del portale CONSIP. Qualora l'importo inserito corrisponde al valore ricalcolato dal configuratore viene attivato il pulsante "Salva in formato PDF" che permette di generare il file pdf da allegare all'ordinativo. | V2: 1
B3: Data Ordine | V3: 1
B4: Tot Ordine Portale CONSIP IVA incl. | G4: x | U4: Nel "Tot Ordine Portale CONSIP" deve essere inserito l'importo totale risultante dall'ordinativo del portale CONSIP. Qualora l'importo inserito corrisponde al valore ricalcolato dal configuratore viene attivato il pulsante "Salva in formato PDF" che permette di generare il file pdf da allegare all'ordinativo. | V4: 1
B5: LE CELLE IN GIALLO DEVO ESSERE COMPILATE OBBLIGATORIAMENTE | V5: 1
B6: Quantità Server Ordinati | G6: =IF(B31="",0,B31)+IF(B15="",0,B15) -> 0 | T6: ver. 4.1 | V6: 1
V7: 1
B8: Referente per la Consegna | J8: Telefono | P8: email | V8: 1
V9: 1
B10: Referente per l'installazione | J10: Telefono | P10: email | V10: 1
V11: 1
B12: ATTENZIONE: I CODICI PRODOTTO DELL'ORDINE CONSIP DEVONO ESSERE SPECULARI A QUELLI GENERATI DAL CONFIGURATORE. | V12: 1
B13: Qtà Totale Ordinata | C13: Oggetto di fornitura | G13: Codice Prodotto | J13: Descrizione Sintetica (si faccia riferimento alla guida alla convenzione per la descrizione estesa e per le regole di acquisto delle opzioni) | R13: Costo Unitario | T13: Costo Complessivo | V13: 1
B14: Server DC-Box General Purpose (DELL PowerEdge VRTX) | V14: =IF(B15>="",0,1) -> 0 | X14: Server1 | Y14: Server2 | Z14: Server3
B15: =IF(AE15>=1,AE15,"") ->  | C15: =IF(AE15>0,(VLOOKUP(G15,COD_C,2,FALSE)),"") ->  | G15: =IF(AE15>=1,W15,"") ->  | J15: =IF(AE15>0,(VLOOKUP(G15,COD_C,5,FALSE)),"") ->  | R15: =IF(AE15>0,(VLOOKUP(G15,COD_C,3,FALSE)),"") ->  | T15: =IF(B15="","",R15*B15) ->  | V15: =IF(B15>="",0,1) -> 0 | W15: 10L3-VRTX-U | X15: =SRV_C -> 0 | Y15: =SRV_AA -> 0 | Z15: =SRV_AAA -> 0 | AE15: =SUM(X15:AD15) -> 0
B16: =IF(AE16>=1,AE16,"") ->  | G16: =IF(AE16>=1,W16,"") ->  | T16: =IF(B16="","",R16*B16) ->  | V16: =IF(B16>="",0,1) -> 0 | W16: 10L3-BLADE-U | X16: ='Server10 Lotto3 VRTX'!C95-2 -> 0 | Y16: ='Server10 Lotto1 R630 2'!$C$29 -> 0 | Z16: ='Server10 Lotto1 R630 3'!$C$29 -> 0 | AB16: =X16*$X$15 -> 0 | AC16: =Y16*$Y$15 -> 0 | AD16: =Z16*$Z$15 -> 0 | AE16: =SUM(AB16:AD16) -> 0
B17: =IF(AE17>=1,AE17,"") ->  | G17: =IF(AE17>=1,W17,"") ->  | T17: =IF(B17="","",R17*B17) ->  | V17: 0 | W17: 10L3-CPU-U | X17: ='Server10 Lotto3 VRTX'!C110*'Server10 Lotto3 VRTX'!C95 -> 0 | Y17: =IF(MEM_AA="",0,MEM_AA) -> 0 | Z17: =IF(MEM_AAA="",0,MEM_AAA) -> 0 | AB17: =X17*$X$15 -> 0 | AC17: =Y17*$Y$15 -> 0 | AD17: =Z17*$Z$15 -> 0 | AE17: =SUM(AB17:AD17) -> 0
V18: 0 | W18: 10L3-16GB-VRTX | X18: =IF(MEM_C="",0,MEM_C)*'Server10 Lotto3 VRTX'!C95 -> 0 | Y18: =IF(MEM_AA32="",0,MEM_AA32) -> 0 | Z18: =IF(MEM_AAA32="",0,MEM_AAA32) -> 0 | AB18: =X18*$X$15 -> 0 | AC18: =Y18*$Y$15 -> 0 | AD18: =Z18*$Z$15 -> 0 | AE18: =SUM(AB18:AD18) -> 0
V19: 0 | W19: 10L3-32GB-VRTX | X19: =IF(MEM_C32="",0,MEM_C32)*'Server10 Lotto3 VRTX'!C95 -> 0 | Y19: =COUNTIF($AJ$19:$AJ$20,W19) -> 0 | Z19: =COUNTIF($AK$19:$AK$20,W19) -> 0 | AB19: =X19*$X$15 -> 0 | AC19: =Y19*$Y$15 -> 0 | AD19: =Z19*$Z$15 -> 0 | AE19: =SUM(AB19:AD19) -> 0 | AH19: slot1 | AI19: ='Server10 Lotto3 VRTX'!$D$70 ->  | AJ19: ='Server10 Lotto1 R630 2'!$D$99 ->  | AK19: ='Server10 Lotto1 R630 3'!$D$99 -> 
V20: 0 | W20: 10L3-LAN1GB | X20: =COUNTIF($AI$19:$AI$26,W20) -> 0 | Y20: =COUNTIF($AJ$19:$AJ$20,W20) -> 0 | Z20: =COUNTIF($AK$19:$AK$20,W20) -> 0 | AB20: =X20*$X$15 -> 0 | AC20: =Y20*$Y$15 -> 0 | AD20: =Z20*$Z$15 -> 0 | AE20: =SUM(AB20:AD20) -> 0 | AH20: slot2 | AI20: ='Server10 Lotto3 VRTX'!$D$73 ->  | AJ20: ='Server10 Lotto1 R630 2'!$D$102 ->  | AK20: ='Server10 Lotto1 R630 3'!$D$102 -> 
V21: 0 | W21: 10L3-LAN1GB-LP | X21: =COUNTIF($AI$19:$AI$26,W21) -> 0 | Y21: 0 | Z21: 0 | AB21: =X21*$X$15 -> 0 | AC21: =Y21*$Y$15 -> 0 | AD21: =Z21*$Z$15 -> 0 | AE21: =SUM(AB21:AD21) -> 0 | AH21: slot3 | AI21: ='Server10 Lotto3 VRTX'!$D$76 -> 
V22: 0 | W22: 10L3-LAN10GB | X22: =COUNTIF($AI$19:$AI$26,W22) -> 0 | Y22: 0 | Z22: 0 | AB22: 0 | AC22: 0 | AD22: 0 | AE22: 0 | AH22: slot4 | AI22: ='Server10 Lotto3 VRTX'!$D$79 -> 
V23: 0 | W23: 10L3-LAN10GB-LP | X23: =COUNTIF($AI$19:$AI$26,W23) -> 0 | Y23: 0 | Z23: 0 | AB23: 0 | AC23: 0 | AD23: 0 | AE23: 0 | AH23: slot5 | AI23: ='Server10 Lotto3 VRTX'!$D$82 -> 
G24: =IF(AE24>=1,W24,"") ->  | V24: 0 | W24: 10L3-CNA10 | X24: =COUNTIF($AI$19:$AI$26,W24) -> 0 | Y24: 0 | Z24: 0 | AB24: =X24*$X$15 -> 0 | AC24: 0 | AD24: 0 | AE24: 0 | AH24: slot6 | AI24: ='Server10 Lotto3 VRTX'!$D$85 -> 
V25: 0 | W25: 10L3-CNA10-LP | X25: =COUNTIF($AI$19:$AI$26,W25) -> 0 | Y25: =COUNTIF($AJ$19:$AJ$20,#REF!) -> 0 | Z25: =COUNTIF($AK$19:$AK$20,#REF!) -> 0 | AB25: 0 | AC25: 0 | AD25: 0 | AE25: 0 | AH25: slot7 | AI25: ='Server10 Lotto3 VRTX'!$D$88 -> 
B26: =IF(AE26>=1,AE26,"") ->  | V26: 0 | W26: 10L3-FC-U | X26: 0 | Y26: =COUNTIF($AJ$19:$AJ$20,W25) -> 0 | Z26: =COUNTIF($AK$19:$AK$20,W25) -> 0 | AB26: 0 | AC26: 0 | AD26: 0 | AE26: 0 | AH26: slot8 | AI26: ='Server10 Lotto3 VRTX'!$D$91 -> 
V27: 0 | W27: 10L3-FC-LP-U | X27: 0 | Y27: =HD300_AA -> 0 | Z27: =HD300_AAA -> 0 | AB27: =X27*$X$15 -> 0 | AC27: =Y27*$Y$15 -> 0 | AD27: =Z27*$Z$15 -> 0 | AE27: =SUM(AB27:AD27) -> 0
G28: =IF(AE28>=1,W28,"") ->  | V28: 0 | W28: 10L3-HDD300GB-DELL | X28: =HD300_C -> 0 | Y28: =IF('Server10 Lotto1 R630 2'!$D$132=W26,'Server10 Lotto1 R630 2'!$C$132,0) -> 0 | Z28: =IF('Server10 Lotto1 R630 3'!$D$132=W26,'Server10 Lotto1 R630 3'!$C$132,0) -> 0 | AB28: =X28*$X$15 -> 0 | AC28: =Y28*$Y$15 -> 0 | AD28: =Z28*$Z$15 -> 0 | AE28: =SUM(AB28:AD28) -> 0
V29: 0 | W29: 10L3-HDD1TB-DELL | X29: =HD1000_c -> 0 | Y29: =IF('Server10 Lotto1 R630 2'!$D$135=W27,'Server10 Lotto1 R630 2'!$C$135,0) -> 0 | Z29: =IF('Server10 Lotto1 R630 3'!$D$135=W27,'Server10 Lotto1 R630 3'!$C$135,0) -> 0 | AB29: =X29*$X$15 -> 0 | AC29: =Y29*$Y$15 -> 0 | AD29: =Z29*$Z$15 -> 0 | AE29: =SUM(AB29:AD29) -> 0 | AG29: =IF(X29=0,0,IF(X29+X28=2,5,IF(X29+#REF!=2,4,3))) -> 0 | AH29: =IF(Y29=0,0,IF(Y29+Y28=2,5,IF(Y29+#REF!=2,4,3))) -> 0 | AI29: =IF(Z29=0,0,IF(Z29+Z28=2,5,IF(Z29+#REF!=2,4,3))) -> 0 | AJ29: =IF(AG29=5,#REF!,IF(AG29=4,#REF!,IF(AG29=3,#REF!,""))) ->  | AK29: =IF(AH29=5,#REF!,IF(AH29=4,#REF!,IF(AH29=3,#REF!,""))) ->  | AL29: =IF(AI29=5,#REF!,IF(AI29=4,#REF!,IF(AI29=3,#REF!,""))) -> 
B30: Server DC-Box Sddc (HP ConvergedSystem 250-HC StoreVirtual System) | V30: =IF(B31>="",0,1) -> 0 | W30: CS250-HC-U | X30: Server1 | Y30: Server2 | Z30: Server3
B31: =IF(AE31>=1,AE31,"") ->  | C31: =IF(AE31>0,(VLOOKUP(G31,COD_A,2,FALSE)),"") ->  | G31: =IF(AE31>=1,W31,"") ->  | J31: =IF(AE31>0,(VLOOKUP(G31,COD_A,5,FALSE)),"") ->  | R31: =IF(AE31>0,(VLOOKUP(G31,COD_A,3,FALSE)),"") ->  | T31: =IF(B31="","",R31*B31) ->  | V31: 0 | W31: 10L3-250HC-U | X31: =SRV_B -> 0 | Y31: =SRV_BB -> 0 | Z31: =SRV_BBB -> 0 | AE31: =SUM(X31:AD31) -> 0
B32: =IF(AE32>=1,AE32,"") ->  | G32: =IF(AE32>=1,W32,"") ->  | T32: =IF(B32="","",R32*B32) ->  | V32: 0 | W32: 10L3-32GB-HP-U | X32: =IF(MEM_B="",0,MEM_B)*4 -> 0 | AB32: =X32*$X$31 -> 0 | AC32: =Y32*$Y$31 -> 0 | AD32: =Z32*$Z$31 -> 0 | AE32: =SUM(AB32:AD32) -> 0
G33: =IF(AE33>=1,W33,"") ->  | V33: 0 | W33: 10L3-HD1TB-HP-U | X33: =HD300_B*4 -> 0 | Y33: =COUNTIF($AJ$33:$AJ$35,W33) -> 0 | Z33: =COUNTIF($AK$33:$AK$35,W33) -> 0 | AB33: =X33*$X$31 -> 0 | AC33: =Y33*$Y$31 -> 0 | AD33: =Z33*$Z$31 -> 0 | AE33: =SUM(AB33:AD33) -> 0 | AH33: slot1 | AI33: ='Server10 Lotto3 HP CS250'!#REF! ->  | AJ33: ='Server10 Lotto1 R730xd 2'!$D$99 ->  | AK33: ='Server10 Lotto1 R730xd 3'!$D$99 -> 
V34: 0 | W34: 10L3-HD300-HP-U | X34: =COUNTIF($AI$33:$AI$35,W34) -> 0 | Y34: =COUNTIF($AJ$33:$AJ$35,W34) -> 0 | Z34: =COUNTIF($AK$33:$AK$35,W34) -> 0 | AB34: =X34*$X$31 -> 0 | AC34: =Y34*$Y$31 -> 0 | AD34: =Z34*$Z$31 -> 0 | AE34: =SUM(AB34:AD34) -> 0 | AH34: slot2 | AI34: ='Server10 Lotto3 HP CS250'!#REF! ->  | AJ34: ='Server10 Lotto1 R730xd 2'!$D$102 ->  | AK34: ='Server10 Lotto1 R730xd 3'!$D$102 -> 
V35: 0 | W35: 10L3-16GB-HP-U | X35: =COUNTIF($AI$33:$AI$35,W35) -> 0 | Y35: =COUNTIF($AJ$33:$AJ$35,W35) -> 0 | Z35: =COUNTIF($AK$33:$AK$35,W35) -> 0 | AB35: 0 | AC35: 0 | AD35: 0 | AE35: 0 | AH35: slot3 | AI35: ='Server10 Lotto3 HP CS250'!#REF! ->  | AJ35: ='Server10 Lotto1 R730xd 2'!D105 ->  | AK35: ='Server10 Lotto1 R730xd 3'!D105 -> 
T36: =IF(B36="","",R36*B36) ->  | V36: 0 | W36: 10L3-SWITCH | X36: ='RACK, Accessori e Servizi'!J11 -> 0 | Y36: =IF('Server10 Lotto1 R730xd 2'!$D$141=W36,'Server10 Lotto1 R730xd 2'!$C$141,0) -> 0 | Z36: =IF('Server10 Lotto1 R730xd 3'!$D$141=W36,'Server10 Lotto1 R730xd 3'!$C$141,0) -> 0 | AB36: =X36 -> 0 | AC36: =Y36*$Y$31 -> 0 | AD36: =Z36*$Z$31 -> 0 | AE36: =SUM(AB36:AD36) -> 0
B37: OPZIONI COMUNI | V37: 1 | X37: R630 | Y37: R630 1 | Z37: R630 2 | AA37: R730xd | AB37: R730xd 1 | AC37: R730xd 2 | AD37: T630 | AM37: R630 | AN37: R730xd | AO37: T630
B38: =IF('RACK, Accessori e Servizi'!J16=0,"",'RACK, Accessori e Servizi'!J16) ->  | C38: =IF(B38>0,(VLOOKUP(G38,COD_A,2,FALSE)),"") ->  | G38: =IF('RACK, Accessori e Servizi'!J16>0,'RACK, Accessori e Servizi'!K16,"") ->  | J38: =IF(B38>0,(VLOOKUP(G38,COD_A,5,FALSE)),"") ->  | R38: =IF(B38>0,(VLOOKUP(G38,COD_A,3,FALSE)),"") ->  | T38: =IF(B38="","",R38*B38) ->  | V38: 0
B39: =IF('RACK, Accessori e Servizi'!J19=0,"",'RACK, Accessori e Servizi'!J19) ->  | G39: =IF('RACK, Accessori e Servizi'!J19>0,'RACK, Accessori e Servizi'!K19,"") ->  | T39: =IF(B39="","",R39*B39) ->  | V39: 0
B40: =IF('RACK, Accessori e Servizi'!J22=0,"",'RACK, Accessori e Servizi'!J22) ->  | G40: =IF('RACK, Accessori e Servizi'!J22>0,'RACK, Accessori e Servizi'!K22,"") ->  | V40: 0
B41: =IF('RACK, Accessori e Servizi'!J25=0,"",'RACK, Accessori e Servizi'!J25) ->  | G41: =IF('RACK, Accessori e Servizi'!J25>0,'RACK, Accessori e Servizi'!K25,"") ->  | V41: 0
B42: =IF('RACK, Accessori e Servizi'!J5=0,"",'RACK, Accessori e Servizi'!J5) ->  | C42: =IF(B42>0,(VLOOKUP(G42,COD_A,2,FALSE)),"") ->  | G42: =IF('RACK, Accessori e Servizi'!J5>0,'RACK, Accessori e Servizi'!K5,"") ->  | J42: =IF(B42>0,(VLOOKUP(G42,COD_A,5,FALSE)),"") ->  | R42: =IF(B42>0,(VLOOKUP(G42,COD_A,3,FALSE)),"") ->  | V42: 0
B43: =IF('RACK, Accessori e Servizi'!J7=0,"",'RACK, Accessori e Servizi'!J7) ->  | C43: =IF(B43>0,(VLOOKUP(G43,COD_A,2,FALSE)),"") ->  | G43: =IF('RACK, Accessori e Servizi'!J7>0,'RACK, Accessori e Servizi'!K7,"") ->  | J43: =IF(B43>0,(VLOOKUP(G43,COD_A,5,FALSE)),"") ->  | R43: =IF(B43>0,(VLOOKUP(G43,COD_A,3,FALSE)),"") ->  | V43: 0
B44: I.V.A. | R44: =R45*22% -> 0 | V44: 1
B45: TOTALE COSTO (I.V.A. Esclusa) | R45: =SUM(T15:U43) -> 0 | V45: 1
B46: TOTALE ORDINE | R46: =SUM(R44:U45) -> 0 | V46: 1
V47: 1
V48: 1
V49: 1
D50: =IF(G6>0,"DETTAGLIO CONFIGURAZIONI SERVER LOTTO 3 ","") ->  | V50: 1
V51: 1
V52: 1
V53: =IF($E$54+$S$54=0,0,1) -> 0
B54: DELL PowerEdge VRTX | E54: =SRV_C -> 0 | F54: Server | P54: HP Converged System 250-HC | S54: =SRV_B -> 0 | T54: Server | V54: =IF($E$54+$S$54=0,0,1) -> 0
V55: 0
B56: =IF(SRV_C>0,"1","-") -> - | C56: =IF(B56="-","-",CONCATENATE(MID($C$15,1,21)," - ",$G$15)) -> - | P56: =IF(SRV_B>0,"1","-") -> - | Q56: =IF(P56="-","-",CONCATENATE(MID($C$31,1,21)," - ",$G$31)) -> - | V56: =IF(W56=0,0,1) -> 0 | W56: =X56+Y56 -> 0 | X56: =IF(B56="-",0,1) -> 0 | Y56: =IF(P56="-",0,1) -> 0
B57: =IF(X16=0,"-",X16) -> - | C57: =IF(B57="-","-",CONCATENATE(MID($C$16,1,21)," - ",$G$16)) -> - | P57: =IF(X32=0,"-",X32) -> - | Q57: =IF(P57="-","-",CONCATENATE(MID($C32,1,21)," - ",$G32)) -> - | V57: =IF(W57=0,0,1) -> 0 | W57: =X57+Y57 -> 0 | X57: =IF(B57="-",0,1) -> 0 | Y57: =IF(P57="-",0,1) -> 0
B58: - | C58: =IF(B58="-","-",CONCATENATE(MID($C$17,1,21)," - ",$G$17)) -> - | P58: =IF(X33=0,"-",X33) -> - | Q58: =IF(P58="-","-",CONCATENATE(MID($C33,1,21)," - ",$G33)) -> - | V58: 0 | W58: 0 | X58: 0 | Y58: 0
B59: - | C59: =IF(B59="-","-",CONCATENATE(MID($C$18,1,21)," - ",$G$18)) -> - | P59: - | Q59: - | V59: 0 | W59: 0 | X59: 0 | Y59: 0
B60: - | C60: =IF(B60="-","-",CONCATENATE(MID(C19,1,21)," - ",G19)) -> - | P60: - | Q60: - | V60: 0 | W60: 0 | X60: 0 | Y60: 0
B61: - | C61: - | P61: - | Q61: - | V61: 0 | W61: 0 | X61: 0 | Y61: 0
B62: - | C62: - | P62: ="-" -> - | Q62: - | V62: 0 | W62: 0 | X62: 0 | Y62: 0
B63: - | C63: - | P63: ="-" -> - | Q63: - | V63: 0 | W63: 0 | X63: 0 | Y63: 0
B64: - | C64: - | P64: ="-" -> - | Q64: - | V64: 0 | W64: 0 | X64: 0 | Y64: 0
B65: - | C65: - | P65: ="-" -> - | Q65: - | V65: 0 | W65: 0 | X65: 0 | Y65: 0
B66: - | C66: - | P66: ="-" -> - | Q66: =IF(P66="-","-",CONCATENATE(MID(C25,1,21)," - ",G25)) -> - | V66: 0 | W66: 0 | X66: 0 | Y66: 0
B67: - | C67: - | P67: - | Q67: =IF(P67="-","-",CONCATENATE(MID(C26,1,21)," - ",G26)) -> - | V67: 0 | W67: 0 | X67: 0 | Y67: 0
B68: - | C68: - | P68: - | Q68: =IF(P68="-","-",CONCATENATE(MID(C27,1,21)," - ",G27)) -> - | V68: 0 | W68: 0 | X68: 0 | Y68: 0
B69: =IF(X28=0,"-",X28) -> - | C69: =IF(B69="-","-",CONCATENATE(MID(C28,1,21)," - ",G28)) -> - | P69: - | Q69: =IF(P69="-","-",CONCATENATE(MID(#REF!,1,21)," - ",#REF!)) -> - | V69: 0 | W69: 0 | X69: 0 | Y69: 0
B70: - | C70: - | P70: ="-" -> - | Q70: =IF(P70="-","-",CONCATENATE(MID(#REF!,1,21)," - ",#REF!)) -> - | V70: 0 | W70: 0 | X70: 0 | Y70: 0
V71: =IF($E$54+$S$54=0,0,1) -> 0
V72: 1
V73: 1
D74: =MID(C72,13,5) ->  | F74: =MID(E72,13,5) ->  | V74: 1
D75: AREA RISERVATA AL FORNITORE | V75: 1
V76: 1
V77: 1
C78: VERIFICA STAGING | O78: VERIFICA INSTALLATORE | V78: 1
V79: 1
V80: 1
V81: 1
V82: 1
V83: 1

Sheet Server10 Lotto1 R630 2 (hidden)
A5: Server10 Lotto1 R630 | H5: List Price *
H6: =F17*C16 -> 0
A11: Components: Server DELL PowerEdge R630 (1CPU Intel® Xeon® E5-2650 v3, 32GB RDIMM, 2xHDD 300GB 10K RPM SAS 12Gbps 2.5in)
A15: PowerEdge R630 | B15: Category: Server | F15: =1806 -> 1806
B16: Quantity: | F16: =SUM(F20:F145) -> 0
F17: =SUM(F15:F16) -> 1806
B19: Base
B20: PowerEdge R630 Server, 8HDD, TPM | C20: 1 | E20: [210-ACXS][329-BCIY][461-AACZ]
B22: Chassis Configuration
B23: Chassis with up to 8, 2.5" Hard Drives, up to 2 PCIe Slots (With Optional Riser) | C23: 1 | E23: [321-BBKJ]
B25: Processor
B26: Intel® Xeon® E5-2650 v3 2.3GHz,25M Cache,9.60GT/s QPI,Turbo,HT,10C/20T (105W) Max Mem 2133MHz | C26: 1 | E26: [338-BFFF]
B28: Additional Processor
B29: No Additional Processor | C29: =VLOOKUP($B$29, CPU_A, 2, FALSE) -> 0 | D29: =VLOOKUP($B$29, CPU_A, 3, FALSE) ->  | E29: =VLOOKUP($B$29, CPU_A, 5, FALSE) -> [374-BBBX] | F29: =VLOOKUP(B29, CPU_A, 12, FALSE) -> 
B31: Processor Thermal Configuration
B32: 1 CPU up to 120W | C32: 1 | E32: [370-ABWN][412-AAEE]
B33: =VLOOKUP($B$29, CPU_A, 6, FALSE) ->  | C33: =VLOOKUP($B$29, CPU_A, 7, FALSE) ->  | E33: =VLOOKUP($B$29, CPU_A, 8, FALSE) -> 
B35: Memory Configuration Type
B36: Performance Optimized | C36: 1 | E36: [370-AAIP]
B38: Total Memory in GB | D38: =IF(('Server10 Lotto1 R630 2'!$D$12=0),"",'Server10 Lotto1 R630 2'!#REF!) -> 
B39: 32
B41: Memory DIMM Type and Speed
B42: 2133MT/s RDIMMs | C42: 1 | E42: [370-ABUF]
B44: Memory Capacity
B45: =IF($B$29="No Additional Processor",VLOOKUP($B$39, MEM_A1, 8, FALSE),VLOOKUP($B$39, MEM_A2, 8, FALSE)) -> 16GB RDIMM, 2133MT/s, Dual Rank, x4 Data Width | C45: =IF($B$29="No Additional Processor",VLOOKUP($B$39, MEM_A1, 9, FALSE),VLOOKUP($B$39, MEM_A2, 9, FALSE)) -> 2 | E45: =IF($B$29="No Additional Processor",VLOOKUP($B$39, MEM_A1, 10, FALSE),VLOOKUP($B$39, MEM_A2, 10, FALSE)) -> [370-ABUG]
B47: =IF($B$29="No Additional Processor",VLOOKUP($B$39, MEM_A1, 2, FALSE),VLOOKUP($B$39, MEM_A2, 2, FALSE)) ->  | C47: =IF($B$29="No Additional Processor",VLOOKUP($B$39, MEM_A1, 3, FALSE),VLOOKUP($B$39, MEM_A2, 3, FALSE)) ->  | D47: =IF($B$29="No Additional Processor",VLOOKUP($B$39, MEM_A1, 4, FALSE),VLOOKUP($B$39, MEM_A2, 4, FALSE)) ->  | E47: =IF($B$29="No Additional Processor",VLOOKUP($B$39, MEM_A1, 6, FALSE),VLOOKUP($B$39, MEM_A2, 6, FALSE)) ->  | F47: =IF($B$29="No Additional Processor",VLOOKUP($B$39, MEM_A1, 7, FALSE),VLOOKUP($B$39, MEM_A2, 7, FALSE)) -> 
B49: =IF($B$29="No Additional Processor",VLOOKUP($B$39, MEM_A1, 11, FALSE),VLOOKUP($B$39, MEM_A2, 11, FALSE)) ->  | C49: =IF($B$29="No Additional Processor",VLOOKUP($B$39, MEM_A1, 12, FALSE),VLOOKUP($B$39, MEM_A2, 12, FALSE)) ->  | D49: =IF($B$29="No Additional Processor",VLOOKUP($B$39, MEM_A1, 13, FALSE),VLOOKUP($B$39, MEM_A2, 13, FALSE)) ->  | E49: =IF($B$29="No Additional Processor",VLOOKUP($B$39, MEM_A1, 15, FALSE),VLOOKUP($B$39, MEM_A2, 15, FALSE)) ->  | F49: =IF($B$29="No Additional Processor",VLOOKUP($B$39, MEM_A1, 16, FALSE),VLOOKUP($B$39, MEM_A2, 16, FALSE)) -> 
B51: Operating System
B52: No Operating System | C52: =VLOOKUP($B$52, OS_A, 2, FALSE) ->  | D52: =VLOOKUP($B$52, OS_A, 3, FALSE) ->  | E52: =VLOOKUP($B$52, OS_A, 5, FALSE) -> [611-BBBF] | F52: =VLOOKUP($B$52, OS_A, 6, FALSE) -> 
B54: OS Media Kits
B55: No Media Required | C55: 1 | E55: [605-BBFN]
B57: Client Access Licenses
B58: =VLOOKUP($B$52, OS_A, 7, FALSE) -> None | D58: =VLOOKUP($B$52, OS_A, 9, FALSE) ->  | E58: =VLOOKUP($B$52, OS_A, 11, FALSE) ->  | F58: =VLOOKUP($B$52, OS_A, 12, FALSE)*C58 -> 0
B60: =VLOOKUP($B$52, OS_A, 13, FALSE) -> None | D60: =VLOOKUP($B$52, OS_A, 15, FALSE) ->  | E60: =VLOOKUP($B$52, OS_A, 17, FALSE) ->  | F60: =VLOOKUP($B$52, OS_A, 18, FALSE)*C60 -> 0
B62: RAID Controller
B63: PERC H330 RAID Controller | C63: 1 | E63: [405-AAEF]
B65: Hard Drives
B66: 300GB 10K RPM SAS 12Gbps 2.5in Hot-plug Hard Drive | C66: 2 | E66: [400-AJPK]
B68: 300GB 10K RPM SAS 12Gbps 2.5in Hot-plug Hard Drive,CusKit | D68: =VLOOKUP($B$68, HDD_A,3, FALSE) -> 10L1-HDD300GB | E68: =VLOOKUP($B$68, HDD_A,5, FALSE) -> [400-AJOQ] | F68: =VLOOKUP($B$68, HDD_A,6, FALSE)*C68 -> 0
B70: 1TB 7.2K RPM NLSAS 6Gbps 2.5in Hot-plug Hard Drive,13G,CusKit | D70: =VLOOKUP($B$70, HDD_A,3, FALSE) -> 10L1-HDD1TB | E70: =VLOOKUP($B$70, HDD_A,5, FALSE) -> [400-AEFF] | F70: =VLOOKUP($B$70, HDD_A,6, FALSE)*C70 -> 0
B72: RAID Configuration HDD 300GB
B73: C3 - RAID 1 for H330 (2 HDDs) | C73: 1 | E73: =VLOOKUP($B$73, RAID_AA1, 2, FALSE) -> [780-BBJK]
B74: Hot Spare for 300GB HDD | C74: No
B76: RAID Configuration HDD 1TB
C77: 1 | E77: =VLOOKUP($B$77, RAID_AA2, 2, FALSE) -> 
B78: Hot Spare for 1TB HDD | C78: No
B80: Power Management BIOS Settings
B81: Performance BIOS Setting | C81: 1 | E81: [384-BBBL]
B83: Power Supply
B84: Dual, Hot-plug, Redundant Power Supply (1+1), 750W, Titanium, 200-240VAC | C84: 1 | E84: [450-ADWT]
B86: Power Cords
B87: Rack Power Cord 2M (C13/C14 12A) | C87: 2 | E87: [450-AADY]
B89: PCIe Riser
B90: =VLOOKUP(B29, CPU_A, 9, FALSE) -> Riser with up to 1, x8 PCIe Slots + 1, x16 PCIe Slots for x8, 2 PCIe Chassis with 1 Processor | C90: =VLOOKUP($B$29, CPU_A, 10, FALSE) -> 1 | E90: =VLOOKUP($B$29, CPU_A, 11, FALSE) -> [330-BBCS]
B92: Embedded Systems Management
B93: iDrac8, Enterprise | C93: 1 | E93: [385-BBHO]
B95: Network Daughter Card
B96: Broadcom 5720 QP 1Gb Network Daughter Card | C96: 1 | E96: [540-BBBW]
B98: Additional Card for PCIe Slot 1 (Low Profile)
B99: None | C99: =VLOOKUP($B$99, PCI_A1, 2, FALSE) ->  | D99: =VLOOKUP($B$99, PCI_A1, 3, FALSE) ->  | E99: =VLOOKUP($B$99, PCI_A1, 5, FALSE) ->  | F99: =VLOOKUP($B$99, PCI_A1, 6, FALSE) -> 
B101: Additional Card for PCIe Slot 2 (Full height)
B102: None | C102: =VLOOKUP($B$102, PCI_A2, 2, FALSE) ->  | D102: =VLOOKUP($B$102, PCI_A2, 3, FALSE) ->  | E102: =VLOOKUP($B$102, PCI_A2, 5, FALSE) ->  | F102: =VLOOKUP($B$102, PCI_A2, 6, FALSE) -> 
B104: Bezel
B105: Bezel 8 Drive Chassis | C105: 1 | E105: [325-BBII]
B107: Rack Rails
B108: ReadyRails™ Sliding Rails Without Cable Management Arm | C108: 1 | E108: [770-BBBC]
B110: Internal Optical Drive
B111: No Internal Optical Drive for 8 HDD Chassis | C111: 1 | E111: [429-AAQN]
B113: Server Accessories
B114: PowerEdge SFP+, 10GbE SR/SX, Optical Tranceiver, LC Connector, for Intel and Broadcom,CusKit | C114: =(VLOOKUP(B102,PCI_A2,8,FALSE))+((VLOOKUP(B99,PCI_A1,8,FALSE))) -> 0 | E114: [407-BBQE]
B116: System Documentation
B117: Electronic System Documentation and OpenManage DVD Kit | C117: 1 | E117: [343-BBDK]
B119: SHIPPING
B120: R630 Shipping - 8 Drive Chassis, EMEA1 (English/French/German/Spanish/Russian/Hebrew) | C120: 1 | E120: [340-AMIN]
B122: Order Information
B123: PowerEdge Order - EMEA | C123: 1 | E123: [800-11671]
B125: Base warranty
B126: 3Yr Basic Warranty - Next Business Day - Minimum Warranty | C126: 1 | E126: [709-12767][709-12768]
B128: Servizi di assitenza
B129: Dell Channel Order - Service Info only | C129: 1 | E129: [710-31085]
B131: Warranty Upgrades
B132: None | C132: =VLOOKUP($B$132, SO_A1, 2, FALSE) ->  | D132: =VLOOKUP($B$132, SO_A1, 3, FALSE) ->  | E132: =VLOOKUP($B$132, SO_A1, 5, FALSE) ->  | F132: =VLOOKUP($B$132, SO_A1, 6, FALSE) -> 
B134: Protezione dei dati - Keep Your Hard Drive
B135: None | C135: =VLOOKUP($B$135, SO_AA2, 2, FALSE) ->  | D135: =VLOOKUP($B$135, SO_AA2, 3, FALSE) ->  | E135: =VLOOKUP($B$135, SO_AA2,5, FALSE) ->  | F135: =VLOOKUP($B$135, SO_AA2, 6, FALSE) -> 
B137: Servizi di Installazione
B138: No Installation Service Selected | C138: 1 | E138: [683-11870]
B140: Channel only - Support Extension
B141: Channel 39M Basic Warranty - Next Business Day | C141: 1 | E141: [723-28776]
B143: Warranty Upgrades - Non-Std/Local POS
B144: CSTM CONSIP - 39M Onsite Labor Support for CRU for Servers with Basic Warranty | C144: 1 | E144: [681-24467]

Sheet Server10 Lotto1 R630 3 (hidden)
A5: Server10 Lotto1 R630 | H5: List Price *
H6: =F17*C16 -> 0
A11: Components: Server DELL PowerEdge R630 (1CPU Intel® Xeon® E5-2650 v3, 32GB RDIMM, 2xHDD 300GB 10K RPM SAS 12Gbps 2.5in)
A15: PowerEdge R630 | B15: Category: Server | F15: =1806 -> 1806
B16: Quantity: | F16: =SUM(F20:F145) -> 0
F17: =SUM(F15:F16) -> 1806
B19: Base
B20: PowerEdge R630 Server, 8HDD, TPM | C20: 1 | E20: [210-ACXS][329-BCIY][461-AACZ]
B22: Chassis Configuration
B23: Chassis with up to 8, 2.5" Hard Drives, up to 2 PCIe Slots (With Optional Riser) | C23: 1 | E23: [321-BBKJ]
B25: Processor
B26: Intel® Xeon® E5-2650 v3 2.3GHz,25M Cache,9.60GT/s QPI,Turbo,HT,10C/20T (105W) Max Mem 2133MHz | C26: 1 | E26: [338-BFFF]
B28: Additional Processor
B29: No Additional Processor | C29: =VLOOKUP($B$29, CPU_A, 2, FALSE) -> 0 | D29: =VLOOKUP($B$29, CPU_A, 3, FALSE) ->  | E29: =VLOOKUP($B$29, CPU_A, 5, FALSE) -> [374-BBBX] | F29: =VLOOKUP(B29, CPU_A, 12, FALSE) -> 
B31: Processor Thermal Configuration
B32: 1 CPU up to 120W | C32: 1 | E32: [370-ABWN][412-AAEE]
B33: =VLOOKUP($B$29, CPU_A, 6, FALSE) ->  | C33: =VLOOKUP($B$29, CPU_A, 7, FALSE) ->  | E33: =VLOOKUP($B$29, CPU_A, 8, FALSE) -> 
B35: Memory Configuration Type
B36: Performance Optimized | C36: 1 | E36: [370-AAIP]
B38: Total Memory in GB | D38: =IF(('Server10 Lotto1 R630 3'!$D$12=0),"",'Server10 Lotto1 R630 3'!#REF!) -> 
B39: 32
B41: Memory DIMM Type and Speed
B42: 2133MT/s RDIMMs | C42: 1 | E42: [370-ABUF]
B44: Memory Capacity
B45: =IF($B$29="No Additional Processor",VLOOKUP($B$39, MEM_A1, 8, FALSE),VLOOKUP($B$39, MEM_A2, 8, FALSE)) -> 16GB RDIMM, 2133MT/s, Dual Rank, x4 Data Width | C45: =IF($B$29="No Additional Processor",VLOOKUP($B$39, MEM_A1, 9, FALSE),VLOOKUP($B$39, MEM_A2, 9, FALSE)) -> 2 | E45: =IF($B$29="No Additional Processor",VLOOKUP($B$39, MEM_A1, 10, FALSE),VLOOKUP($B$39, MEM_A2, 10, FALSE)) -> [370-ABUG]
B47: =IF($B$29="No Additional Processor",VLOOKUP($B$39, MEM_A1, 2, FALSE),VLOOKUP($B$39, MEM_A2, 2, FALSE)) ->  | C47: =IF($B$29="No Additional Processor",VLOOKUP($B$39, MEM_A1, 3, FALSE),VLOOKUP($B$39, MEM_A2, 3, FALSE)) ->  | D47: =IF($B$29="No Additional Processor",VLOOKUP($B$39, MEM_A1, 4, FALSE),VLOOKUP($B$39, MEM_A2, 4, FALSE)) ->  | E47: =IF($B$29="No Additional Processor",VLOOKUP($B$39, MEM_A1, 6, FALSE),VLOOKUP($B$39, MEM_A2, 6, FALSE)) ->  | F47: =IF($B$29="No Additional Processor",VLOOKUP($B$39, MEM_A1, 7, FALSE),VLOOKUP($B$39, MEM_A2, 7, FALSE)) -> 
B49: =IF($B$29="No Additional Processor",VLOOKUP($B$39, MEM_A1, 11, FALSE),VLOOKUP($B$39, MEM_A2, 11, FALSE)) ->  | C49: =IF($B$29="No Additional Processor",VLOOKUP($B$39, MEM_A1, 12, FALSE),VLOOKUP($B$39, MEM_A2, 12, FALSE)) ->  | D49: =IF($B$29="No Additional Processor",VLOOKUP($B$39, MEM_A1, 13, FALSE),VLOOKUP($B$39, MEM_A2, 13, FALSE)) ->  | E49: =IF($B$29="No Additional Processor",VLOOKUP($B$39, MEM_A1, 15, FALSE),VLOOKUP($B$39, MEM_A2, 15, FALSE)) ->  | F49: =IF($B$29="No Additional Processor",VLOOKUP($B$39, MEM_A1, 16, FALSE),VLOOKUP($B$39, MEM_A2, 16, FALSE)) -> 
B51: Operating System
B52: No Operating System | C52: =VLOOKUP($B$52, OS_A, 2, FALSE) ->  | D52: =VLOOKUP($B$52, OS_A, 3, FALSE) ->  | E52: =VLOOKUP($B$52, OS_A, 5, FALSE) -> [611-BBBF] | F52: =VLOOKUP($B$52, OS_A, 6, FALSE) -> 
B54: OS Media Kits
B55: No Media Required | C55: 1 | E55: [605-BBFN]
B57: Client Access Licenses
B58: =VLOOKUP($B$52, OS_A, 7, FALSE) -> None | D58: =VLOOKUP($B$52, OS_A, 9, FALSE) ->  | E58: =VLOOKUP($B$52, OS_A, 11, FALSE) ->  | F58: =VLOOKUP($B$52, OS_A, 12, FALSE)*C58 -> 0
B60: =VLOOKUP($B$52, OS_A, 13, FALSE) -> None | D60: =VLOOKUP($B$52, OS_A, 15, FALSE) ->  | E60: =VLOOKUP($B$52, OS_A, 17, FALSE) ->  | F60: =VLOOKUP($B$52, OS_A, 18, FALSE)*C60 -> 0
B62: RAID Controller
B63: PERC H330 RAID Controller | C63: 1 | E63: [405-AAEF]
B65: Hard Drives
B66: 300GB 10K RPM SAS 12Gbps 2.5in Hot-plug Hard Drive | C66: 2 | E66: [400-AJPK]
B68: 300GB 10K RPM SAS 12Gbps 2.5in Hot-plug Hard Drive,CusKit | D68: =VLOOKUP($B$68, HDD_A,3, FALSE) -> 10L1-HDD300GB | E68: =VLOOKUP($B$68, HDD_A,5, FALSE) -> [400-AJOQ] | F68: =VLOOKUP($B$68, HDD_A,6, FALSE)*C68 -> 0
B70: 1TB 7.2K RPM NLSAS 6Gbps 2.5in Hot-plug Hard Drive,13G,CusKit | D70: =VLOOKUP($B$70, HDD_A,3, FALSE) -> 10L1-HDD1TB | E70: =VLOOKUP($B$70, HDD_A,5, FALSE) -> [400-AEFF] | F70: =VLOOKUP($B$70, HDD_A,6, FALSE)*C70 -> 0
B72: RAID Configuration HDD 300GB
B73: C3 - RAID 1 for H330 (2 HDDs) | C73: 1 | E73: =VLOOKUP($B$73, RAID_AAA1, 2, FALSE) -> [780-BBJK]
B74: Hot Spare for 300GB HDD | C74: No
B76: RAID Configuration HDD 1TB
C77: 1 | E77: =VLOOKUP($B$77, RAID_AAA2, 2, FALSE) -> 
B78: Hot Spare for 1TB HDD | C78: No
B80: Power Management BIOS Settings
B81: Performance BIOS Setting | C81: 1 | E81: [384-BBBL]
B83: Power Supply
B84: Dual, Hot-plug, Redundant Power Supply (1+1), 750W, Titanium, 200-240VAC | C84: 1 | E84: [450-ADWT]
B86: Power Cords
B87: Rack Power Cord 2M (C13/C14 12A) | C87: 2 | E87: [450-AADY]
B89: PCIe Riser
B90: =VLOOKUP(B29, CPU_A, 9, FALSE) -> Riser with up to 1, x8 PCIe Slots + 1, x16 PCIe Slots for x8, 2 PCIe Chassis with 1 Processor | C90: =VLOOKUP($B$29, CPU_A, 10, FALSE) -> 1 | E90: =VLOOKUP($B$29, CPU_A, 11, FALSE) -> [330-BBCS]
B92: Embedded Systems Management
B93: iDrac8, Enterprise | C93: 1 | E93: [385-BBHO]
B95: Network Daughter Card
B96: Broadcom 5720 QP 1Gb Network Daughter Card | C96: 1 | E96: [540-BBBW]
B98: Additional Card for PCIe Slot 1 (Low Profile)
B99: None | C99: =VLOOKUP($B$99, PCI_A1, 2, FALSE) ->  | D99: =VLOOKUP($B$99, PCI_A1, 3, FALSE) ->  | E99: =VLOOKUP($B$99, PCI_A1, 5, FALSE) ->  | F99: =VLOOKUP($B$99, PCI_A1, 6, FALSE) -> 
B101: Additional Card for PCIe Slot 2 (Full height)
B102: None | C102: =VLOOKUP($B$102, PCI_A2, 2, FALSE) ->  | D102: =VLOOKUP($B$102, PCI_A2, 3, FALSE) ->  | E102: =VLOOKUP($B$102, PCI_A2, 5, FALSE) ->  | F102: =VLOOKUP($B$102, PCI_A2, 6, FALSE) -> 
B104: Bezel
B105: Bezel 8 Drive Chassis | C105: 1 | E105: [325-BBII]
B107: Rack Rails
B108: ReadyRails™ Sliding Rails Without Cable Management Arm | C108: 1 | E108: [770-BBBC]
B110: Internal Optical Drive
B111: No Internal Optical Drive for 8 HDD Chassis | C111: 1 | E111: [429-AAQN]
B113: Server Accessories
B114: PowerEdge SFP+, 10GbE SR/SX, Optical Tranceiver, LC Connector, for Intel and Broadcom,CusKit | C114: =(VLOOKUP(B102,PCI_A2,8,FALSE))+((VLOOKUP(B99,PCI_A1,8,FALSE))) -> 0 | E114: [407-BBQE]
B116: System Documentation
B117: Electronic System Documentation and OpenManage DVD Kit | C117: 1 | E117: [343-BBDK]
B119: SHIPPING
B120: R630 Shipping - 8 Drive Chassis, EMEA1 (English/French/German/Spanish/Russian/Hebrew) | C120: 1 | E120: [340-AMIN]
B122: Order Information
B123: PowerEdge Order - EMEA | C123: 1 | E123: [800-11671]
B125: Base warranty
B126: 3Yr Basic Warranty - Next Business Day - Minimum Warranty | C126: 1 | E126: [709-12767][709-12768]
B128: Servizi di assitenza
B129: Dell Channel Order - Service Info only | C129: 1 | E129: [710-31085]
B131: Warranty Upgrades
B132: None | C132: =VLOOKUP($B$132, SO_A1, 2, FALSE) ->  | D132: =VLOOKUP($B$132, SO_A1, 3, FALSE) ->  | E132: =VLOOKUP($B$132, SO_A1, 5, FALSE) ->  | F132: =VLOOKUP($B$132, SO_A1, 6, FALSE) -> 
B134: Protezione dei dati - Keep Your Hard Drive
B135: None | C135: =VLOOKUP($B$135, SO_AAA2, 2, FALSE) ->  | D135: =VLOOKUP($B$135, SO_AAA2, 3, FALSE) ->  | E135: =VLOOKUP($B$135, SO_AAA2,5, FALSE) ->  | F135: =VLOOKUP($B$135, SO_AAA2, 6, FALSE) -> 
B137: Servizi di Installazione
B138: No Installation Service Selected | C138: 1 | E138: [683-11870]
B140: Channel only - Support Extension
B141: Channel 39M Basic Warranty - Next Business Day | C141: 1 | E141: [723-28776]
B143: Warranty Upgrades - Non-Std/Local POS
B144: CSTM CONSIP - 39M Onsite Labor Support for CRU for Servers with Basic Warranty | C144: 1 | E144: [681-24467]

Sheet Server10 Lotto1 R730xd 2 (hidden)
A5: Server10 Lotto1 R730xd | H5: List Price *
H6: =F17*C16 -> 
A11: Components: Server DELL PowerEdge R730xd (1CPU Intel® Xeon® E5-2630L v3, 32GB RDIMM, 2xHDD 300GB 10K RPM SAS 12Gbps 2.5in)
A15: PowerEdge R730xd | B15: Category: Server | F15: =1728 -> 1728
B16: Quantity: | F16: =SUM(F20:F154) -> 
F17: =SUM(F15:F16) -> 
B19: Base
B20: PowerEdge R730xd Server, TPM | C20: 1 | E20: [210-ADBC][461-AACZ][591-BBCH]
B22: Chassis Configuration
B23: Chassis with up to 24, 2.5" Hard Drives | C23: 1 | E23: [350-BBFD]
B25: Processor
B26: Intel® Xeon® E5-2630L v3 1.8GHz,20M Cache,8.00GT/s QPI,Turbo,HT,8C/16T (55W) Max Mem 1866MHz | C26: 1 | E26: [338-BFFR]
B28: Additional Processor
B29: No Additional Processor | C29: =VLOOKUP($B$29, CPU_B, 2, FALSE) -> 0 | D29: =VLOOKUP($B$29, CPU_B, 3, FALSE) ->  | E29: =VLOOKUP($B$29, CPU_B, 5, FALSE) -> [374-BBBX] | F29: =VLOOKUP(B29, CPU_B, 12, FALSE) -> 
B31: Processor Thermal Configuration
B32: 1 CPU Standard | C32: 1 | E32: [370-ABWF][374-BBHM][750-AAEL]
B33: =VLOOKUP($B$29, CPU_B, 6, FALSE) ->  | C33: =VLOOKUP($B$29, CPU_B, 7, FALSE) ->  | E33: =VLOOKUP($B$29, CPU_B, 8, FALSE) -> 
B35: Memory Configuration Type
B36: Performance Optimized | C36: 1 | E36: [370-AAIP]
B38: Total Memory in GB | D38: =IF(('Server10 Lotto1 R730xd 2'!$D$12=0),"",'Server10 Lotto1 R730xd 2'!#REF!) -> 
B39: 32
B41: Memory DIMM Type and Speed
B42: 2133MT/s RDIMMs | C42: 1 | E42: [370-ABUF]
B44: Memory Capacity
B45: =IF($B$29="No Additional Processor",VLOOKUP($B$39, MEM_B1, 8, FALSE),VLOOKUP($B$39, MEM_B2, 8, FALSE)) ->  | C45: =IF($B$29="No Additional Processor",VLOOKUP($B$39, MEM_B1, 9, FALSE),VLOOKUP($B$39, MEM_B2, 9, FALSE)) ->  | E45: =IF($B$29="No Additional Processor",VLOOKUP($B$39, MEM_B1, 10, FALSE),VLOOKUP($B$39, MEM_B2, 10, FALSE)) -> 
B47: =IF($B$29="No Additional Processor",VLOOKUP($B$39, MEM_B1, 2, FALSE),VLOOKUP($B$39, MEM_B2, 2, FALSE)) ->  | C47: =IF($B$29="No Additional Processor",VLOOKUP($B$39, MEM_B1, 3, FALSE),VLOOKUP($B$39, MEM_B2, 3, FALSE)) ->  | D47: =IF($B$29="No Additional Processor",VLOOKUP($B$39, MEM_B1, 4, FALSE),VLOOKUP($B$39, MEM_B2, 4, FALSE)) ->  | E47: =IF($B$29="No Additional Processor",VLOOKUP($B$39, MEM_B1, 6, FALSE),VLOOKUP($B$39, MEM_B2, 6, FALSE)) ->  | F47: =IF($B$29="No Additional Processor",VLOOKUP($B$39, MEM_B1, 7, FALSE),VLOOKUP($B$39, MEM_B2, 7, FALSE)) -> 
B49: =IF($B$29="No Additional Processor",VLOOKUP($B$39, MEM_B1, 11, FALSE),VLOOKUP($B$39, MEM_B2, 11, FALSE)) ->  | C49: =IF($B$29="No Additional Processor",VLOOKUP($B$39, MEM_B1, 12, FALSE),VLOOKUP($B$39, MEM_B2, 12, FALSE)) ->  | D49: =IF($B$29="No Additional Processor",VLOOKUP($B$39, MEM_B1, 13, FALSE),VLOOKUP($B$39, MEM_B2, 13, FALSE)) ->  | E49: =IF($B$29="No Additional Processor",VLOOKUP($B$39, MEM_B1, 15, FALSE),VLOOKUP($B$39, MEM_B2, 15, FALSE)) ->  | F49: =IF($B$29="No Additional Processor",VLOOKUP($B$39, MEM_B1, 16, FALSE),VLOOKUP($B$39, MEM_B2, 16, FALSE)) -> 
B51: Operating System
B52: No Operating System | C52: =VLOOKUP($B$52, OS_B, 2, FALSE) ->  | D52: =VLOOKUP($B$52, OS_B, 3, FALSE) ->  | E52: =VLOOKUP($B$52, OS_B, 5, FALSE) -> [611-BBBF] | F52: =VLOOKUP($B$52, OS_B, 6, FALSE) -> 
B54: OS Media Kits
B55: No Media Required | C55: 1 | E55: [605-BBFN]
B57: Client Access Licenses
B58: =VLOOKUP($B$52, OS_B, 7, FALSE) -> None | D58: =VLOOKUP($B$52, OS_B, 9, FALSE) ->  | E58: =VLOOKUP($B$52, OS_B, 11, FALSE) ->  | F58: =VLOOKUP($B$52, OS_B, 12, FALSE)*C58 -> 0
B60: =VLOOKUP($B$52, OS_B, 13, FALSE) -> None | D60: =VLOOKUP($B$52, OS_B, 15, FALSE) ->  | E60: =VLOOKUP($B$52, OS_B, 17, FALSE) ->  | F60: =VLOOKUP($B$52, OS_B, 18, FALSE)*C60 -> 0
B62: RAID Controller
B63: PERC H330 RAID Controller | C63: 1 | E63: [405-AAEF]
B65: Hard Drives
B66: 300GB 10K RPM SAS 12Gbps 2.5in Hot-plug Hard Drive | C66: 2 | E66: [400-AJPK]
B68: 300GB 10K RPM SAS 12Gbps 2.5in Hot-plug Hard Drive,CusKit | D68: =VLOOKUP($B$68, HDD_A,3, FALSE) -> 10L1-HDD300GB | E68: =VLOOKUP($B$68, HDD_A,5, FALSE) -> [400-AJOQ] | F68: =VLOOKUP($B$68, HDD_A,6, FALSE)*C68 -> 0
B70: 1TB 7.2K RPM NLSAS 6Gbps 2.5in Hot-plug Hard Drive,13G,CusKit | D70: =VLOOKUP($B$70, HDD_A,3, FALSE) -> 10L1-HDD1TB | E70: =VLOOKUP($B$70, HDD_A,5, FALSE) -> [400-AEFF] | F70: =VLOOKUP($B$70, HDD_A,6, FALSE)*C70 -> 0
B72: RAID Configuration HDD 300GB
B73: C3 - RAID 1 for H330 (2 HDDs) | C73: 1 | E73: =VLOOKUP($B$73, RAID_BB1, 2, FALSE) -> [780-BBJK]
B74: Hot Spare for 300GB HDD | C74: No
B76: RAID Configuration HDD 1TB
C77: 1 | E77: =VLOOKUP($B$77, RAID_BB2, 2, FALSE) -> 
B78: Hot Spare for 1TB HDD | C78: No
B80: Power Management BIOS Settings
B81: Performance BIOS Setting | C81: 1 | E81: [384-BBBL]
B83: Power Supply
B84: Dual, Hot-plug, Redundant Power Supply (1+1), 750W, Titanium, 200-240VAC | C84: 1 | E84: [450-ADWT]
B86: Power Cords
B87: Rack Power Cord 2M (C13/C14 12A) | C87: 2 | E87: [450-AADY]
B89: PCIe Riser
B90: Risers with up to 4, x8 PCIe Slots + 2, x16 PCIe Slots | C90: 1 | E90: [330-BBCO][330-BBCR]
B92: Embedded Systems Management
B93: iDRAC8 Enterprise, integrated Dell Remote Access Controller, Enterprise | C93: 1 | E93: [385-BBHO]
B95: Network Daughter Card
B96: Broadcom 5720 QP 1Gb Network Daughter Card | C96: 1 | E96: [540-BBBW]
B98: Additional Card for PCIe Slot 1 (Full height) (CPU 1)
B99: None | C99: =VLOOKUP($B$99, PCI_B1, 2, FALSE) ->  | D99: =VLOOKUP($B$99, PCI_B1, 3, FALSE) ->  | E99: =VLOOKUP($B$99, PCI_B1, 5, FALSE) ->  | F99: =VLOOKUP($B$99, PCI_B1, 6, FALSE) -> 
B101: Additional Card for PCIe Slot 2 (Full height) (CPU 1)
B102: None | C102: =VLOOKUP($B$102, PCI_B2, 2, FALSE) ->  | D102: =VLOOKUP($B$102, PCI_B2, 3, FALSE) ->  | E102: =VLOOKUP($B$102, PCI_B2, 5, FALSE) ->  | F102: =VLOOKUP($B$102, PCI_B2, 6, FALSE) -> 
B104: Additional Card for PCIe Slot 3 (Full height) (CPU 1)
B105: None | C105: =VLOOKUP($B$105, PCI_B3, 2, FALSE) ->  | D105: =VLOOKUP($B$105, PCI_B3, 3, FALSE) ->  | E105: =VLOOKUP($B$105, PCI_B3, 5, FALSE) ->  | F105: =VLOOKUP($B$105, PCI_B3, 6, FALSE) -> 
B107: Additional Card for PCIe Slot 4 (Low Profile) (CPU 2)
B108: None | C108: =VLOOKUP($B$108, PCI_B4, 2, FALSE) ->  | D108: =VLOOKUP($B$108, PCI_B4, 3, FALSE) ->  | E108: =VLOOKUP($B$108, PCI_B4, 5, FALSE) ->  | F108: =VLOOKUP($B$108, PCI_B4, 6, FALSE) -> 
B110: Additional Card for PCIe Slot 5 (Low Profile) (CPU 2)
B111: None | C111: =VLOOKUP($B$111, PCI_B5, 2, FALSE) ->  | D111: =VLOOKUP($B$111, PCI_B5, 3, FALSE) ->  | E111: =VLOOKUP($B$111, PCI_B5, 5, FALSE) ->  | F111: =VLOOKUP($B$111, PCI_B5, 6, FALSE) -> 
B113: Additional Card for PCIe Slot 6 (Low Profile) (CPU 2)
B114: None | C114: =VLOOKUP($B$114, PCI_B5, 2, FALSE) ->  | D114: =VLOOKUP($B$114, PCI_B5, 3, FALSE) ->  | E114: =VLOOKUP($B$114, PCI_B5, 5, FALSE) ->  | F114: =VLOOKUP($B$114, PCI_B5, 6, FALSE) -> 
B116: Bezel
B117: Bezel | C117: 1 | E117: [350-BBEJ]
B119: Rack Rails
B120: ReadyRails™ Sliding Rails Without Cable Management Arm | C120: 1 | E120: [770-BBBQ]
B122: Server Accessories
B123: PowerEdge SFP+, 10GbE SR/SX, Optical Tranceiver, LC Connector, for Intel and Broadcom,CusKit | C123: =(VLOOKUP(B114,PCI_A2,8,FALSE))+((VLOOKUP(B99,PCI_A1,8,FALSE))) -> 0 | E123: [407-BBQE]
B125: System Documentation
B126: Electronic System Documentation and OpenManage DVD Kit | C126: 1 | E126: [631-AAJG]
B128: SHIPPING
B129: PowerEdge R730xd Shipping EMEA1 (English/French/German/Spanish/Russian/Hebrew) | C129: 1 | E129: [340-AMGS]
B131: Order Information
B132: PowerEdge Order - EMEA | C132: 1 | E132: [800-11671]
B134: Base warranty
B135: 3Yr Basic Warranty - Next Business Day - Minimum Warranty | C135: 1 | E135: [709-12780][709-12781]
B137: Servizi di assitenza
B138: Dell Channel Order - Service Info only | C138: 1 | E138: [710-31085]
B140: Warranty Upgrades
B141: None | C141: =VLOOKUP($B$141, SO_B1,2, FALSE) ->  | D141: =VLOOKUP($B$141, SO_B1, 3, FALSE) ->  | E141: =VLOOKUP($B$141, SO_B1, 5, FALSE) ->  | F141: =VLOOKUP($B$141, SO_B1, 6, FALSE) -> 
B143: Protezione dei dati - Keep Your Hard Drive
B144: None | C144: =VLOOKUP($B$144, SO_BB2, 2, FALSE) ->  | D144: =VLOOKUP($B$144, SO_BB2, 3, FALSE) ->  | E144: =VLOOKUP($B$144, SO_BB2,5, FALSE) ->  | F144: =VLOOKUP($B$144, SO_BB2, 6, FALSE) -> 
B146: Servizi di Installazione
B147: No Installation Service Selected | C147: 1 | E147: [683-11870]
B149: Channel only - Support Extension
B150: Channel 39M Basic Warranty - Next Business Day | C150: 1 | E150: [723-28780]
B152: Warranty Upgrades - Non-Std/Local POS
B153: CSTM CONSIP - 39M Onsite Labor Support for CRU for Servers with Basic Warranty | C153: 1 | E153: [681-24467]

Sheet Server10 Lotto1 R730xd 3 (hidden)
A5: Server10 Lotto1 R730xd | H5: List Price *
H6: =F17*C16 -> 
A11: Components: Server DELL PowerEdge R730xd (1CPU Intel® Xeon® E5-2630L v3, 32GB RDIMM, 2xHDD 300GB 10K RPM SAS 12Gbps 2.5in)
A15: PowerEdge R730xd | B15: Category: Server | F15: =1728 -> 1728
B16: Quantity: | F16: =SUM(F20:F154) -> 
F17: =SUM(F15:F16) -> 
B19: Base
B20: PowerEdge R730xd Server, TPM | C20: 1 | E20: [210-ADBC][461-AACZ][591-BBCH]
B22: Chassis Configuration
B23: Chassis with up to 24, 2.5" Hard Drives | C23: 1 | E23: [350-BBFD]
B25: Processor
B26: Intel® Xeon® E5-2630L v3 1.8GHz,20M Cache,8.00GT/s QPI,Turbo,HT,8C/16T (55W) Max Mem 1866MHz | C26: 1 | E26: [338-BFFR]
B28: Additional Processor
B29: No Additional Processor | C29: =VLOOKUP($B$29, CPU_B, 2, FALSE) -> 0 | D29: =VLOOKUP($B$29, CPU_B, 3, FALSE) ->  | E29: =VLOOKUP($B$29, CPU_B, 5, FALSE) -> [374-BBBX] | F29: =VLOOKUP(B29, CPU_B, 12, FALSE) -> 
B31: Processor Thermal Configuration
B32: 1 CPU Standard | C32: 1 | E32: [370-ABWF][374-BBHM][750-AAEL]
B33: =VLOOKUP($B$29, CPU_B, 6, FALSE) ->  | C33: =VLOOKUP($B$29, CPU_B, 7, FALSE) ->  | E33: =VLOOKUP($B$29, CPU_B, 8, FALSE) -> 
B35: Memory Configuration Type
B36: Performance Optimized | C36: 1 | E36: [370-AAIP]
B38: Total Memory in GB | D38: =IF(('Server10 Lotto1 R730xd 3'!$D$12=0),"",'Server10 Lotto1 R730xd 3'!#REF!) -> 
B39: 32
B41: Memory DIMM Type and Speed
B42: 2133MT/s RDIMMs | C42: 1 | E42: [370-ABUF]
B44: Memory Capacity
B45: =IF($B$29="No Additional Processor",VLOOKUP($B$39, MEM_B1, 8, FALSE),VLOOKUP($B$39, MEM_B2, 8, FALSE)) ->  | C45: =IF($B$29="No Additional Processor",VLOOKUP($B$39, MEM_B1, 9, FALSE),VLOOKUP($B$39, MEM_B2, 9, FALSE)) ->  | E45: =IF($B$29="No Additional Processor",VLOOKUP($B$39, MEM_B1, 10, FALSE),VLOOKUP($B$39, MEM_B2, 10, FALSE)) -> 
B47: =IF($B$29="No Additional Processor",VLOOKUP($B$39, MEM_B1, 2, FALSE),VLOOKUP($B$39, MEM_B2, 2, FALSE)) ->  | C47: =IF($B$29="No Additional Processor",VLOOKUP($B$39, MEM_B1, 3, FALSE),VLOOKUP($B$39, MEM_B2, 3, FALSE)) ->  | D47: =IF($B$29="No Additional Processor",VLOOKUP($B$39, MEM_B1, 4, FALSE),VLOOKUP($B$39, MEM_B2, 4, FALSE)) ->  | E47: =IF($B$29="No Additional Processor",VLOOKUP($B$39, MEM_B1, 6, FALSE),VLOOKUP($B$39, MEM_B2, 6, FALSE)) ->  | F47: =IF($B$29="No Additional Processor",VLOOKUP($B$39, MEM_B1, 7, FALSE),VLOOKUP($B$39, MEM_B2, 7, FALSE)) -> 
B49: =IF($B$29="No Additional Processor",VLOOKUP($B$39, MEM_B1, 11, FALSE),VLOOKUP($B$39, MEM_B2, 11, FALSE)) ->  | C49: =IF($B$29="No Additional Processor",VLOOKUP($B$39, MEM_B1, 12, FALSE),VLOOKUP($B$39, MEM_B2, 12, FALSE)) ->  | D49: =IF($B$29="No Additional Processor",VLOOKUP($B$39, MEM_B1, 13, FALSE),VLOOKUP($B$39, MEM_B2, 13, FALSE)) ->  | E49: =IF($B$29="No Additional Processor",VLOOKUP($B$39, MEM_B1, 15, FALSE),VLOOKUP($B$39, MEM_B2, 15, FALSE)) ->  | F49: =IF($B$29="No Additional Processor",VLOOKUP($B$39, MEM_B1, 16, FALSE),VLOOKUP($B$39, MEM_B2, 16, FALSE)) -> 
B51: Operating System
B52: No Operating System | C52: =VLOOKUP($B$52, OS_B, 2, FALSE) ->  | D52: =VLOOKUP($B$52, OS_B, 3, FALSE) ->  | E52: =VLOOKUP($B$52, OS_B, 5, FALSE) -> [611-BBBF] | F52: =VLOOKUP($B$52, OS_B, 6, FALSE) -> 
B54: OS Media Kits
B55: No Media Required | C55: 1 | E55: [605-BBFN]
B57: Client Access Licenses
B58: =VLOOKUP($B$52, OS_B, 7, FALSE) -> None | D58: =VLOOKUP($B$52, OS_B, 9, FALSE) ->  | E58: =VLOOKUP($B$52, OS_B, 11, FALSE) ->  | F58: =VLOOKUP($B$52, OS_B, 12, FALSE)*C58 -> 0
B60: =VLOOKUP($B$52, OS_B, 13, FALSE) -> None | D60: =VLOOKUP($B$52, OS_B, 15, FALSE) ->  | E60: =VLOOKUP($B$52, OS_B, 17, FALSE) ->  | F60: =VLOOKUP($B$52, OS_B, 18, FALSE)*C60 -> 0
B62: RAID Controller
B63: PERC H330 RAID Controller | C63: 1 | E63: [405-AAEF]
B65: Hard Drives
B66: 300GB 10K RPM SAS 12Gbps 2.5in Hot-plug Hard Drive | C66: 2 | E66: [400-AJPK]
B68: 300GB 10K RPM SAS 12Gbps 2.5in Hot-plug Hard Drive,CusKit | C68: 0 | D68: =VLOOKUP($B$68, HDD_A,3, FALSE) -> 10L1-HDD300GB | E68: =VLOOKUP($B$68, HDD_A,5, FALSE) -> [400-AJOQ] | F68: =VLOOKUP($B$68, HDD_A,6, FALSE)*C68 -> 0
B70: 1TB 7.2K RPM NLSAS 6Gbps 2.5in Hot-plug Hard Drive,13G,CusKit | C70: 0 | D70: =VLOOKUP($B$70, HDD_A,3, FALSE) -> 10L1-HDD1TB | E70: =VLOOKUP($B$70, HDD_A,5, FALSE) -> [400-AEFF] | F70: =VLOOKUP($B$70, HDD_A,6, FALSE)*C70 -> 0
B72: RAID Configuration HDD 300GB
B73: C4 - RAID 5 for H330 (3-8 HDDs) | C73: 1 | E73: =VLOOKUP($B$73, RAID_BBB1, 2, FALSE) -> 
B74: Hot Spare for 300GB HDD | C74: No
B76: RAID Configuration HDD 1TB
C77: 1 | E77: =VLOOKUP($B$77, RAID_BBB2, 2, FALSE) -> 
B78: Hot Spare for 1TB HDD | C78: No
B80: Power Management BIOS Settings
B81: Performance BIOS Setting | C81: 1 | E81: [384-BBBL]
B83: Power Supply
B84: Dual, Hot-plug, Redundant Power Supply (1+1), 750W, Titanium, 200-240VAC | C84: 1 | E84: [450-ADWT]
B86: Power Cords
B87: Rack Power Cord 2M (C13/C14 12A) | C87: 2 | E87: [450-AADY]
B89: PCIe Riser
B90: Risers with up to 4, x8 PCIe Slots + 2, x16 PCIe Slots | C90: 1 | E90: [330-BBCO][330-BBCR]
B92: Embedded Systems Management
B93: iDRAC8 Enterprise, integrated Dell Remote Access Controller, Enterprise | C93: 1 | E93: [385-BBHO]
B95: Network Daughter Card
B96: Broadcom 5720 QP 1Gb Network Daughter Card | C96: 1 | E96: [540-BBBW]
B98: Additional Card for PCIe Slot 1 (Full height) (CPU 1)
B99: None | C99: =VLOOKUP($B$99, PCI_B1, 2, FALSE) ->  | D99: =VLOOKUP($B$99, PCI_B1, 3, FALSE) ->  | E99: =VLOOKUP($B$99, PCI_B1, 5, FALSE) ->  | F99: =VLOOKUP($B$99, PCI_B1, 6, FALSE) -> 
B101: Additional Card for PCIe Slot 2 (Full height) (CPU 1)
B102: None | C102: =VLOOKUP($B$102, PCI_B2, 2, FALSE) ->  | D102: =VLOOKUP($B$102, PCI_B2, 3, FALSE) ->  | E102: =VLOOKUP($B$102, PCI_B2, 5, FALSE) ->  | F102: =VLOOKUP($B$102, PCI_B2, 6, FALSE) -> 
B104: Additional Card for PCIe Slot 3 (Full height) (CPU 1)
B105: None | C105: =VLOOKUP($B$105, PCI_B3, 2, FALSE) ->  | D105: =VLOOKUP($B$105, PCI_B3, 3, FALSE) ->  | E105: =VLOOKUP($B$105, PCI_B3, 5, FALSE) ->  | F105: =VLOOKUP($B$105, PCI_B3, 6, FALSE) -> 
B107: Additional Card for PCIe Slot 4 (Low Profile) (CPU 2)
B108: None | C108: =VLOOKUP($B$108, PCI_B4, 2, FALSE) ->  | D108: =VLOOKUP($B$108, PCI_B4, 3, FALSE) ->  | E108: =VLOOKUP($B$108, PCI_B4, 5, FALSE) ->  | F108: =VLOOKUP($B$108, PCI_B4, 6, FALSE) -> 
B110: Additional Card for PCIe Slot 5 (Low Profile) (CPU 2)
B111: None | C111: =VLOOKUP($B$111, PCI_B5, 2, FALSE) ->  | D111: =VLOOKUP($B$111, PCI_B5, 3, FALSE) ->  | E111: =VLOOKUP($B$111, PCI_B5, 5, FALSE) ->  | F111: =VLOOKUP($B$111, PCI_B5, 6, FALSE) -> 
B113: Additional Card for PCIe Slot 6 (Low Profile) (CPU 2)
B114: None | C114: =VLOOKUP($B$114, PCI_B5, 2, FALSE) ->  | D114: =VLOOKUP($B$114, PCI_B5, 3, FALSE) ->  | E114: =VLOOKUP($B$114, PCI_B5, 5, FALSE) ->  | F114: =VLOOKUP($B$114, PCI_B5, 6, FALSE) -> 
B116: Bezel
B117: Bezel | C117: 1 | E117: [350-BBEJ]
B119: Rack Rails
B120: ReadyRails™ Sliding Rails Without Cable Management Arm | C120: 1 | E120: [770-BBBQ]
B122: Server Accessories
B123: PowerEdge SFP+, 10GbE SR/SX, Optical Tranceiver, LC Connector, for Intel and Broadcom,CusKit | C123: =(VLOOKUP(B114,PCI_A2,8,FALSE))+((VLOOKUP(B99,PCI_A1,8,FALSE))) -> 0 | E123: [407-BBQE]
B125: System Documentation
B126: Electronic System Documentation and OpenManage DVD Kit | C126: 1 | E126: [631-AAJG]
B128: SHIPPING
B129: PowerEdge R730xd Shipping EMEA1 (English/French/German/Spanish/Russian/Hebrew) | C129: 1 | E129: [340-AMGS]
B131: Order Information
B132: PowerEdge Order - EMEA | C132: 1 | E132: [800-11671]
B134: Base warranty
B135: 3Yr Basic Warranty - Next Business Day - Minimum Warranty | C135: 1 | E135: [709-12780][709-12781]
B137: Servizi di assitenza
B138: Dell Channel Order - Service Info only | C138: 1 | E138: [710-31085]
B140: Warranty Upgrades
B141: None | C141: =VLOOKUP($B$141, SO_B1,2, FALSE) ->  | D141: =VLOOKUP($B$141, SO_B1, 3, FALSE) ->  | E141: =VLOOKUP($B$141, SO_B1, 5, FALSE) ->  | F141: =VLOOKUP($B$141, SO_B1, 6, FALSE) -> 
B143: Protezione dei dati - Keep Your Hard Drive
B144: None | C144: =VLOOKUP($B$144, SO_BBB2, 2, FALSE) ->  | D144: =VLOOKUP($B$144, SO_BBB2, 3, FALSE) ->  | E144: =VLOOKUP($B$144, SO_BBB2,5, FALSE) ->  | F144: =VLOOKUP($B$144, SO_BBB2, 6, FALSE) -> 
B146: Servizi di Installazione
B147: No Installation Service Selected | C147: 1 | E147: [683-11870]
B149: Channel only - Support Extension
B150: Channel 39M Basic Warranty - Next Business Day | C150: 1 | E150: [723-28780]
B152: Warranty Upgrades - Non-Std/Local POS
B153: CSTM CONSIP - 39M Onsite Labor Support for CRU for Servers with Basic Warranty | C153: 1 | E153: [681-24467]

Sheet Codici (hidden)
A1: Codici
A2: 10L3-250HC-U | B2: DC BOX sddc | C2: 75694 | D2: 1 | E2: ConvergedSystem 250-HC StoreVirtual System
A3: ="" ->  | B3: ="" ->  | C3: ="" ->  | D3: ="" ->  | E3: ="" -> 
A4: 10L3-16GB-HP-U | B4: OpzRam16 | C4: 143 | D4: 1 | E4: Kit Upgrade Ram 16GB
A5: 10L3-32GB-HP-U | B5: OpzRam32 | C5: 286 | D5: 1 | E5: Kit Upgrade Ram 32GB
A6: 10L3-SWITCH | B6: OpzSwitchRete | C6: 1947 | D6: 1 | E6: HP 5130-24G-4SFP+ EI Switch
A7: 10L3-HD300-HP-U | B7: OpzStorage300 | C7: 136 | D7: 1 | E7: HDD 300GB SAS
A8: 10L3-HD1TB-HP-U | B8: OpzStorage1Tb | C8: 220 | D8: 1 | E8: HDD 1.2TB SAS
A9: 10L3-UPS | B9: OpzUPS 3000VA | C9: 502 | D9: 1 | E9: UPS MSR 3000 VA
A10: 10L3-GUI | B10: OpzGUIRack | C10: 493 | D10: 1 | E10: Console KVM per rack
A11: 10L3-KVMIP | B11: OpzSWGUIRack | C11: 550 | D11: 1 | E11: KVM Switch IP per GUI con cavi
A12: 10L3-RACK | B12: OpzRack | C12: 564 | E12: Armadio Rack 42U
A13: 10L3-SO-AVV | B13: Package 5 WM avvio | C13: 1500 | D13: 1 | E13: Servizio di creazione, configurazione e installazione fino a 5 VM
A14: 10L3-SO-MIG | B14: Package 5 WM migrazione | C14: 1500 | D14: 1 | E14: Servizio di migrazione server fisico a virtuale fino a 5 VM
A16: 10L1-R730xd | B16: Server scalabile storage | C16: 1728 | D16: 1 | E16: DELL PowerEdge R730xd
A17: ="" ->  | B17: ="" ->  | C17: ="" ->  | D17: ="" ->  | E17: ="" -> 
A18: 10L1-WIN | B18: OpzWinServ1 | C18: 505 | D18: 1 | E18: WIN SERVER 2012 Standard
A19: 10L1-CALDEV | B19: OpzDeviceCal | C19: 25 | D19: 1 | E19: MS Windows Srv 2012 CAL 1 DEV
D20: 1 | E20: CS_Consip9_Windows Server CAL 2012 Italian 1pk DSP OEI 1 Clt Device CAL
A21: 10L1-CALUSER | B21: OpzUserCal | C21: 25 | D21: 1 | E21: MS Windows Srv 2012 CAL 1 USR
D22: 1 | E22: CS_Consip9_Windows Server CAL 2012 Italian 1pk DSP OEI 1 Clt User CAL
A23: 10L1-LINUX | B23: OpzOpenSource | C23: 45 | D23: 1 | E23: DVD Linux Centos 7.x
A24: 10L1-CPU-S | B24: Opz1P | C24: 500 | D24: 1 | E24: Xeon Processor E5-2630L V3
D25: 1 | E25: Kit - 1.2U CPU Heatsink for PowerEdge R730xd (CPU with 105W or less)
A27: 10L1-16GB | B27: OpzRam16 | C27: 160 | D27: 1 | E27: Kit Upgrade Ram 16GB
A28: 10L1-32GB | B28: OpzRam32 | C28: 320 | D28: 1 | E28: Kit Upgrade Ram 32GB
A29: 10L1-32GB-L | B29: OpzRam32 | C29: 320 | D29: 1 | E29: Kit Upgrade Ram 32GB
A30: 10L1-64GB | B30: OpzRam64 | C30: 644 | D30: 1 | E30: Kit Upgrade Ram 64GB
A31: 10L1-LAN1GB-LP | B31: OpzGigabit | C31: 35 | D31: 1 | E31: Scheda Lan Gigabit Low
A32: 10L1-LAN1GB | B32: OpzGigabit | C32: 35 | D32: 1 | E32: Scheda Lan Gigabit Full
A33: 10L1-LAN10GB-LP | B33: OpzGigabit 10GB | C33: 417 | D33: 1 | E33: QLogic 57810 Dual Port 10Gb Low
D34: 2 | E34: PowerEdge SFP+, 10GbE SR/SX, Optical Tranceiver, LC Connector, for Intel and Broadcom,CusKit
A35: 10L1-LAN10GB | B35: OpzGigabit 10GB | C35: 417 | D35: 1 | E35: QLogic 57810 Dual Port 10Gb Full
D36: 2 | E36: PowerEdge SFP+, 10GbE SR/SX, Optical Tranceiver, LC Connector, for Intel and Broadcom,CusKit
A37: 10L1-CNA10-LP | B37: OpzGigabit 10GB CNA | C37: 774 | D37: 1 | E37: QLogic 57810 Dual Port 10Gb CNA Low
D38: 2 | E38: PowerEdge SFP+, 10GbE SR/SX, Optical Tranceiver, LC Connector, for Intel and Broadcom,CusKit
A39: 10L1-CNA10 | B39: OpzGigabit 10GB CNA | C39: 774 | D39: 1 | E39: QLogic 57810 DualPort 10GbCNA Full
D40: 2 | E40: PowerEdge SFP+, 10GbE SR/SX, Optical Tranceiver, LC Connector, for Intel and Broadcom,CusKit
A41: 10L1-HDD300GB | B41: OpzStorage300 | C41: 140 | D41: 1 | E41: HDD 300GB SAS
A42: 10L1-HDD1TB | B42: OpzStorage1Tb | C42: 296 | D42: 1 | E42: HDD 1TB NLSAS
A43: 10L1-FC-LP | B43: OpzFibreChannel | C43: 940 | D43: 1 | E43: Emulex LPE12002 Low
A44: 10L1-FC | B44: OpzFibreChannel | C44: 940 | D44: 1 | E44: Emulex LPE 12002 Full
A47: 10L1-UPS | B47: OpzUPS 3000VA | C47: 422 | D47: 1 | E47: UPS MSR 3000 VA
A49: 10L1-GUI | B49: OpzGUIRack | C49: 461 | D49: 1 | E49: Console KVM per rack
A50: 10L1-KVMIP | B50: OpzSWGUIRack | C50: 550 | D50: 1 | E50: KVM Switch IP per GUI con cavi
A54: 10L1-RACK | B54: OpzRack | C54: 497 | E54: Armadio Rack 42U
A56: 10L1-SO-WIN | B56: ServOpzSysManWindows | C56: 193 | D56: 1 | E56: System-Network Mng. svc Windows
A57: 10L1-SO-LINUX | B57: ServOpzSysManOS | C57: 193 | D57: 1 | E57: System-Network Mng. svc Linux
A58: 10L1-SO-PREV | B58: Manutenzione Preventiva | C58: 193 | D58: 1 | E58: Servizi di manutenzione Preventiva
A59: 10L1-SO-HDD | B59: Hard-Disk retention | C59: 150 | D59: 1 | E59: Servizio HDD Retention
D60: 1 | E60: Servizio HDD Retention 36 mesi
D61: 1 | E61: Servizio HDD Retention 48 mesi
D62: 1 | E62: Servizio HDD Retention 60 mesi
A63: 10L1-SO-12M-S | B63: OpzEstensione12 | C63: 175 | D63: 1 | E63: Estensione garanzia 12 mesi Agg.
A64: 10L1-SO-24M-S | B64: OpzEstensione24 | C64: 350 | D64: 1 | E64: Estensione garanzia 24 mesi Agg.
A66: 10L3-VRTX-U | B66: DC BOX general purpose | C66: 10281 | D66: 1 | E66: DELL PowerEdge VRTX
A67: 10L3-CPU-U | B67: Opz1P | C67: 677 | D67: 1 | E67: Intel Xeon Processor E5-2620 V4 (Intel Xeon E5-2620 v4 2.1GHz,20M Cache,8.0GT/s QPI,Turbo,HT,8C/16T)
A68: 10L3-16GB-VRTX | B68: OpzRam16 | C68: 160 | D68: 1 | E68: Kit Upgrade Ram 16GB V4 (16GB RDIMM, 2400MT/s, Dual Rank, x8 Data Width,CusKit)
A69: 10L3-32GB-VRTX | B69: OpzRam32 | C69: 319 | D69: 1 | E69: Kit Upgrade Ram 32GB V4 (32GB RDIMM, 2400MT/s, Dual Rank, x4 Data Width,CusKit)
A70: 10L3-LAN1GB | B70: OpzGigabit | C70: 37 | D70: 1 | E70: Scheda Lan Gigabit Full (Broadcom 5720 DP 1Gb Network Interface Card,Full Height,CusKit)
A71: 10L3-LAN1GB-LP | B71: OpzGigabit | C71: 37 | D71: 1 | E71: Scheda Lan Gigabit Low (Broadcom 5720 DP 1Gb Network Interface Card, Low Profile,CusKit)
A72: 10L3-BLADE-U | B72: OpzLama | C72: 2009 | D72: 1 | E72: PowerEdge M630 Blade Server
A73: 10L3-LAN10GB | B73: OpzGigabit 10GB | C73: 416 | D73: 1 | E73: Broadcom 57810 DP (Broadcom 57810 DP 10Gb DA/SFP+ Full Height,CusKit)
D74: 2 | E74: PowerEdge SFP+, 10GbE SR/SX, Optical Tranceiver, LC Connector, for Intel and Broadcom,CusKit
A75: 10L3-LAN10GB-LP | B75: OpzGigabit 10GB | C75: 416 | D75: 1 | E75: Broadcom 57810 DP Low (Broadcom 57810 DP 10Gb DA/SFP+ Low Profile,CusKit)
D76: 2 | E76: PowerEdge SFP+, 10GbE SR/SX, Optical Tranceiver, LC Connector, for Intel and Broadcom,CusKit
A77: 10L3-CNA10 | B77: OpzGigabit 10GB CNA | C77: 425 | D77: 1 | E77: Broadcom 57810 DP CNA (Broadcom 57810 DP 10Gb DA/SFP+ Converged Network Adapter (CNA) Full Height,CusKit)
D78: 2 | E78: PowerEdge SFP+, 10GbE SR/SX, Optical Tranceiver, LC Connector, for Intel and Broadcom,CusKit
A79: 10L3-CNA10-LP | B79: OpzGigabit 10GB CNA | C79: 425 | D79: 1 | E79: Broadcom 57810 DP CNA Low (Broadcom 57810 DP 10Gb DA/SFP+ Converged Network Adapter (CNA) Low Profile,CusKit)
D80: 2 | E80: PowerEdge SFP+, 10GbE SR/SX, Optical Tranceiver, LC Connector, for Intel and Broadcom,CusKit
A81: 10L3-HDD300GB-DELL | B81: OpzStorage300 | C81: 93 | D81: 1 | E81: HDD 300GB SAS (300GB 10K RPM SAS 12Gbps 2.5in Hot-plug Hard Drive)
A82: 10L3-HDD1TB-DELL | B82: OpzStorage1Tb | C82: 217 | D82: 1 | E82: HDD 1.2TB SAS (1.2TB 10K RPM SAS 12Gbps 2.5in Hot-plug Hard Drive)
A83: 10L3-FC-U | B83: OpzFibreChannel | C83: 516 | D83: 1 | E83: QLogic 2562 DP Full (QLogic 2562, Dual Port 8Gb Optical Fibre Channel HBA,Full Height,CusKit)
A84: 10L3-FC-LP-U | B84: OpzFibreChannel | C84: 516 | D84: 1 | E84: QLogic 2562 DP Low (Qlogic 2562 Dual Channel 8Gb Optical Fibre Channel HBA PCIe, Low Profile,CusKit)
A85: 10L3-UPS | B85: OpzUPS 3000VA | C85: 502 | D85: 1 | E85: UPS MSR 3000 VA
A86: 10L3-GUI | B86: OpzGUIRack | C86: 493 | D86: 1 | E86: Console KVM per rack
A87: 10L3-KVMIP | B87: OpzSWGUIRack | C87: 550 | D87: 1 | E87: KVM Switch IP per GUI con cavi
A88: 10L3-RACK | B88: OpzRack | C88: 564 | E88: Armadio Rack 42U
E90: Intel Xeon Processor E5-2620 V4 (Intel Xeon E5-2620 v4 2.1GHz,20M Cache,8.0GT/s QPI,Turbo,HT,8C/16T)

Sheet Processor (hidden)
A1: Additional Processor
A2: Server R630 | C2: CPU-A
A3: No Additional Processor | B3: 0 | C3: ="" ->  | E3: [374-BBBX] | F3: ="" ->  | G3: ="" ->  | H3: ="" ->  | I3: Riser with up to 1, x8 PCIe Slots + 1, x16 PCIe Slots for x8, 2 PCIe Chassis with 1 Processor | J3: 1 | K3: [330-BBCS] | L3: ="" -> 
A4: Intel Xeon E5-2650 v3 2.3GHz,25M Cache,9.60GT/s QPI,Turbo,HT,10C/20T (105W) Max Mem 2133MHz,Customer Kit | B4: 1 | C4: 10L1-CPU-P | D4: S10L1-R630-CPU | E4: [338-BFCF] | F4: Kit - 120W Heatsink for PowerEdge R630 | G4: 1 | H4: [412-AAFB] | I4: R630 PCIe Riser for up to 2, x16 PCIe Slots for x8, 2 PCIe Chassis with 2 Processors,CusKit | J4: 1 | K4: [330-BBCM] | L4: 800
A6: Server R730xd | C6: CPU-B
A7: No Additional Processor | B7: 0 | C7: ="" ->  | E7: [374-BBBX] | F7: ="" ->  | G7: ="" ->  | H7: ="" ->  | L7: ="" -> 
A8: Intel Xeon E5-2630L v3 1.8GHz,20M Cache,8.00GT/s QPI,Turbo,HT,8C/16T (55W) Max Mem 1866MHz,Customer Kit | B8: 1 | C8: 10L1-CPU-S | D8: S10L1-R730xd-CPU | E8: [338-BFCR] | F8: Kit - 1.2U CPU Heatsink for PowerEdge R730xd (CPU with 105W or less) | G8: 1 | H8: [412-AAFU] | L8: 500
A10: VRTX | C10: CPU-C
A11: No Additional Processor | B11: 0 | C11: ="" ->  | E11: [374-BBBX] | F11: ="" ->  | G11: ="" ->  | H11: ="" ->  | L11: ="" -> 
A12: Intel Xeon E5-2620 v4 2.1GHz,20M Cache,8.0GT/s QPI,Turbo,HT,8C/16T (85W) Max Mem 2133MHz, processor only,Cust Kit | B12: 1 | C12: 10L3-CPU-U | D12: S10L3-VRTXCPU | E12: [338-BJEU] | F12: CUS,THRM,HTSNK,CPU2,68MM,M630 | G12: 1 | H12: [412-AAEP] | L12: 677

Sheet Memory (hidden)
B1: Total Memory
B3: 16GB RDIMM, 2133 MT/s, Dual Rank, x4 Data Width,CusKit | C3: 1 | D3: 10L3-16GB-DELL | F3: 370-ABUK | G3: 160
B4: 32GB LRDIMM, 2133 MT/s, Quad Rank, x4 Data Width,CusKit | C4: 1 | D4: 10L3-32GB-DELL | F4: A8217683 | G4: 319
B5: HP 16GB 2Rx4 PC4-2133P-R Kit | C5: 1 | D5: 10L3-16GB-HP | F5: 370-ABUL | G5: 143
B6: HPE 32GB 2Rx4 PC4-2400T-R Kit | C6: 1 | D6: 10L3-32GB-HP | F6: 728629-B21 | G6: 286
A9: 1CPU | B9: MEMORY A
A10: 32 | B10: ="" ->  | C10: ="" ->  | D10: ="" ->  | E10: ="" ->  | F10: ="" ->  | G10: ="" ->  | H10: 16GB RDIMM, 2133MT/s, Dual Rank, x4 Data Width | I10: 2 | J10: [370-ABUG] | K10: ="" ->  | L10: ="" ->  | M10: ="" ->  | N10: ="" ->  | O10: ="" ->  | P10: ="" -> 
A11: 64 | B11: 16GB RDIMM, 2133 MT/s, Dual Rank, x4 Data Width,CusKit | C11: 2 | D11: 10L1-16GB | E11: S10L1-R630-16GB | F11: 370-ABUK | G11: =$G$3*C11 -> 320 | H11: 16GB RDIMM, 2133MT/s, Dual Rank, x4 Data Width | I11: 2 | J11: [370-ABUG] | K11: ="" ->  | L11: ="" ->  | M11: ="" ->  | N11: ="" ->  | O11: ="" ->  | P11: ="" -> 
A12: 80 | B12: 16GB RDIMM, 2133 MT/s, Dual Rank, x4 Data Width,CusKit | C12: 3 | D12: 10L1-16GB | E12: S10L1-R630-16GB | F12: 370-ABUK | G12: =$G$3*C12 -> 480 | H12: 16GB RDIMM, 2133MT/s, Dual Rank, x4 Data Width | I12: 2 | J12: [370-ABUG] | K12: ="" ->  | L12: ="" ->  | M12: ="" ->  | N12: ="" ->  | O12: ="" ->  | P12: ="" -> 
A13: 128 | B13: 16GB RDIMM, 2133 MT/s, Dual Rank, x4 Data Width,CusKit | C13: 6 | D13: 10L1-16GB | E13: S10L1-R630-16GB | F13: 370-ABUK | G13: =$G$3*C13 -> 960 | H13: 16GB RDIMM, 2133MT/s, Dual Rank, x4 Data Width | I13: 2 | J13: [370-ABUG] | K13: ="" ->  | L13: ="" ->  | M13: ="" ->  | N13: ="" ->  | O13: ="" ->  | P13: ="" -> 
A14: 160 | B14: 16GB RDIMM, 2133 MT/s, Dual Rank, x4 Data Width,CusKit | C14: 8 | D14: 10L1-16GB | E14: S10L1-R630-16GB | F14: 370-ABUK | G14: 1280 | H14: 16GB RDIMM, 2133MT/s, Dual Rank, x4 Data Width | I14: 2 | J14: [370-ABUG] | K14: ="" ->  | L14: ="" ->  | M14: ="" ->  | N14: ="" ->  | O14: ="" ->  | P14: ="" -> 
A15: 192 | B15: 16GB RDIMM, 2133 MT/s, Dual Rank, x4 Data Width,CusKit | C15: 10 | D15: 10L1-16GB | E15: S10L1-R630-16GB | F15: 370-ABUK | G15: 1600 | H15: 16GB RDIMM, 2133MT/s, Dual Rank, x4 Data Width | I15: 2 | J15: [370-ABUG] | K15: ="" ->  | L15: ="" ->  | M15: ="" ->  | N15: ="" ->  | O15: ="" ->  | P15: ="" -> 
A16: 256 | B16: 16GB RDIMM, 2133 MT/s, Dual Rank, x4 Data Width,CusKit | C16: 6 | D16: 10L1-16GB | E16: S10L1-R630-16GB | F16: 370-ABUK | G16: 960 | H16: 16GB RDIMM, 2133MT/s, Dual Rank, x4 Data Width | I16: 2 | J16: [370-ABUG] | K16: 32GB RDIMM, 2133 MT/s, Low Volt, Dual Rank, x4 Data Width | L16: 4 | M16: 10L1-32GB | N16: S10L1-R630-32GB | O16: [A8217683] | P16: =$G$4*L16 -> 1276
A17: 2CPU
A18: 32 | B18: ="" ->  | C18: ="" ->  | D18: ="" ->  | E18: ="" ->  | F18: ="" ->  | G18: ="" ->  | H18: 16GB RDIMM, 2133MT/s, Dual Rank, x4 Data Width | I18: 2 | J18: [370-ABUG] | K18: ="" ->  | L18: ="" ->  | M18: ="" ->  | N18: ="" ->  | O18: ="" ->  | P18: ="" -> 
A19: 64 | B19: 16GB RDIMM, 2133 MT/s, Dual Rank, x4 Data Width,CusKit | C19: 2 | D19: 10L1-16GB | E19: S10L1-R630-16GB | F19: 370-ABUK | G19: =$G$3*C19 -> 320 | H19: 16GB RDIMM, 2133MT/s, Dual Rank, x4 Data Width | I19: 2 | J19: [370-ABUG] | K19: ="" ->  | L19: ="" ->  | M19: ="" ->  | N19: ="" ->  | O19: ="" ->  | P19: ="" -> 
A20: 80 | B20: 16GB RDIMM, 2133 MT/s, Dual Rank, x4 Data Width,CusKit | C20: 3 | D20: 10L1-16GB | E20: S10L1-R630-16GB | F20: 370-ABUK | G20: =$G$3*C20 -> 480 | H20: 16GB RDIMM, 2133MT/s, Dual Rank, x4 Data Width | I20: 2 | J20: [370-ABUG] | K20: ="" ->  | L20: ="" ->  | M20: ="" ->  | N20: ="" ->  | O20: ="" ->  | P20: ="" -> 
A21: 128 | B21: 16GB RDIMM, 2133 MT/s, Dual Rank, x4 Data Width,CusKit | C21: 6 | D21: 10L1-16GB | E21: S10L1-R630-16GB | F21: 370-ABUK | G21: 960 | H21: 16GB RDIMM, 2133MT/s, Dual Rank, x4 Data Width | I21: 2 | J21: [370-ABUG] | K21: ="" ->  | L21: ="" ->  | M21: ="" ->  | N21: ="" ->  | O21: ="" ->  | P21: ="" -> 
A22: 160 | B22: 16GB RDIMM, 2133 MT/s, Dual Rank, x4 Data Width,CusKit | C22: 8 | D22: 10L1-16GB | E22: S10L1-R630-16GB | F22: 370-ABUK | G22: 1280 | H22: 16GB RDIMM, 2133MT/s, Dual Rank, x4 Data Width | I22: 2 | J22: [370-ABUG] | K22: ="" ->  | L22: ="" ->  | M22: ="" ->  | N22: ="" ->  | O22: ="" ->  | P22: ="" -> 
A23: 192 | B23: 16GB RDIMM, 2133 MT/s, Dual Rank, x4 Data Width,CusKit | C23: 10 | D23: 10L1-16GB | E23: S10L1-R630-16GB | F23: 370-ABUK | G23: 1600 | H23: 16GB RDIMM, 2133MT/s, Dual Rank, x4 Data Width | I23: 2 | J23: [370-ABUG] | K23: ="" ->  | L23: ="" ->  | M23: ="" ->  | N23: ="" ->  | O23: ="" ->  | P23: ="" -> 
A24: 256 | B24: 16GB RDIMM, 2133 MT/s, Dual Rank, x4 Data Width,CusKit | C24: 14 | D24: 10L1-16GB | E24: S10L1-R630-16GB | F24: 370-ABUK | G24: 2240 | H24: 16GB RDIMM, 2133MT/s, Dual Rank, x4 Data Width | I24: 2 | J24: [370-ABUG] | K24: ="" ->  | L24: ="" ->  | M24: ="" ->  | N24: ="" ->  | O24: ="" ->  | P24: ="" -> 
A25: 320 | B25: 16GB RDIMM, 2133 MT/s, Dual Rank, x4 Data Width,CusKit | C25: 18 | D25: 10L1-16GB | E25: S10L1-R630-16GB | F25: 370-ABUK | G25: =$G$3*C25 -> 2880 | H25: 16GB RDIMM, 2133MT/s, Dual Rank, x4 Data Width | I25: 2 | J25: [370-ABUG] | K25: ="" ->  | L25: ="" ->  | M25: ="" ->  | N25: ="" ->  | O25: ="" ->  | P25: ="" -> 
A26: 384 | B26: 16GB RDIMM, 2133 MT/s, Dual Rank, x4 Data Width,CusKit | C26: 22 | D26: 10L1-16GB | E26: S10L1-R630-16GB | F26: 370-ABUK | G26: 3520 | H26: 16GB RDIMM, 2133MT/s, Dual Rank, x4 Data Width | I26: 2 | J26: [370-ABUG] | K26: ="" ->  | L26: ="" ->  | M26: ="" ->  | N26: ="" ->  | O26: ="" ->  | P26: ="" -> 
A27: 512 | B27: 16GB RDIMM, 2133 MT/s, Dual Rank, x4 Data Width,CusKit | C27: 14 | D27: 10L1-16GB | E27: S10L1-R630-16GB | F27: 370-ABUK | G27: =$G$3*C27 -> 2240 | H27: 16GB RDIMM, 2133MT/s, Dual Rank, x4 Data Width | I27: 2 | J27: [370-ABUG] | K27: 32GB RDIMM, 2133 MT/s, Low Volt, Dual Rank, x4 Data Width | L27: 8 | M27: 10L1-32GB | N27: S10L1-R630-32GB | O27: [A8217683] | P27: =$G$4*L27 -> 2552
A30: 1CPU | B30: MEMORY B CS250-HC
A31: 192 | B31: ="" ->  | C31: ="" ->  | D31: ="" ->  | E31: ="" ->  | F31: ="" ->  | G31: ="" ->  | H31: HPE 32GB 2Rx4 PC4-2400T-R Kit | I31: 24 | J31: 728629-B21 | K31: ="" ->  | L31: ="" ->  | M31: ="" ->  | N31: ="" ->  | O31: ="" ->  | P31: ="" -> 
A32: 256 | B32: HPE 32GB 2Rx4 PC4-2400T-R Kit | C32: 2 | D32: 10L3-32GB-HP-U | F32: 728629-B21 | G32: =$G$6*C32 -> 572 | H32: HPE 32GB 2Rx4 PC4-2400T-R Kit | I32: 24 | J32: 728629-B21 | K32: ="" ->  | L32: ="" ->  | M32: ="" ->  | N32: ="" ->  | O32: ="" ->  | P32: ="" -> 
A33: 512 | B33: HPE 32GB 2Rx4 PC4-2400T-R Kit | C33: 10 | D33: 10L3-32GB-HP-U | F33: 728629-B21 | G33: =$G$6*C33 -> 2860 | H33: HPE 32GB 2Rx4 PC4-2400T-R Kit | I33: 24 | J33: 728629-B21 | K33: ="" ->  | L33: ="" ->  | M33: ="" ->  | N33: ="" ->  | O33: ="" ->  | P33: ="" -> 
A34: 2CPU
A35: 32 | B35: ="" ->  | C35: ="" ->  | D35: ="" ->  | E35: ="" ->  | F35: ="" ->  | G35: ="" ->  | H35: 16GB RDIMM, 2133MT/s, Dual Rank, x4 Data Width | I35: 2 | J35: [370-ABUG] | K35: ="" ->  | L35: ="" ->  | M35: ="" ->  | N35: ="" ->  | O35: ="" ->  | P35: ="" -> 
A36: 64 | B36: 16GB RDIMM, 2133 MT/s, Dual Rank, x4 Data Width,CusKit | C36: 2 | D36: 10L1-16GB | E36: S10L1-R730xd-16GB | F36: 370-ABUK | G36: =$G$3*C36 -> 320 | H36: 16GB RDIMM, 2133MT/s, Dual Rank, x4 Data Width | I36: 2 | J36: [370-ABUG] | K36: ="" ->  | L36: ="" ->  | M36: ="" ->  | N36: ="" ->  | O36: ="" ->  | P36: ="" -> 
A37: 128 | B37: 16GB RDIMM, 2133 MT/s, Dual Rank, x4 Data Width,CusKit | C37: 6 | D37: 10L1-16GB | E37: S10L1-R730xd-16GB | F37: 370-ABUK | G37: 960 | H37: 16GB RDIMM, 2133MT/s, Dual Rank, x4 Data Width | I37: 2 | J37: [370-ABUG] | K37: ="" ->  | L37: ="" ->  | M37: ="" ->  | N37: ="" ->  | O37: ="" ->  | P37: ="" -> 
A38: 160 | B38: 16GB RDIMM, 2133 MT/s, Dual Rank, x4 Data Width,CusKit | C38: 8 | D38: 10L1-16GB | E38: S10L1-R730xd-16GB | F38: 370-ABUK | G38: 1280 | H38: 16GB RDIMM, 2133MT/s, Dual Rank, x4 Data Width | I38: 2 | J38: [370-ABUG] | K38: ="" ->  | L38: ="" ->  | M38: ="" ->  | N38: ="" ->  | O38: ="" ->  | P38: ="" -> 
A39: 192 | B39: 16GB RDIMM, 2133 MT/s, Dual Rank, x4 Data Width,CusKit | C39: 10 | D39: 10L1-16GB | E39: S10L1-R730xd-16GB | F39: 370-ABUK | G39: 1600 | H39: 16GB RDIMM, 2133MT/s, Dual Rank, x4 Data Width | I39: 2 | J39: [370-ABUG] | K39: ="" ->  | L39: ="" ->  | M39: ="" ->  | N39: ="" ->  | O39: ="" ->  | P39: ="" -> 
A40: 256 | B40: 16GB RDIMM, 2133 MT/s, Dual Rank, x4 Data Width,CusKit | C40: 14 | D40: 10L1-16GB | E40: S10L1-R730xd-16GB | F40: 370-ABUK | G40: 2240 | H40: 16GB RDIMM, 2133MT/s, Dual Rank, x4 Data Width | I40: 2 | J40: [370-ABUG] | K40: ="" ->  | L40: ="" ->  | M40: ="" ->  | N40: ="" ->  | O40: ="" ->  | P40: ="" -> 
A41: 320 | B41: 16GB RDIMM, 2133 MT/s, Dual Rank, x4 Data Width,CusKit | C41: 18 | D41: 10L1-16GB | E41: S10L1-R730xd-16GB | F41: 370-ABUK | G41: 2880 | H41: 16GB RDIMM, 2133MT/s, Dual Rank, x4 Data Width | I41: 2 | J41: [370-ABUG] | K41: ="" ->  | L41: ="" ->  | M41: ="" ->  | N41: ="" ->  | O41: ="" ->  | P41: ="" -> 
A42: 384 | B42: 16GB RDIMM, 2133 MT/s, Dual Rank, x4 Data Width,CusKit | C42: 22 | D42: 10L1-16GB | E42: S10L1-R730xd-16GB | F42: 370-ABUK | G42: 3520 | H42: 16GB RDIMM, 2133MT/s, Dual Rank, x4 Data Width | I42: 2 | J42: [370-ABUG] | K42: ="" ->  | L42: ="" ->  | M42: ="" ->  | N42: ="" ->  | O42: ="" ->  | P42: ="" -> 
A43: 512 | B43: 16GB RDIMM, 2133 MT/s, Dual Rank, x4 Data Width,CusKit | C43: 14 | D43: 10L1-16GB | E43: S10L1-R730xd-16GB | F43: 370-ABUK | G43: 2240 | H43: 16GB RDIMM, 2133MT/s, Dual Rank, x4 Data Width | I43: 2 | J43: [370-ABUG] | K43: 32GB RDIMM, 2133 MT/s, Low Volt, Dual Rank, x4 Data Width | L43: 8 | M43: 10L1-32GB | N43: S10L1-R730xd-32GB | O43: [A8217683] | P43: =$G$4*L43 -> 2552
A46: 1CPU | B46: MEMORY C VRTX
A47: 32 | B47: ="" ->  | C47: ="" ->  | D47: ="" ->  | E47: ="" ->  | F47: ="" ->  | G47: ="" ->  | H47: 16GB RDIMM, 2400MT/s, Dual Rank, x8 Data Width | I47: 2 | J47: [370-ACNX] | K47: ="" ->  | L47: ="" ->  | M47: ="" ->  | N47: ="" ->  | O47: ="" ->  | P47: ="" -> 
A48: 64 | B48: 16GB RDIMM, 2400MT/s, Dual Rank, x8 Data Width, CusKit | C48: 2 | D48: 10L3-16GB-VRTX | E48: S10L1-T630-16GB | F48: [A8711887] | G48: =$G$3*C48 -> 320 | H48: 16GB RDIMM, 2400MT/s, Dual Rank, x8 Data Width | I48: 2 | J48: [370-ACNX] | K48: ="" ->  | L48: ="" ->  | M48: ="" ->  | N48: ="" ->  | O48: ="" ->  | P48: ="" -> 
A49: 96 | B49: 16GB RDIMM, 2400MT/s, Dual Rank, x8 Data Width, CusKit | C49: 4 | D49: 10L3-16GB-VRTX | E49: S10L1-T630-16GB | F49: [A8711887] | G49: =$G$3*C49 -> 640 | H49: 16GB RDIMM, 2400MT/s, Dual Rank, x8 Data Width | I49: 2 | J49: [370-ACNX] | K49: ="" ->  | L49: ="" ->  | M49: ="" ->  | N49: ="" ->  | O49: ="" ->  | P49: ="" -> 
A50: 128 | B50: 16GB RDIMM, 2400MT/s, Dual Rank, x8 Data Width, CusKit | C50: 6 | D50: 10L3-16GB-VRTX | E50: S10L1-T630-16GB | F50: [A8711887] | G50: =$G$3*C50 -> 960 | H50: 16GB RDIMM, 2400MT/s, Dual Rank, x8 Data Width | I50: 2 | J50: [370-ACNX] | K50: ="" ->  | L50: ="" ->  | M50: ="" ->  | N50: ="" ->  | O50: ="" ->  | P50: ="" -> 
A51: 160 | B51: 16GB RDIMM, 2400MT/s, Dual Rank, x8 Data Width, CusKit | C51: 8 | D51: 10L3-16GB-VRTX | E51: S10L1-T630-16GB | F51: [A8711887] | G51: 1280 | H51: 16GB RDIMM, 2400MT/s, Dual Rank, x8 Data Width | I51: 2 | J51: [370-ACNX] | K51: ="" ->  | L51: ="" ->  | M51: ="" ->  | N51: ="" ->  | O51: ="" ->  | P51: ="" -> 
A52: 192 | B52: 16GB RDIMM, 2400MT/s, Dual Rank, x8 Data Width, CusKit | C52: 10 | D52: 10L3-16GB-VRTX | E52: S10L1-T630-16GB | F52: [A8711887] | G52: 1600 | H52: 16GB RDIMM, 2400MT/s, Dual Rank, x8 Data Width | I52: 2 | J52: [370-ACNX] | K52: ="" ->  | L52: ="" ->  | M52: ="" ->  | N52: ="" ->  | O52: ="" ->  | P52: ="" -> 
A53: 256 | B53: 16GB RDIMM, 2400MT/s, Dual Rank, x8 Data Width, CusKit | C53: 6 | D53: 10L3-16GB-VRTX | E53: S10L1-T630-16GB | F53: [A8711887] | G53: 960 | H53: 16GB RDIMM, 2400MT/s, Dual Rank, x8 Data Width | I53: 2 | J53: [370-ACNX] | K53: 32GB RDIMM, 2400MT/s, Dual Rank, x4 Data Width, CusKit | L53: 4 | M53: 10L3-32GB-VRTX | N53: S10L1-T630-32GB | O53: [A8711888] | P53: =$G$4*L53 -> 1276
A54: 2CPU
A55: 32 | B55: ="" ->  | C55: ="" ->  | D55: ="" ->  | E55: ="" ->  | F55: ="" ->  | G55: ="" ->  | H55: 16GB RDIMM, 2400MT/s, Dual Rank, x8 Data Width | I55: 2 | J55: [370-ACNX] | K55: ="" ->  | L55: ="" ->  | M55: ="" ->  | N55: ="" ->  | O55: ="" ->  | P55: ="" -> 
A56: 64 | B56: 16GB RDIMM, 2400MT/s, Dual Rank, x8 Data Width, CusKit | C56: 2 | D56: 10L3-16GB-VRTX | E56: S10L3-VRTX-16GB | F56: [A8711887] | G56: =$G$3*C56 -> 320 | H56: 16GB RDIMM, 2400MT/s, Dual Rank, x8 Data Width | I56: 2 | J56: [370-ACNX] | K56: ="" ->  | L56: ="" ->  | M56: ="" ->  | N56: ="" ->  | O56: ="" ->  | P56: ="" -> 
A57: 96 | B57: 16GB RDIMM, 2400MT/s, Dual Rank, x8 Data Width, CusKit | C57: 4 | D57: 10L3-16GB-VRTX | E57: S10L1-T630-16GB | F57: [A8711887] | G57: =$G$3*C57 -> 640 | H57: 16GB RDIMM, 2400MT/s, Dual Rank, x8 Data Width | I57: 2 | J57: [370-ACNX] | K57: ="" ->  | L57: ="" ->  | M57: ="" ->  | N57: ="" ->  | O57: ="" ->  | P57: ="" -> 
A58: 128 | B58: 16GB RDIMM, 2400MT/s, Dual Rank, x8 Data Width, CusKit | C58: 6 | D58: 10L3-16GB-VRTX | E58: S10L3-VRTX-16GB | F58: [A8711887] | G58: 960 | H58: 16GB RDIMM, 2400MT/s, Dual Rank, x8 Data Width | I58: 2 | J58: [370-ACNX] | K58: ="" ->  | L58: ="" ->  | M58: ="" ->  | N58: ="" ->  | O58: ="" ->  | P58: ="" -> 
A59: 160 | B59: 16GB RDIMM, 2400MT/s, Dual Rank, x8 Data Width, CusKit | C59: 8 | D59: 10L3-16GB-VRTX | E59: S10L3-VRTX-16GB | F59: [A8711887] | G59: 1280 | H59: 16GB RDIMM, 2400MT/s, Dual Rank, x8 Data Width | I59: 2 | J59: [370-ACNX] | K59: ="" ->  | L59: ="" ->  | M59: ="" ->  | N59: ="" ->  | O59: ="" ->  | P59: ="" -> 
A60: 192 | B60: 16GB RDIMM, 2400MT/s, Dual Rank, x8 Data Width, CusKit | C60: 10 | D60: 10L3-16GB-VRTX | E60: S10L3-VRTX-16GB | F60: [A8711887] | G60: 1600 | H60: 16GB RDIMM, 2400MT/s, Dual Rank, x8 Data Width | I60: 2 | J60: [370-ACNX] | K60: ="" ->  | L60: ="" ->  | M60: ="" ->  | N60: ="" ->  | O60: ="" ->  | P60: ="" -> 
A61: 256 | B61: 16GB RDIMM, 2400MT/s, Dual Rank, x8 Data Width, CusKit | C61: 14 | D61: 10L3-16GB-VRTX | E61: S10L3-VRTX-16GB | F61: [A8711887] | G61: 2240 | H61: 16GB RDIMM, 2400MT/s, Dual Rank, x8 Data Width | I61: 2 | J61: [370-ACNX] | K61: ="" ->  | L61: ="" ->  | M61: ="" ->  | N61: ="" ->  | O61: ="" ->  | P61: ="" -> 
A62: 320 | B62: 16GB RDIMM, 2400MT/s, Dual Rank, x8 Data Width, CusKit | C62: 18 | D62: 10L3-16GB-VRTX | E62: S10L3-VRTX-16GB | F62: [A8711887] | G62: 2880 | H62: 16GB RDIMM, 2400MT/s, Dual Rank, x8 Data Width | I62: 2 | J62: [370-ACNX] | K62: ="" ->  | L62: ="" ->  | M62: ="" ->  | N62: ="" ->  | O62: ="" ->  | P62: ="" -> 
A63: 384 | B63: 16GB RDIMM, 2400MT/s, Dual Rank, x8 Data Width, CusKit | C63: 22 | D63: 10L3-16GB-VRTX | E63: S10L3-VRTX-16GB | F63: [A8711887] | G63: 3520 | H63: 16GB RDIMM, 2400MT/s, Dual Rank, x8 Data Width | I63: 2 | J63: [370-ACNX] | K63: ="" ->  | L63: ="" ->  | M63: ="" ->  | N63: ="" ->  | O63: ="" ->  | P63: ="" -> 
A64: 512 | B64: 16GB RDIMM, 2400MT/s, Dual Rank, x8 Data Width, CusKit | C64: 14 | D64: 10L3-16GB-VRTX | E64: S10L3-VRTX-16GB | F64: [A8711887] | G64: 2240 | H64: 16GB RDIMM, 2400MT/s, Dual Rank, x8 Data Width | I64: 2 | J64: [370-ACNX] | K64: 32GB RDIMM, 2400MT/s, Dual Rank, x4 Data Width, CusKit | L64: 8 | M64: 10L3-32GB-VRTX | N64: S10L3-VRTX-32GB | O64: [A8711888] | P64: =$G$4*L64 -> 2552

Sheet Operating System (hidden)
A1: Operating System
A2: R630
A3: No Operating System | B3: ="" ->  | C3: ="" ->  | D3: ="" ->  | E3: [611-BBBF] | F3: ="" ->  | G3: None | H3: ="" ->  | I3: ="" ->  | J3: ="" ->  | K3: ="" ->  | M3: None | N3: ="" ->  | O3: ="" ->  | P3: ="" ->  | Q3: ="" -> 
A4: Kit Windows Server 2012 R2, Standard Edition, 2 Socket, 2VM, ROK, COA + Media | B4: 1 | C4: 10L1-WIN | D4: S10L1-R630-WIN | E4: [638-BBBD] | F4: 505 | G4: 1-pack of Windows Server 2012 User CALs (Standard or Datacenter) | H4: 1 | I4: 10L1-CALUSER | J4: S10L1-R630-USR | K4: [618-10778] | L4: 25 | M4: 1-pack of Windows Server 2012 Device CALs (Standard or Datacenter) | N4: 1 | O4: 10L1-CALDEV | P4: S10L1-R630-DEV | Q4: [618-10777] | R4: 25
A5: CentOS 7.0 | B5: 1 | C5: 10L1-LINUX | D5: S10L1-R630-LINUX | E5: ="" ->  | F5: 45 | G5: None | H5: ="" ->  | I5: ="" ->  | J5: ="" ->  | K5: ="" ->  | M5: None | N5: ="" ->  | O5: ="" ->  | P5: ="" ->  | Q5: ="" -> 
A8: R730xd
A9: No Operating System | B9: ="" ->  | C9: ="" ->  | D9: ="" ->  | E9: [611-BBBF] | F9: ="" ->  | G9: None | H9: ="" ->  | I9: ="" ->  | J9: ="" ->  | K9: ="" ->  | M9: None | N9: ="" ->  | O9: ="" ->  | P9: ="" ->  | Q9: ="" -> 
A10: Kit Windows Server 2012 R2, Standard Edition, 2 Socket, 2VM, ROK, COA + Media | B10: 1 | C10: 10L1-WIN | D10: S10L1-R730xd-WIN | E10: [638-BBBD] | F10: 505 | G10: 1-pack of Windows Server 2012 User CALs (Standard or Datacenter) | H10: 1 | I10: 10L1-CALUSER | J10: S10L1-R730xd-USR | K10: [618-10778] | L10: 25 | M10: 1-pack of Windows Server 2012 Device CALs (Standard or Datacenter) | N10: 1 | O10: 10L1-CALDEV | P10: S10L1-R730xd-DEV | Q10: [618-10777] | R10: 25
A11: CentOS 7.0 | B11: 1 | C11: 10L1-LINUX | D11: S10L1-R730xd-LINUX | E11: ="" ->  | F11: 45 | G11: None | H11: ="" ->  | I11: ="" ->  | J11: ="" ->  | K11: ="" ->  | M11: None | N11: ="" ->  | O11: ="" ->  | P11: ="" ->  | Q11: ="" -> 
A14: T630
A15: No Operating System | B15: ="" ->  | C15: ="" ->  | D15: ="" ->  | E15: [611-BBBF] | F15: ="" ->  | G15: None | H15: ="" ->  | I15: ="" ->  | J15: ="" ->  | K15: ="" ->  | M15: None | N15: ="" ->  | O15: ="" ->  | P15: ="" ->  | Q15: ="" -> 
A16: Kit Windows Server 2012 R2, Standard Edition, 2 Socket, 2VM, ROK, COA + Media | B16: 1 | C16: 10L1-WIN | D16: S10L1-T630-WIN | E16: [638-BBBD] | F16: 505 | G16: 1-pack of Windows Server 2012 User CALs (Standard or Datacenter) | H16: 1 | I16: 10L1-CALUSER | J16: S10L1-T630-USR | K16: [618-10778] | L16: 25 | M16: 1-pack of Windows Server 2012 Device CALs (Standard or Datacenter) | N16: 1 | O16: 10L1-CALDEV | P16: S10L1-T630-DEV | Q16: [618-10777] | R16: 25
A17: CentOS 7.0 | B17: 1 | C17: 10L1-LINUX | D17: S10L1-T630-LINUX | E17: ="" ->  | F17: 45 | G17: None | H17: ="" ->  | I17: ="" ->  | J17: ="" ->  | K17: ="" ->  | M17: None | N17: ="" ->  | O17: ="" ->  | P17: ="" ->  | Q17: ="" -> 

Sheet HDD (hidden)
A1: Hard Drives
A2: R630
A3: 300GB 10K RPM SAS 12Gbps 2.5in Hot-plug Hard Drive,CusKit | C3: 10L1-HDD300GB | D3: S10L1-R630-HDD300 | E3: [400-AJOQ] | F3: 140
A4: 1TB 7.2K RPM NLSAS 6Gbps 2.5in Hot-plug Hard Drive,13G,CusKit | C4: 10L1-HDD1TB | D4: S10L1-R630-HDD1000 | E4: [400-AEFF] | F4: 296
B5: R630 | C5: R630 1 | D5: R630 2
A6: HDD max | B6: 8 | C6: 8 | D6: 8
A7: HDD 300GB Base | B7: 2 | C7: 2 | D7: 2 | E7: Hot Spare for 300GB HDD | F7: ='Server10 Lotto1 R630'!$C$74 -> No | G7: =IF(F7="Yes",1,0) -> 0 | H7: ='Server10 Lotto1 R630 2'!$C$74 -> No | I7: =IF(H7="Yes",1,0) -> 0 | J7: ='Server10 Lotto1 R630 3'!$C$74 -> No | K7: =IF(J7="Yes",1,0) -> 0
A8: HDD 300GB Selected | B8: ='Server10 Lotto1 R630'!$C$68 -> 0 | C8: ='Server10 Lotto1 R630 2'!$C$68 -> 0 | D8: ='Server10 Lotto1 R630 2'!$C$68 -> 0
A9: 300GB 10K RPM SAS 12Gbps 2.5in Hot-plug Hard Drive,CusKit | B9: 0 | C9: 0 | D9: 0
B10: 1 | C10: 1 | D10: 1
B11: 2 | C11: 2 | D11: 2
B12: 3 | C12: 3 | D12: 3
B13: 4 | C13: 4 | D13: 4
B14: 5 | C14: 5 | D14: 5
B15: 6 | C15: 6 | D15: 6
A16: HDD max | B16: 8 | C16: 8 | D16: 8
A17: HDD 300GB | B17: =B7+B8 -> 2 | C17: =C7+C8 -> 2 | D17: 2
A18: HDD 1TB Selected | B18: ='Server10 Lotto1 R630'!$C$70 -> 0 | C18: ='Server10 Lotto1 R630 2'!$C$70 -> 0 | D18: ='Server10 Lotto1 R630 3'!$C$70 -> 0 | E18: Hot Spare for 1TB HDD | F18: ='Server10 Lotto1 R630'!$C$78 -> No | G18: =IF(F18="Yes",1,0) -> 0 | H18: ='Server10 Lotto1 R630 2'!$C$78 -> No | I18: =IF(H18="Yes",1,0) -> 0 | J18: ='Server10 Lotto1 R630 3'!$C$78 -> No | K18: =IF(J18="Yes",1,0) -> 0
A19: 1TB 7.2K RPM NLSAS 6Gbps 2.5in Hot-plug Hard Drive,13G,CusKit | B19: =B$6-B$7-B$8 -> 6 | C19: =C$6-C$7-C$8 -> 6 | D19: 6
B20: =IF(B19-1<1,0,B19-1) -> 5 | C20: 5 | D20: 5
B21: 4 | C21: 4 | D21: 4
B22: 3 | C22: 3 | D22: 3
B23: 2 | C23: 2 | D23: 2
B24: 1 | C24: 1 | D24: 1
B25: 0 | C25: 0 | D25: 0
B26: 0
B27: 0
A29: Hot Spare | B29: Yes
B30: No
A32: RAID Configuration | D32: HDD 300GB R630 | F32: HDD 1TB R630 | H32: HDD 300GB R630 2 | J32: HDD 1TB R630 2 | L32: HDD 300GB R630 3 | N32: HDD 1TB R630 3
A33: RAID Personalizzato | B33: =IF($B$135<=8,0,"") -> 0 | C33: [780-BBJC] | D33: RAID Personalizzato | E33: [780-BBJC] | F33: RAID Personalizzato | G33: [780-BBJC] | H33: RAID Personalizzato | I33: [780-BBJC] | J33: RAID Personalizzato | K33: [780-BBJC] | L33: RAID Personalizzato | M33: [780-BBJC] | N33: RAID Personalizzato | O33: [780-BBJC]
A34: C10 - Unconfigured RAID for H330 (1-8 HDDs) | B34: 1 | C34: [780-BBJD] | D34: =IF($G$7=0,A34,"") -> C10 - Unconfigured RAID for H330 (1-8 HDDs) | E34: =IF($G$7=0,C34,"") -> [780-BBJD] | F34: =IF($G$18=0,A34,"") -> C10 - Unconfigured RAID for H330 (1-8 HDDs) | G34: =IF($G$18=0,C34,"") -> [780-BBJD] | H34: =IF(I7=0,$A$34,"") -> C10 - Unconfigured RAID for H330 (1-8 HDDs) | I34: =IF(I7=0,$C$34,"") -> [780-BBJD] | J34: =IF(I18=0,$A$34,"") -> C10 - Unconfigured RAID for H330 (1-8 HDDs) | K34: =IF(I18=0,$C$34,"") -> [780-BBJD] | L34: =IF(K7=0,$A$34,"") -> C10 - Unconfigured RAID for H330 (1-8 HDDs) | M34: =IF(K7=0,$C$34,"") -> [780-BBJD] | N34: =IF(K18=0,$A$34,"") -> C10 - Unconfigured RAID for H330 (1-8 HDDs) | O34: =IF(K18=0,$C$34,"") -> [780-BBJD]
A35: C2 - RAID 0 for H330 (1-8 HDDs) | B35: 1 | C35: [780-BBJF] | D35: =IF($G$7=0,A35,"") -> C2 - RAID 0 for H330 (1-8 HDDs) | E35: =IF($G$7=0,C35,"") -> [780-BBJF] | F35: =IF($G$18=0,A35,"") -> C2 - RAID 0 for H330 (1-8 HDDs) | G35: =IF($G$18=0,C35,"") -> [780-BBJF] | H35: =IF(I7=0,$A$35,"") -> C2 - RAID 0 for H330 (1-8 HDDs) | I35: =IF(I7=0,$C$35,"") -> [780-BBJF] | J35: =IF(I18=0,$A$35,"") -> C2 - RAID 0 for H330 (1-8 HDDs) | K35: =IF(I18=0,$C$35,"") -> [780-BBJF] | L35: =IF(K7=0,$A$35,"") -> C2 - RAID 0 for H330 (1-8 HDDs) | M35: =IF(K7=0,$C$35,"") -> [780-BBJF] | N35: =IF(K18=0,$A$35,"") -> C2 - RAID 0 for H330 (1-8 HDDs) | O35: =IF(K18=0,$C$35,"") -> [780-BBJF]
A36: C3 - RAID 1 for H330 (2 HDDs) | B36: 1 | C36: [780-BBJK] | D36: =IF($B$7+$B$8-$G$7=2,A36,"") -> C3 - RAID 1 for H330 (2 HDDs) | E36: =IF($B$7+$B$8-$G$7=2,C36,"") -> [780-BBJK] | F36: =IF($B$18-$G$18=2,A36,"") ->  | G36: =IF($B$18-$G$18=2,C36,"") ->  | H36: =IF($C$7+$C$8-I7=2,$A$36,"") -> C3 - RAID 1 for H330 (2 HDDs) | I36: =IF($C$7+$C$8-I7=2,$C$36,"") -> [780-BBJK] | J36: =IF($C$18-I18=2,A36,"") ->  | K36: =IF($C$18-I18=2,$C$36,"") ->  | L36: =IF($C$7+$C$8-K7=2,$A$36,"") -> C3 - RAID 1 for H330 (2 HDDs) | M36: =IF($C$7+$C$8-K7=2,$C$36,"") -> [780-BBJK] | N36: =IF($C$18-M18=2,E36,"") ->  | O36: =IF($D$18-K18=2,$C$36,"") -> 
A37: C4 - RAID 5 for H330 (3-8 HDDs) | B37: 1 | C37: [780-BBJL] | D37: =IF($B$7+$B$8-$G$7>=3,A37,"") ->  | E37: =IF($B$7+$B$8-$G$7>=3,C37,"") ->  | F37: =IF($B$18-$G$18>=3,A37,"") ->  | G37: =IF($B$18-$G$18>=3,C37,"") ->  | H37: =IF($C$7+$C$8-I7>=3,$A$37,"") ->  | I37: =IF($C$7+$C$8-I7>=3,$C$37,"") ->  | J37: =IF($C$18-I18>=3,$A$37,"") ->  | K37: =IF($C$18-I18>=3,$C$37,"") ->  | L37: =IF($D$7+$D$8-K7>=3,$A$37,"") ->  | M37: =IF($D$7+$D$8-K7>=3,$C$37,"") ->  | N37: =IF($D$18-K18>=3,$A$37,"") ->  | O37: =IF($D$18-K18>=3,$C$37,"") -> 
A38: C6 - RAID 10 forH330 (4-8 HDDs in pairs) | B38: 1 | C38: [780-BBJN] | D38: =IF($B$7+$B$8-$G$7=4,A38,"") ->  | E38: =IF($B$7+$B$8-$G$7=4,C38,"") ->  | F38: =IF($B$18-$G$18=4,A38,"") ->  | G38: =IF($B$18-$G$18=4,C38,"") ->  | H38: =IF($C$7+$C$8-I7=4,$A$38,"") ->  | I38: =IF($C$7+$C$8-I7=4,$C$38,"") ->  | J38: =IF($C$18-I18=4,$A$38,"") ->  | K38: =IF($C$18-I18=4,$C$38,"") ->  | L38: =IF($D$7+$D$8-K7=4,$A$38,"") ->  | M38: =IF($D$7+$D$8-K7=4,$C$38,"") ->  | N38: =IF($D$18-K18=4,$A$38,"") ->  | O38: =IF($D$18-K18=4,$C$38,"") -> 
A39: C7 - RAID 1+RAID 1 for H330 (2 + 2 HDDs) | B39: 1 | C39: [780-BBJO] | D39: =IF($B$7+$B$8-$G$7=4,A39,"") ->  | E39: =IF($B$7+$B$8-$G$7=4,C39,"") ->  | F39: =IF($B$18-$G$18=4,A39,"") ->  | G39: =IF($B$18-$G$18=4,C39,"") ->  | H39: =IF($C$7+$C$8-I7=4,$A$39,"") ->  | I39: =IF($C$7+$C$8-I7=4,$C$39,"") ->  | J39: =IF($C$18-I18=4,A39,"") ->  | K39: =IF($C$18-I18=4,$C$39,"") ->  | L39: =IF($D$7+$D$8-K7=4,$A$39,"") ->  | M39: =IF($D$7+$D$8-K7=4,$C$39,"") ->  | N39: =IF($D$18-K18=4,A39,"") ->  | O39: =IF($D$18-K18=4,$C$39,"") -> 
A40: C8 - RAID 1+RAID 5 for H330 (2 + 3-8 HDDs) | B40: 1 | C40: [780-BBJP] | D40: =IF($B$7+$B$8-$G$7>=5,A40,"") ->  | E40: =IF($B$7+$B$8-$G$7>=5,C40,"") ->  | F40: =IF($B$18-$G$18>=5,A40,"") ->  | G40: =IF($B$18-$G$18>=5,C40,"") ->  | H40: =IF($C$7+$C$8-I7>=5,$A$40,"") ->  | I40: =IF($C$7+$C$8-I7>=5,$C$40,"") ->  | J40: =IF($C$18-I18>=5,$A$40,"") ->  | K40: =IF($C$18-I18>=5,$C$40,"") ->  | L40: =IF($D$7+$D$8-K7>=5,$A$40,"") ->  | M40: =IF($D$7+$D$8-K7>=5,$C$40,"") ->  | N40: =IF($D$18-K18>=5,$A$40,"") ->  | O40: =IF($D$18-K18>=5,$C$40,"") -> 
A41: C9 - RAID 1+RAID 10 for H330 (2 + 4 HDDs in pairs) | B41: 1 | C41: [780-BBJQ] | D41: =IF($B$7+$B$8-$G$7=6,A41,"") ->  | E41: =IF($B$7+$B$8-$G$7=6,C41,"") ->  | F41: =IF($B$18-$G$18=6,A41,"") ->  | G41: =IF($B$18-$G$18=6,C41,"") ->  | H41: =IF($C$7+$C$8-I7=6,$A$41,"") ->  | I41: =IF($C$7+$C$8-I7=6,$C$41,"") ->  | J41: =IF($C$18-I18=6,A41,"") ->  | K41: =IF($C$18-I18=6,$C$41,"") ->  | L41: =IF($D$7+$D$8-M7=6,$A$41,"") ->  | M41: =IF($D$7+$D$8-M7=6,$C$41,"") ->  | N41: =IF($D$18-K18=6,A41,"") ->  | O41: =IF($D$18-K18=6,$C$41,"") -> 
A43: CS250-HC
A44: HP 480GB 6G SATA VE 2.5in SC EV SSD | C44: 10L3-HD300-HP-U | E44: 717971-B21 | F44: 136
A45: None | B45: 0 | C45: ="" ->  | D45: 0 | E45: ="" ->  | F45: 0
A46: HP 1.2TB 12G SAS 10K 2.5in SC ENT HDD | B46: 1 | C46: 10L3-HD1TB-HP-U | D46: 1 | E46: 781518-B21 | F46: 220
C47: ='Server10 Lotto1 R730xd 2'!$C$74 -> No | D47: ='Server10 Lotto1 R730xd 3'!$C$74 -> No
A48: HDD max | B48: 24 | C48: 24 | D48: 24
A49: HDD 300GB Base | B49: 2 | C49: 2 | D49: 2
A50: Hot Spare for 300GB HDD | B50: =IF(B47="Yes",1,0) -> 0 | C50: =IF(C47="Yes",1,0) -> 0 | D50: =IF(D47="Yes",1,0) -> 0
A51: HDD 300GB Selected | B51: ='Server10 Lotto3 HP CS250'!$C$52 -> 0 | C51: ='Server10 Lotto1 R730xd 2'!$C$68 -> 0 | D51: ='Server10 Lotto1 R730xd 3'!$C$68 -> 0
A52: 300GB 10K RPM SAS 12Gbps 2.5in Hot-plug Hard Drive,CusKit | B52: 0 | C52: 0 | D52: 0
B53: 1 | C53: 1 | D53: 1
B54: 2 | C54: 2 | D54: 2
B55: 3 | C55: 3 | D55: 3
B56: 4 | C56: 4 | D56: 4
B57: 5 | C57: 5 | D57: 5
B58: 6 | C58: 6 | D58: 6
B59: 7 | C59: 7 | D59: 7
B60: 8 | C60: 8 | D60: 8
B61: 9 | C61: 9 | D61: 9
B62: 10 | C62: 10 | D62: 10
B63: 11 | C63: 11 | D63: 11
B64: 12 | C64: 12 | D64: 12
B65: 13 | C65: 13 | D65: 13
B66: 14 | C66: 14 | D66: 14
B67: 15 | C67: 15 | D67: 15
B68: 16 | C68: 16 | D68: 16
B69: 17 | C69: 17 | D69: 17
B70: 18 | C70: 18 | D70: 18
B71: 19 | C71: 19 | D71: 19
B72: 20 | C72: 20 | D72: 20
B73: 21 | C73: 21 | D73: 21
B74: 22 | C74: 22 | D74: 22
B81: ='Server10 Lotto3 HP CS250'!#REF! ->  | C81: ='Server10 Lotto1 R730xd 2'!$C$78 -> No | D81: ='Server10 Lotto1 R730xd 3'!$C$78 -> No
A82: HDD max | B82: 24 | C82: 24 | D82: 24
A83: HDD 300GB | B83: =B49+B51 -> 2 | C83: =C49+C51 -> 2 | D83: =D49+D51 -> 2
A84: Hot Spare for 1TB HDD | B84: =IF(B81="Yes",1,0) ->  | C84: =IF(C81="Yes",1,0) -> 0 | D84: =IF(D81="Yes",1,0) -> 0
A85: HDD 1TB Selected | B85: ='Server10 Lotto3 HP CS250'!#REF! ->  | C85: ='Server10 Lotto1 R730xd 2'!$C$70 -> 0 | D85: ='Server10 Lotto1 R730xd 3'!$C$70 -> 0
A86: 1TB 7.2K RPM NLSAS 6Gbps 2.5in Hot-plug Hard Drive,13G,CusKit | B86: =$B$82-$B$83-$B$85 ->  | C86: =$C$82-$C$83-$C$85 -> 22 | D86: =$D$82-$D$83-$D$85 -> 22
B87: =IF(B86-1<1,0,B86-1) ->  | C87: 21 | D87: =IF(D86-1<1,0,D86-1) -> 21
C88: 20 | D88: =IF(D87-1<1,0,D87-1) -> 20
C89: 19 | D89: =IF(D88-1<1,0,D88-1) -> 19
C90: 18 | D90: =IF(D89-1<1,0,D89-1) -> 18
C91: 17 | D91: =IF(D90-1<1,0,D90-1) -> 17
C92: 16 | D92: =IF(D91-1<1,0,D91-1) -> 16
C93: 15 | D93: =IF(D92-1<1,0,D92-1) -> 15
C94: 14 | D94: =IF(D93-1<1,0,D93-1) -> 14
B95: =IF(B94-1<1,0,B94-1) ->  | C95: 13 | D95: =IF(D94-1<1,0,D94-1) -> 13
C96: 12 | D96: =IF(D95-1<1,0,D95-1) -> 12
C97: 11 | D97: =IF(D96-1<1,0,D96-1) -> 11
C98: 10 | D98: =IF(D97-1<1,0,D97-1) -> 10
C99: 9 | D99: =IF(D98-1<1,0,D98-1) -> 9
C100: 8 | D100: =IF(D99-1<1,0,D99-1) -> 8
C101: 7 | D101: =IF(D100-1<1,0,D100-1) -> 7
C102: 6 | D102: =IF(D101-1<1,0,D101-1) -> 6
C103: 5 | D103: =IF(D102-1<1,0,D102-1) -> 5
C104: 4 | D104: =IF(D103-1<1,0,D103-1) -> 4
C105: 3 | D105: =IF(D104-1<1,0,D104-1) -> 3
C106: 2 | D106: =IF(D105-1<1,0,D105-1) -> 2
C107: 1 | D107: =IF(D106-1<1,0,D106-1) -> 1
C108: 0 | D108: =IF(D107-1<1,0,D107-1) -> 0
A118: RAID Configuration | D118: HDD 300GB R730xd | F118: HDD 1TB R730xd | H118: HDD 300GB R730xd 2 | J118: HDD 1TB R730xd 2 | L118: HDD 300GB R730xd 3 | N118: HDD 1TB R730xd 3
A119: RAID Personalizzato | B119: =IF($B$135<=8,0,"") -> 0 | C119: [780-BBJC] | D119: RAID Personalizzato | E119: [780-BBJC] | F119: RAID Personalizzato | G119: [780-BBJC] | H119: RAID Personalizzato | I119: [780-BBJC] | J119: RAID Personalizzato | K119: [780-BBJC] | L119: RAID Personalizzato | M119: [780-BBJC] | N119: RAID Personalizzato | O119: [780-BBJC]
A120: C10 - Unconfigured RAID for H330 (1-8 HDDs) | B120: 1 | C120: [780-BBJD] | D120: =IF($B$50=0,A120,"") -> C10 - Unconfigured RAID for H330 (1-8 HDDs) | E120: =IF($B$50=0,C120,"") -> [780-BBJD] | F120: =IF($B$84=0,A120,"") ->  | G120: =IF($B$84=0,C120,"") ->  | H120: =IF($C$50=0,A120,"") -> C10 - Unconfigured RAID for H330 (1-8 HDDs) | I120: =IF($C$50=0,C120,"") -> [780-BBJD] | J120: =IF($C$84=0,A120,"") -> C10 - Unconfigured RAID for H330 (1-8 HDDs) | K120: =IF($C$84=0,C120,"") -> [780-BBJD] | L120: =IF($D$50=0,A120,"") -> C10 - Unconfigured RAID for H330 (1-8 HDDs) | M120: =IF($D$50=0,C120,"") -> [780-BBJD] | N120: =IF($D$84=0,A120,"") -> C10 - Unconfigured RAID for H330 (1-8 HDDs) | O120: =IF($D$84=0,C120,"") -> [780-BBJD]
A121: C2 - RAID 0 for H330 (1-8 HDDs) | B121: 1 | C121: [780-BBJF] | D121: =IF($B$50=0,A121,"") -> C2 - RAID 0 for H330 (1-8 HDDs) | E121: =IF($B$50=0,C121,"") -> [780-BBJF] | F121: =IF($B$84=0,A121,"") ->  | G121: =IF($B$84=0,C121,"") ->  | H121: =IF($C$50=0,A121,"") -> C2 - RAID 0 for H330 (1-8 HDDs) | I121: =IF($C$50=0,C121,"") -> [780-BBJF] | J121: =IF($C$84=0,A121,"") -> C2 - RAID 0 for H330 (1-8 HDDs) | K121: =IF($C$84=0,C121,"") -> [780-BBJF] | L121: =IF($D$50=0,A121,"") -> C2 - RAID 0 for H330 (1-8 HDDs) | M121: =IF($D$50=0,C121,"") -> [780-BBJF] | N121: =IF($D$84=0,A121,"") -> C2 - RAID 0 for H330 (1-8 HDDs) | O121: =IF($D$84=0,C121,"") -> [780-BBJF]
A122: C3 - RAID 1 for H330 (2 HDDs) | B122: 1 | C122: [780-BBJK] | D122: =IF($B$49+$B$51-$B$50=2,A122,"") -> C3 - RAID 1 for H330 (2 HDDs) | E122: =IF($B$49+$B$51-$B$50=2,C122,"") -> [780-BBJK] | F122: =IF($B$85-$B$84=2,A122,"") ->  | G122: =IF($B$85-$B$84=2,C122,"") ->  | H122: =IF($C$49+$C$51-$C$50=2,A122,"") -> C3 - RAID 1 for H330 (2 HDDs) | I122: =IF($C$49+$C$51-$C$50=2,C122,"") -> [780-BBJK] | J122: =IF($C$85-$C$84=2,A122,"") ->  | K122: =IF($C$85-$C$84=2,C122,"") ->  | L122: =IF($D$49+$D$51-$D$50=2,A122,"") -> C3 - RAID 1 for H330 (2 HDDs) | M122: =IF($D$49+$D$51-$D$50=2,C122,"") -> [780-BBJK] | N122: =IF($D$85-$D$84=2,A122,"") ->  | O122: =IF($D$85-$D$84=2,C122,"") -> 
A123: C4 - RAID 5 for H330 (3-8 HDDs) | B123: 1 | C123: [780-BBJL] | D123: =IF($B$49+$B$51-$B$50>=3,A123,"") ->  | E123: =IF($B$49+$B$51-$B$50>=3,C123,"") ->  | F123: =IF($B$85-$B$84>=3,A123,"") ->  | G123: =IF($B$85-$B$84>=3,C123,"") ->  | H123: =IF($C$49+$C$51-$C$50>=3,A123,"") ->  | I123: =IF($C$49+$C$51-$C$50>=3,C123,"") ->  | J123: =IF($C$85-$C$84>=3,A123,"") ->  | K123: =IF($C$85-$C$84>=3,C123,"") ->  | L123: =IF($D$49+$D$51-$D$50>=3,A123,"") ->  | M123: =IF($D$49+$D$51-$D$50>=3,C123,"") ->  | N123: =IF($D$85-$D$84>=3,A123,"") ->  | O123: =IF($D$85-$D$84>=3,C123,"") -> 
A124: C6 - RAID 10 forH330 (4-8 HDDs in pairs) | B124: 1 | C124: [780-BBJN] | D124: =IF($B$49+$B$51-$B$50=4,A124,"") ->  | E124: =IF($B$49+$B$51-$B$50=4,C124,"") ->  | F124: =IF($B$85-$B$84=4,A124,"") ->  | G124: =IF($B$85-$B$84=4,C124,"") ->  | H124: =IF($C$49+$C$51-$C$50=4,A124,"") ->  | I124: =IF($C$49+$C$51-$C$50=4,C124,"") ->  | J124: =IF($C$85-$C$84=4,A124,"") ->  | K124: =IF($C$85-$C$84=4,C124,"") ->  | L124: =IF($D$49+$D$51-$D$50=4,A124,"") ->  | M124: =IF($D$49+$D$51-$D$50=4,C124,"") ->  | N124: =IF($D$85-$D$84=4,A124,"") ->  | O124: =IF($D$85-$D$84=4,C124,"") -> 
A125: C7 - RAID 1+RAID 1 for H330 (2 + 2 HDDs) | B125: 1 | C125: [780-BBJO] | D125: =IF($B$49+$B$51-$B$50=4,A125,"") ->  | E125: =IF($B$49+$B$51-$B$50=4,C125,"") ->  | F125: =IF($B$85-$B$84=4,A125,"") ->  | G125: =IF($B$85-$B$84=4,C125,"") ->  | H125: =IF($C$49+$C$51-$C$50=4,A125,"") ->  | I125: =IF($C$49+$C$51-$C$50=4,C125,"") ->  | J125: =IF($C$85-$C$84=4,A125,"") ->  | K125: =IF($C$85-$C$84=4,C125,"") ->  | L125: =IF($D$49+$D$51-$D$50=4,A125,"") ->  | M125: =IF($D$49+$D$51-$D$50=4,C125,"") ->  | N125: =IF($D$85-$D$84=4,A125,"") ->  | O125: =IF($D$85-$D$84=4,C125,"") -> 
A126: C8 - RAID 1+RAID 5 for H330 (2 + 3-8 HDDs) | B126: 1 | C126: [780-BBJP] | D126: =IF($B$49+$B$51-$B$50>=5,A126,"") ->  | E126: =IF($B$49+$B$51-$B$50>=5,C126,"") ->  | F126: =IF($B$85-$B$84>=5,A126,"") ->  | G126: =IF($B$85-$B$84>=5,C126,"") ->  | H126: =IF($C$49+$C$51-$C$50>=5,A126,"") ->  | I126: =IF($C$49+$C$51-$C$50>=5,C126,"") ->  | J126: =IF($C$85-$C$84>=5,A126,"") ->  | K126: =IF($C$85-$C$84>=5,C126,"") ->  | L126: =IF($D$49+$D$51-$D$50>=5,A126,"") ->  | M126: =IF($D$49+$D$51-$D$50>=5,C126,"") ->  | N126: =IF($D$85-$D$84>=5,A126,"") ->  | O126: =IF($D$85-$D$84>=5,C126,"") -> 
A127: C9 - RAID 1+RAID 10 for H330 (2 + 4 HDDs in pairs) | B127: 1 | C127: [780-BBJQ] | D127: =IF($B$49+$B$51-$B$50=6,A127,"") ->  | E127: =IF($B$49+$B$51-$B$50=6,C127,"") ->  | F127: =IF($B$85-$B$84=6,A127,"") ->  | G127: =IF($B$85-$B$84=6,C127,"") ->  | H127: =IF($C$49+$C$51-$C$50=6,A127,"") ->  | I127: =IF($C$49+$C$51-$C$50=6,C127,"") ->  | J127: =IF($C$85-$C$84=6,A127,"") ->  | K127: =IF($C$85-$C$84=6,C127,"") ->  | L127: =IF($D$49+$D$51-$D$50=6,A127,"") ->  | M127: =IF($D$49+$D$51-$D$50=6,C127,"") ->  | N127: =IF($D$85-$D$84=6,A127,"") ->  | O127: =IF($D$85-$D$84=6,C127,"") -> 
A134: T630
A135: 300GB 10K RPM SAS 12Gbps 2.5in Hot-plug Hard Drive - Kit | C135: 10L3-HDD300GB-DELL | D135: S10L1-T630-HDD300 | E135: [400-AJQC] | F135: 93
A136: 1.2TB 10K RPM SAS 12Gbps 2.5in Hot-plug Hard Drive - Kit | C136: 10L3-HDD1TB-DELL | D136: S10L1-T630-HDD1000 | E136: [400-AJPX] | F136: 217
A138: HDD max | B138: 32
A139: HDD 300GB Base | B139: 2
A140: HDD 300GB Selected | B140: ='Server10 Lotto3 VRTX'!C59 -> 0
A141: 300GB SAS 6Gbps 10k 2.5" HD Hot Plug Fully Assembled - Kit | B141: 0 | D141: Hot Spare for 300GB HDD | E141: ='Server10 Lotto3 VRTX'!#REF! ->  | F141: =IF(E141="Yes",1,0) -> 
B142: 1
B143: 2
B144: 3
B145: 4
B146: 5
B147: 6
B148: 7
B149: 8
B150: 9
B151: 10
B152: 11
B153: 12
B154: 13
B155: 14
B156: 15
B157: 16
B158: 17
B159: 18
B160: 19
B161: 20
B162: 21
B163: 22
B164: 23
A165: HDD max | B165: 25
A166: HDD 300GB | B166: =B139+B140 -> 2
A167: HDD 1TB Selected | B167: ='Server10 Lotto3 VRTX'!C61 -> 0 | D167: Hot Spare for 1TB HDD | E167: ='Server10 Lotto3 VRTX'!#REF! ->  | F167: =IF(E167="Yes",1,0) -> 
A168: 1.2TB 10K RPM SAS 6Gbps 2.5in Hot-plug Hard Drive - Kit | B168: =$B$165-$B$166-$B$167 -> 23
B169: =IF(B168-1<1,0,B168-1) -> 22
B170: 21
B171: 20
B172: 19
B173: 18
B174: 17
B175: 16
B176: 15
B177: =IF(B176-1<1,0,B176-1) -> 14
B178: 13
B179: 12
B180: 11
B181: 10
B182: 9
B183: 8
B184: 7
B185: 6
B186: 5
B187: 4
B188: 3
B189: 2
B190: 1
B191: 0
A193: RAID Configuration | D193: HDD 300GB | F193: HDD 1TB
A194: RAID Personalizzato | B194: =IF($B$135<=8,0,"") -> 0 | C194: [780-BBJC] | D194: RAID Personalizzato | E194: [780-BBJC] | F194: RAID Personalizzato | G194: [780-BBJC]
A195: C10 - Unconfigured RAID for H330 (1-8 HDDs) | B195: 1 | C195: [780-BBJD] | D195: =IF($F$141=0,A195,"") ->  | E195: =IF($F$141=0,C195,"") ->  | F195: =IF($F$167=0,A195,"") ->  | G195: =IF($F$167=0,C195,"") -> 
A196: C2 - RAID 0 for H330 (1-8 HDDs) | B196: 1 | C196: [780-BBJF] | D196: =IF($F$141=0,A196,"") ->  | E196: =IF($F$141=0,C196,"") ->  | F196: =IF($F$167=0,A196,"") ->  | G196: =IF($F$167=0,C196,"") -> 
A197: C3 - RAID 1 for H330 (2 HDDs) | B197: 1 | C197: [780-BBJK] | D197: =IF($B$139+$B$140-$F$141=2,A197,"") ->  | E197: =IF($B$139+$B$140-$F$141=2,C197,"") ->  | F197: =IF($B$167-$F$167=2,A197,"") ->  | G197: =IF($B$167-$F$167=2,C197,"") -> 
A198: C4 - RAID 5 for H330 (3-8 HDDs) | B198: 1 | C198: [780-BBJL] | D198: =IF($B$139+$B$140-$F$141>=3,A198,"") ->  | E198: =IF($B$139+$B$140-$F$141>=3,C198,"") ->  | F198: =IF($B$167-$F$167>=3,A198,"") ->  | G198: =IF($B$167-$F$167>=3,C198,"") -> 
A199: C6 - RAID 10 forH330 (4-8 HDDs in pairs) | B199: 1 | C199: [780-BBJN] | D199: =IF($B$139+$B$140-$F$141=4,A199,"") ->  | E199: =IF($B$139+$B$140-$F$141=4,C199,"") ->  | F199: =IF($B$167-$F$167=4,A199,"") ->  | G199: =IF($B$167-$F$167=4,C199,"") -> 
A200: C7 - RAID 1+RAID 1 for H330 (2 + 2 HDDs) | B200: 1 | C200: [780-BBJO] | D200: =IF($B$139+$B$140-$F$141=4,A200,"") ->  | E200: =IF($B$139+$B$140-$F$141=4,C200,"") ->  | F200: =IF($B$167-$F$167=4,A200,"") ->  | G200: =IF($B$167-$F$167=4,C200,"") -> 
A201: C8 - RAID 1+RAID 5 for H330 (2 + 3-8 HDDs) | B201: 1 | C201: [780-BBJP] | D201: =IF($B$139+$B$140-$F$141>=5,A201,"") ->  | E201: =IF($B$139+$B$140-$F$141>=5,C201,"") ->  | F201: =IF($B$167-$F$167>=5,A201,"") ->  | G201: =IF($B$167-$F$167>=5,C201,"") -> 
A202: C9 - RAID 1+RAID 10 for H330 (2 + 4 HDDs in pairs) | B202: 1 | C202: [780-BBJQ] | D202: =IF($B$139+$B$140-$F$141=6,A202,"") ->  | E202: =IF($B$139+$B$140-$F$141=6,C202,"") ->  | F202: =IF($B$167-$F$167=6,A202,"") ->  | G202: =IF($B$167-$F$167=6,C202,"") -> 

Sheet PCI (hidden)
A1: Additional Card for PCIe Slot 1 (Low Profile)
A2: R630
A3: None | B3: ="" ->  | C3: ="" ->  | D3: ="" ->  | E3: ="" ->  | F3: ="" ->  | G3: ="" ->  | H3: 0 | I3: ="" -> 
A4: Broadcom 5720 DP 1Gb Network Interface Card, Low Profile,CusKit | B4: 1 | C4: 10L1-LAN1GB-LP | D4: S10L1-R630-LAN1-LP | E4: [540-BBGW] | F4: 35 | H4: 0
A5: QLogic 57810 Dual Port 10Gb Direct Attach/SFP+ Converged Network Adapter (CNA), Low Profile,CusKit | B5: 1 | C5: 10L1-CNA10-LP | D5: S10L1-R630-CNA10-LP | E5: [540-BBCV] | F5: 774 | G5: PowerEdge SFP+, 10GbE SR/SX, Optical Tranceiver, LC Connector, for Intel and Broadcom,CusKit | H5: 2 | I5: [407-BBOK]
A6: Emulex LPE12002 Dual Channel 8Gb PCIe Host Bus Adapter, Low Profile | B6: 1 | C6: 10L1-FC-LP | D6: S10L1-R630-FC-LP | E6: [406-BBHB] | F6: 940 | H6: 0
A7: QLogic 57810 Dual Port 10Gb Direct Attach/SFP+ Low Profile Network Adapter,CusKit | B7: 1 | C7: 10L1-LAN10GB-LP | D7: S10L1-R630-LAN10-LP | E7: [540-BBDX] | F7: 417 | G7: PowerEdge SFP+, 10GbE SR/SX, Optical Tranceiver, LC Connector, for Intel and Broadcom,CusKit | H7: 2 | I7: [407-BBOK]
A9: Additional Card for PCIe Slot 2 (Full height)
A10: R630
A11: None | B11: ="" ->  | C11: ="" ->  | D11: ="" ->  | E11: ="" ->  | F11: ="" ->  | G11: ="" ->  | H11: 0 | I11: ="" -> 
A12: Broadcom 5720 DP 1Gb Network Interface Card,Full Height,CusKit | B12: 1 | C12: 10L1-LAN1GB | D12: S10L1-R630-LAN1 | E12: [540-BBGY] | F12: 35 | H12: 0
A13: QLogic 57810 Dual Port 10Gb Direct Attach/SFP+ Converged Network Adapter (CNA),Full Height,CusKit | B13: 1 | C13: 10L1-CNA10 | D13: S10L1-R630-CNA10 | E13: [540-BBCV] | F13: 774 | G13: PowerEdge SFP+, 10GbE SR/SX, Optical Tranceiver, LC Connector, for Intel and Broadcom,CusKit | H13: 2 | I13: [407-BBOK]
A14: Emulex LPE 12002, Dual Port 8Gb Fibre Channel HBA,Full Height,CusKit | B14: 1 | C14: 10L1-FC | D14: S10L1-R630-FC | E14: [406-BBGR] | F14: 940 | H14: 0
A15: QLogic 57810 Dual Port 10Gb Direct Attach/SFP+ Network Adapter,Full Height,CusKit | B15: 1 | C15: 10L1-LAN10GB | D15: S10L1-R630-LAN10 | E15: [540-BBGS] | F15: 417 | G15: PowerEdge SFP+, 10GbE SR/SX, Optical Tranceiver, LC Connector, for Intel and Broadcom,CusKit | H15: 2 | I15: [407-BBOK]
A18: CS250-HC
A19: Switch
A20: None | B20: ="" ->  | C20: ="" ->  | D20: ="" ->  | E20: ="" ->  | F20: ="" ->  | G20: ="" ->  | H20: 0 | I20: ="" -> 
A21: HP 5130-24G-4SFP+ EI Switch | B21: 1 | C21: 10L3-SWITCH | D21: S10L1-R630-LAN1 | E21: JG932A | F21: 1947 | G21: HP X240 10G SFP+ SFP+ 3m DAC Cable | H21: 4 | I21: JD097C
A23: Additional Card for PCIe Slot 2 (Full height) (CPU 1)
A24: R730xd
A25: None | B25: ="" ->  | C25: ="" ->  | D25: ="" ->  | E25: ="" ->  | F25: ="" ->  | G25: ="" ->  | H25: 0 | I25: ="" -> 
A26: Broadcom 5720 DP 1Gb Network Interface Card,Full Height,CusKit | B26: 1 | C26: 10L1-LAN1GB | D26: S10L1-R630-LAN1 | E26: [540-BBGY] | F26: 35 | H26: 0
A27: QLogic 57810 Dual Port 10Gb Direct Attach/SFP+ Converged Network Adapter (CNA),Full Height,CusKit | B27: 1 | C27: 10L1-CNA10 | D27: S10L1-R630-CNA10 | E27: [540-BBCV] | F27: 774 | G27: PowerEdge SFP+, 10GbE SR/SX, Optical Tranceiver, LC Connector, for Intel and Broadcom,CusKit | H27: 2 | I27: [407-BBOK]
A28: QLogic 2562, Dual Port 8Gb Optical Fibre Channel HBA,Full Height,CusKit | B28: 1 | C28: 10L1-FC-U | D28: S10L1-R630-FC | E28: [406-BBEK] | F28: 940 | H28: 0
A29: QLogic 57810 Dual Port 10Gb Direct Attach/SFP+ Network Adapter,Full Height,CusKit | B29: 1 | C29: 10L1-LAN10GB | D29: S10L1-R630-LAN10 | E29: [540-BBGS] | F29: 417 | G29: PowerEdge SFP+, 10GbE SR/SX, Optical Tranceiver, LC Connector, for Intel and Broadcom,CusKit | H29: 2 | I29: [407-BBOK]
A31: Additional Card for PCIe Slot 3 (Full height) (CPU 1)
A32: R730xd
A33: None | B33: ="" ->  | C33: ="" ->  | D33: ="" ->  | E33: ="" ->  | F33: ="" ->  | G33: ="" ->  | H33: 0 | I33: ="" -> 
A34: Broadcom 5720 DP 1Gb Network Interface Card,Full Height,CusKit | B34: 1 | C34: 10L1-LAN1GB | D34: S10L1-R630-LAN1 | E34: [540-BBGY] | F34: 35 | H34: 0
A35: QLogic 57810 Dual Port 10Gb Direct Attach/SFP+ Converged Network Adapter (CNA),Full Height,CusKit | B35: 1 | C35: 10L1-CNA10 | D35: S10L1-R630-CNA10 | E35: [540-BBCV] | F35: 774 | G35: PowerEdge SFP+, 10GbE SR/SX, Optical Tranceiver, LC Connector, for Intel and Broadcom,CusKit | H35: 2 | I35: [407-BBOK]
A36: QLogic 2562, Dual Port 8Gb Optical Fibre Channel HBA,Full Height,CusKit | B36: 1 | C36: 10L1-FC-U | D36: S10L1-R630-FC | E36: [406-BBEK] | F36: 940 | H36: 0
A37: QLogic 57810 Dual Port 10Gb Direct Attach/SFP+ Network Adapter,Full Height,CusKit | B37: 1 | C37: 10L1-LAN10GB | D37: S10L1-R630-LAN10 | E37: [540-BBGS] | F37: 417 | G37: PowerEdge SFP+, 10GbE SR/SX, Optical Tranceiver, LC Connector, for Intel and Broadcom,CusKit | H37: 2 | I37: [407-BBOK]
A39: Additional Card for PCIe Slot 4 (Low Profile) (CPU 2)
A40: R730xd
A41: None | B41: ="" ->  | C41: ="" ->  | D41: ="" ->  | E41: ="" ->  | F41: ="" ->  | G41: ="" ->  | H41: 0 | I41: ="" -> 
A42: Broadcom 5720 DP 1Gb Network Interface Card, Low Profile,CusKit | B42: 1 | C42: 10L1-LAN1GB-LP | D42: S10L1-R630-LAN1-LP | E42: [540-BBGW] | F42: 35 | H42: 0
A43: QLogic 57810 Dual Port 10Gb Direct Attach/SFP+ Converged Network Adapter (CNA), Low Profile,CusKit | B43: 1 | C43: 10L1-CNA10-LP | D43: S10L1-R630-CNA10-LP | E43: [540-BBCV] | F43: 774 | G43: PowerEdge SFP+, 10GbE SR/SX, Optical Tranceiver, LC Connector, for Intel and Broadcom,CusKit | H43: 2 | I43: [407-BBOK]
A44: Qlogic 2562 Dual Channel 8Gb Optical Fibre Channel HBA PCIe, Low Profile | B44: 1 | C44: 10L1-FC-LP-U | D44: S10L1-R630-FC-LP | E44: [406-BBEL] | F44: 940 | H44: 0
A45: QLogic 57810 Dual Port 10Gb Direct Attach/SFP+ Low Profile Network Adapter,CusKit | B45: 1 | C45: 10L1-LAN10GB-LP | D45: S10L1-R630-LAN10-LP | E45: [540-BBDX] | F45: 417 | G45: PowerEdge SFP+, 10GbE SR/SX, Optical Tranceiver, LC Connector, for Intel and Broadcom,CusKit | H45: 2 | I45: [407-BBOK]
A47: Additional Card for PCIe Slot 5 (Low Profile) (CPU 2)
A48: R730xd
A49: None | B49: ="" ->  | C49: ="" ->  | D49: ="" ->  | E49: ="" ->  | F49: ="" ->  | G49: ="" ->  | H49: 0 | I49: ="" -> 
A50: Broadcom 5720 DP 1Gb Network Interface Card, Low Profile,CusKit | B50: 1 | C50: 10L1-LAN1GB-LP | D50: S10L1-R630-LAN1-LP | E50: [540-BBGW] | F50: 35 | H50: 0
A51: QLogic 57810 Dual Port 10Gb Direct Attach/SFP+ Converged Network Adapter (CNA), Low Profile,CusKit | B51: 1 | C51: 10L1-CNA10-LP | D51: S10L1-R630-CNA10-LP | E51: [540-BBCV] | F51: 774 | G51: PowerEdge SFP+, 10GbE SR/SX, Optical Tranceiver, LC Connector, for Intel and Broadcom,CusKit | H51: 2 | I51: [407-BBOK]
A52: Qlogic 2562 Dual Channel 8Gb Optical Fibre Channel HBA PCIe, Low Profile | B52: 1 | C52: 10L1-FC-LP-U | D52: S10L1-R630-FC-LP | E52: [406-BBEL] | F52: 940 | H52: 0
A53: QLogic 57810 Dual Port 10Gb Direct Attach/SFP+ Low Profile Network Adapter,CusKit | B53: 1 | C53: 10L1-LAN10GB-LP | D53: S10L1-R630-LAN10-LP | E53: [540-BBDX] | F53: 417 | G53: PowerEdge SFP+, 10GbE SR/SX, Optical Tranceiver, LC Connector, for Intel and Broadcom,CusKit | H53: 2 | I53: [407-BBOK]
A55: Additional Card for PCIe Slot 6 (Low Profile) (CPU 2)
A56: R730xd
A57: None | B57: ="" ->  | C57: ="" ->  | D57: ="" ->  | E57: ="" ->  | F57: ="" ->  | G57: ="" ->  | H57: 0 | I57: ="" -> 
A58: Broadcom 5720 DP 1Gb Network Interface Card, Low Profile,CusKit | B58: 1 | C58: 10L1-LAN1GB-LP | D58: S10L1-R630-LAN1-LP | E58: [540-BBGW] | F58: 35 | H58: 0
A59: QLogic 57810 Dual Port 10Gb Direct Attach/SFP+ Converged Network Adapter (CNA), Low Profile,CusKit | B59: 1 | C59: 10L1-CNA10-LP | D59: S10L1-R630-CNA10-LP | E59: [540-BBCV] | F59: 774 | G59: PowerEdge SFP+, 10GbE SR/SX, Optical Tranceiver, LC Connector, for Intel and Broadcom,CusKit | H59: 2 | I59: [407-BBOK]
A60: Qlogic 2562 Dual Channel 8Gb Optical Fibre Channel HBA PCIe, Low Profile | B60: 1 | C60: 10L1-FC-LP-U | D60: S10L1-R630-FC-LP | E60: [406-BBEL] | F60: 940 | H60: 0
A61: QLogic 57810 Dual Port 10Gb Direct Attach/SFP+ Low Profile Network Adapter,CusKit | B61: 1 | C61: 10L1-LAN10GB-LP | D61: S10L1-R630-LAN10-LP | E61: [540-BBDX] | F61: 417 | G61: PowerEdge SFP+, 10GbE SR/SX, Optical Tranceiver, LC Connector, for Intel and Broadcom,CusKit | H61: 2 | I61: [407-BBOK]
A64: Additional Card for PCIe Slot 1 (Full height)
A65: VRTX
A66: None | B66: ="" ->  | C66: ="" ->  | D66: ="" ->  | E66: ="" ->  | F66: ="" ->  | G66: ="" ->  | H66: 0 | I66: ="" -> 
A67: Broadcom 5720 DP 1Gb Network Interface Card, Full Height, CusKit | B67: 1 | C67: 10L3-LAN1GB | D67: S10L3-VRTX-LAN1 | E67: [540-BBGY] | F67: 37 | H67: 0
A68: Broadcom 57810 DP 10Gb DA/SFP+ Converged Network Adapter (CNA), Full Height, CusKit | B68: 1 | C68: 10L3-CNA10 | D68: S10L1-R630-CNA10 | E68: [540-11149] | F68: 425 | G68: 10GbE SR SFP+ Transceiver, 10Gb and 1Gb compatible for Intel and Broadcom Server Adapter - Kit | H68: 2 | I68: [407-10357]
A69: QLogic 2562, Dual Port 8Gb Optical Fibre Channel HBA, Full Height, CusKit | B69: 1 | C69: 10L3-FC-U | D69: S10L3-VRTX-FC | E69: [406-BBEK] | F69: 516 | H69: 0
A70: Broadcom 57810 DP 10Gb DA/SFP+ Network Adapter, Full Height, CusKit | B70: 1 | C70: 10L3-LAN10GB | D70: S10L1-T630-LAN10 | E70: [540-11149] | F70: 416 | G70: 10GbE SR SFP+ Transceiver, 10Gb and 1Gb compatible for Intel and Broadcom Server Adapter - Kit | H70: 2 | I70: [407-10357]
A73: Additional Card for PCIe Slot 2 (Full height)
A74: VRTX
A75: None | B75: ="" ->  | C75: ="" ->  | D75: ="" ->  | E75: ="" ->  | F75: ="" ->  | G75: ="" ->  | H75: 0 | I75: ="" -> 
A76: Broadcom 5720 DP 1Gb Network Interface Card, Full Height, CusKit | B76: 1 | C76: 10L3-LAN1GB | D76: S10L3-VRTX-LAN1 | E76: [540-BBGY] | F76: 37 | H76: 0
A77: Broadcom 57810 DP 10Gb DA/SFP+ Converged Network Adapter (CNA), Full Height, CusKit | B77: 1 | C77: 10L3-CNA10 | D77: S10L1-R630-CNA10 | E77: [540-11149] | F77: 425 | G77: 10GbE SR SFP+ Transceiver, 10Gb and 1Gb compatible for Intel and Broadcom Server Adapter - Kit | H77: 2 | I77: [407-10357]
A78: QLogic 2562, Dual Port 8Gb Optical Fibre Channel HBA, Full Height, CusKit | B78: 1 | C78: 10L3-FC-U | D78: S10L3-VRTX-FC | E78: [406-BBEK] | F78: 516 | H78: 0
A79: Broadcom 57810 DP 10Gb DA/SFP+ Network Adapter, Full Height, CusKit | B79: 1 | C79: 10L3-LAN10GB | D79: S10L1-T630-LAN10 | E79: [540-11149] | F79: 416 | G79: 10GbE SR SFP+ Transceiver, 10Gb and 1Gb compatible for Intel and Broadcom Server Adapter - Kit | H79: 2 | I79: [407-10357]
A82: Additional Card for PCIe Slot 3 (Full height)
A83: VRTX
A84: None | B84: ="" ->  | C84: ="" ->  | D84: ="" ->  | E84: ="" ->  | F84: ="" ->  | G84: ="" ->  | H84: 0 | I84: ="" -> 
A85: Broadcom 5720 DP 1Gb Network Interface Card, Full Height, CusKit | B85: 1 | C85: 10L3-LAN1GB | D85: S10L3-VRTX-LAN1 | E85: [540-BBGY] | F85: 37 | H85: 0
A86: Broadcom 57810 DP 10Gb DA/SFP+ Converged Network Adapter (CNA), Full Height, CusKit | B86: 1 | C86: 10L3-CNA10 | D86: S10L1-R630-CNA10 | E86: [540-11149] | F86: 425 | G86: 10GbE SR SFP+ Transceiver, 10Gb and 1Gb compatible for Intel and Broadcom Server Adapter - Kit | H86: 2 | I86: [407-10357]
A87: QLogic 2562, Dual Port 8Gb Optical Fibre Channel HBA, Full Height, CusKit | B87: 1 | C87: 10L3-FC-U | D87: S10L3-VRTX-FC | E87: [406-BBEK] | F87: 516 | H87: 0
A88: Broadcom 57810 DP 10Gb DA/SFP+ Network Adapter, Full Height, CusKit | B88: 1 | C88: 10L3-LAN10GB | D88: S10L1-T630-LAN10 | E88: [540-11149] | F88: 416 | G88: 10GbE SR SFP+ Transceiver, 10Gb and 1Gb compatible for Intel and Broadcom Server Adapter - Kit | H88: 2 | I88: [407-10357]
A91: Additional Card for PCIe Slot 4 (Low Profile)
A92: VRTX
A93: None | B93: ="" ->  | C93: ="" ->  | D93: ="" ->  | E93: ="" ->  | F93: ="" ->  | G93: ="" ->  | H93: 0 | I93: ="" -> 
A94: Broadcom 5720 DP 1Gb Network Interface Card, Low Profile, CusKit | B94: 1 | C94: 10L3-LAN1GB-LP | D94: S10L3-VRTX-LAN1-LP | E94: [540-BBGW] | F94: 37 | H94: 0
A95: Broadcom 57810 DP 10Gb DA/SFP+ Converged Network Adapter (CNA), Low Profile, CusKit | B95: 1 | C95: 10L3-CNA10-LP | D95: S10L3-VRTX-CNA10-LP | E95: [540-11145] | F95: 425 | G95: 10GbE SR SFP+ Transceiver, 10Gb and 1Gb compatible for Intel and Broadcom Server Adapter - Kit | H95: 2 | I95: [407-10357]
A96: Qlogic 2562 Dual Channel 8Gb Optical Fibre Channel HBA PCIe, Low Profile, CusKit | B96: 1 | C96: 10L3-FC-LP-U | D96: S10L3-VRTX-LP-FC | E96: [406-BBEL] | F96: 516 | H96: 0
A97: Broadcom 57810 DP 10Gb DA/SFP+ Network Adapter, Low Profile, CusKit | B97: 1 | C97: 10L3-LAN10GB-LP | D97: S10L3-VRTX-LAN10-LP | E97: [540-11145] | F97: 416 | G97: 10GbE SR SFP+ Transceiver, 10Gb and 1Gb compatible for Intel and Broadcom Server Adapter - Kit | H97: 2 | I97: [407-10357]
A101: Additional Card for PCIe Slot 5 (Low Profile)
A102: VRTX
A103: None | B103: ="" ->  | C103: ="" ->  | D103: ="" ->  | E103: ="" ->  | F103: ="" ->  | G103: ="" ->  | H103: 0 | I103: ="" -> 
A104: Broadcom 5720 DP 1Gb Network Interface Card, Low Profile, CusKit | B104: 1 | C104: 10L3-LAN1GB-LP | D104: S10L3-VRTX-LAN1-LP | E104: [540-BBGW] | F104: 37 | H104: 0
A105: Broadcom 57810 DP 10Gb DA/SFP+ Converged Network Adapter (CNA), Low Profile, CusKit | B105: 1 | C105: 10L3-CNA10-LP | D105: S10L3-VRTX-CNA10-LP | E105: [540-11145] | F105: 425 | G105: 10GbE SR SFP+ Transceiver, 10Gb and 1Gb compatible for Intel and Broadcom Server Adapter - Kit | H105: 2 | I105: [407-10357]
A106: Qlogic 2562 Dual Channel 8Gb Optical Fibre Channel HBA PCIe, Low Profile, CusKit | B106: 1 | C106: 10L3-FC-LP-U | D106: S10L3-VRTX-LP-FC | E106: [406-BBEL] | F106: 516 | H106: 0
A107: Broadcom 57810 DP 10Gb DA/SFP+ Network Adapter, Low Profile, CusKit | B107: 1 | C107: 10L3-LAN10GB-LP | D107: S10L3-VRTX-LAN10-LP | E107: [540-11145] | F107: 416 | G107: 10GbE SR SFP+ Transceiver, 10Gb and 1Gb compatible for Intel and Broadcom Server Adapter - Kit | H107: 2 | I107: [407-10357]
A109: Additional Card for PCIe Slot 6 (Low Profile)
A110: VRTX
A111: None | B111: ="" ->  | C111: ="" ->  | D111: ="" ->  | E111: ="" ->  | F111: ="" ->  | G111: ="" ->  | H111: 0 | I111: ="" -> 
A112: Broadcom 5720 DP 1Gb Network Interface Card, Low Profile, CusKit | B112: 1 | C112: 10L3-LAN1GB-LP | D112: S10L3-VRTX-LAN1-LP | E112: [540-BBGW] | F112: 37 | H112: 0
A113: Broadcom 57810 DP 10Gb DA/SFP+ Converged Network Adapter (CNA), Low Profile, CusKit | B113: 1 | C113: 10L3-CNA10-LP | D113: S10L3-VRTX-CNA10-LP | E113: [540-11145] | F113: 425 | G113: 10GbE SR SFP+ Transceiver, 10Gb and 1Gb compatible for Intel and Broadcom Server Adapter - Kit | H113: 2 | I113: [407-10357]
A114: Qlogic 2562 Dual Channel 8Gb Optical Fibre Channel HBA PCIe, Low Profile, CusKit | B114: 1 | C114: 10L3-FC-LP-U | D114: S10L3-VRTX-LP-FC | E114: [406-BBEL] | F114: 516 | H114: 0
A115: Broadcom 57810 DP 10Gb DA/SFP+ Network Adapter, Low Profile, CusKit | B115: 1 | C115: 10L3-LAN10GB-LP | D115: S10L3-VRTX-LAN10-LP | E115: [540-11145] | F115: 416 | G115: 10GbE SR SFP+ Transceiver, 10Gb and 1Gb compatible for Intel and Broadcom Server Adapter - Kit | H115: 2 | I115: [407-10357]
A117: Additional Card for PCIe Slot 7 (Low Profile)
A118: VRTX
A119: None | B119: ="" ->  | C119: ="" ->  | D119: ="" ->  | E119: ="" ->  | F119: ="" ->  | G119: ="" ->  | H119: 0 | I119: ="" -> 
A120: Broadcom 5720 DP 1Gb Network Interface Card, Low Profile, CusKit | B120: 1 | C120: 10L3-LAN1GB-LP | D120: S10L3-VRTX-LAN1-LP | E120: [540-BBGW] | F120: 37 | H120: 0
A121: Broadcom 57810 DP 10Gb DA/SFP+ Converged Network Adapter (CNA), Low Profile, CusKit | B121: 1 | C121: 10L3-CNA10-LP | D121: S10L3-VRTX-CNA10-LP | E121: [540-11145] | F121: 425 | G121: 10GbE SR SFP+ Transceiver, 10Gb and 1Gb compatible for Intel and Broadcom Server Adapter - Kit | H121: 2 | I121: [407-10357]
A122: Qlogic 2562 Dual Channel 8Gb Optical Fibre Channel HBA PCIe, Low Profile, CusKit | B122: 1 | C122: 10L3-FC-LP-U | D122: S10L3-VRTX-LP-FC | E122: [406-BBEL] | F122: 516 | H122: 0
A123: Broadcom 57810 DP 10Gb DA/SFP+ Network Adapter, Low Profile, CusKit | B123: 1 | C123: 10L3-LAN10GB-LP | D123: S10L3-VRTX-LAN10-LP | E123: [540-11145] | F123: 416 | G123: 10GbE SR SFP+ Transceiver, 10Gb and 1Gb compatible for Intel and Broadcom Server Adapter - Kit | H123: 2 | I123: [407-10357]
A125: Additional Card for PCIe Slot 8 (Low Profile)
A126: VRTX
A127: None | B127: ="" ->  | C127: ="" ->  | D127: ="" ->  | E127: ="" ->  | F127: ="" ->  | G127: ="" ->  | H127: 0 | I127: ="" -> 
A128: Broadcom 5720 DP 1Gb Network Interface Card, Low Profile, CusKit | B128: 1 | C128: 10L3-LAN1GB-LP | D128: S10L3-VRTX-LAN1-LP | E128: [540-BBGW] | F128: 37 | H128: 0
A129: Broadcom 57810 DP 10Gb DA/SFP+ Converged Network Adapter (CNA), Low Profile, CusKit | B129: 1 | C129: 10L1-CNA10-LP | D129: S10L3-VRTX-CNA10-LP | E129: [540-11145] | F129: 425 | G129: 10GbE SR SFP+ Transceiver, 10Gb and 1Gb compatible for Intel and Broadcom Server Adapter - Kit | H129: 2 | I129: [407-10357]
A130: Qlogic 2562 Dual Channel 8Gb Optical Fibre Channel HBA PCIe, Low Profile, CusKit | B130: 1 | C130: 10L3-FC-LP-U | D130: S10L3-VRTX-LP-FC | E130: [406-BBEL] | F130: 516 | H130: 0
A131: Broadcom 57810 DP 10Gb DA/SFP+ Network Adapter, Low Profile, CusKit | B131: 1 | C131: 10L3-LAN10GB-LP | D131: S10L3-VRTX-LAN10-LP | E131: [540-11145] | F131: 416 | G131: 10GbE SR SFP+ Transceiver, 10Gb and 1Gb compatible for Intel and Broadcom Server Adapter - Kit | H131: 2 | I131: [407-10357]

Sheet Servizi Opzionali (hidden)
A1: Warranty Upgrades | G1: Protezione dei dati - Keep Your Hard Drive
A2: R630
A3: None | B3: ="" ->  | C3: ="" ->  | D3: ="" ->  | E3: ="" ->  | F3: ="" ->  | I3: =IF(($A$22=$A$12),"",IF($A$8=$A$3,I13,IF($A$8=$A$4,I14,IF($A$8=$A$5,I15)))) ->  | J3: =IF(($A$22=$A$12),"",IF($A$8=$A$3,J13,IF($A$8=$A$4,J14,IF($A$8=$A$5,J15)))) ->  | K3: =IF(($A$22=$A$12),"",IF($A$8=$A$3,K13,IF($A$8=$A$4,K14,IF($A$8=$A$5,K15)))) ->  | L3: =IF(($A$22=$A$12),"",IF($A$8=$A$3,L13,IF($A$8=$A$4,L14,IF($A$8=$A$5,L15)))) ->  | M3: =IF(($A$22=$A$12),"",IF($A$8=$A$3,M13,IF($A$8=$A$4,M14,IF($A$8=$A$5,M15)))) -> 
A4: 4Yr Warranty upgrade | B4: 1 | C4: 10L1-SO-12M-P | D4: S10L1-R630-S-12M | E4: ="" ->  | F4: 175
A5: 5Yr Warranty upgrade | B5: 1 | C5: 10L1-SO-24M-P | D5: S10L1-R630-S-24M | E5: ="" ->  | F5: 350
A7: Estensione Garanzia Selezionata
A8: ='Server10 Lotto1 R630'!$B$132 -> None | C8: R630
A9: ='Server10 Lotto1 R630 2'!$B$132 -> None | C9: R630 2
A10: ='Server10 Lotto1 R630 3'!$B$132 -> None | C10: R630 3
A12: None | B12: ="" ->  | C12: ="" ->  | D12: ="" ->  | E12: ="" ->  | F12: ="" ->  | H12: None
A13: =IF($A$8=$A$3,H13,IF($A$8=$A$4,H14,IF($A$8=$A$5,H15))) -> 3Yr Data Protection - Keep Your Hard Drive | B13: 1 | C13: 10L1-SO-HDD | D13: S10L1-R630-S-HDD | E13: =IF($A$8=$A$3,L13,IF($A$8=$A$4,L14,IF($A$8=$A$5,L15))) -> [733-10057] | F13: 150 | H13: 3Yr Data Protection - Keep Your Hard Drive | I13: 1 | J13: 10L1-SO-HDD | K13: S10L1-R630-S-HDD | L13: [733-10057] | M13: 150
A14: None | B14: ="" ->  | C14: ="" ->  | D14: ="" ->  | E14: ="" ->  | F14: ="" ->  | H14: 4Yr Data Protection - Keep Your Hard Drive | I14: =I13 -> 1 | J14: =J13 -> 10L1-SO-HDD | K14: =K13 -> S10L1-R630-S-HDD | L14: [733-10058] | M14: =M13 -> 150
A15: =IF(A9=A3,H13,IF(A9=A4,H14,IF(A9=A5,H15))) -> 3Yr Data Protection - Keep Your Hard Drive | B15: 1 | C15: 10L1-SO-HDD | D15: S10L1-R730xd-S-HDD | E15: =IF(A9=A3,L13,IF(A9=A4,L14,IF(A9=A5,L15))) -> [733-10057] | F15: 150 | H15: 5Yr Data Protection - Keep Your Hard Drive | I15: =I13 -> 1 | J15: =J13 -> 10L1-SO-HDD | K15: =K13 -> S10L1-R630-S-HDD | L15: [733-10059] | M15: =M13 -> 150
A16: None | B16: ="" ->  | C16: ="" ->  | D16: ="" ->  | E16: ="" ->  | F16: ="" -> 
A17: =IF(A10=A3,H13,IF(A10=A4,H14,IF(A10=A5,H15))) -> 3Yr Data Protection - Keep Your Hard Drive | B17: 1 | C17: 10L1-SO-HDD | D17: S10L1-R730xd-S-HDD | E17: =IF(A10=A3,L13,IF(A10=A4,L14,IF(A10=A5,L15))) -> [733-10057] | F17: 150
A21: Protezione dei dati Selezionata
A22: ='Server10 Lotto1 R630'!B135 -> None
A24: Servizio Specialistico di System and Network Management per sistema opertivo Windows, erogato on site. | B24: 1 | C24: 10L1-SO-WIN | D24: S10L1-R630-S-WIN | F24: 193
A25: Servizio Specialistico di System and Network Management per sistema opertivo Linux, erogato on site. | B25: 1 | C25: 10L1-SO-LINUX | D25: S10L1-R630-S-LINUX | F25: 193
A27: None | B27: ="" ->  | C27: ="" ->  | D27: ="" ->  | E27: ="" ->  | F27: ="" -> 
A28: =IF('Server10 Lotto1 R630'!$C$16>=5,H28,"None") -> None | B28: =IF('Server10 Lotto1 R630'!$C$16>=5,I28,"") ->  | C28: =IF('Server10 Lotto1 R630'!$C$16>=5,J28,"") ->  | D28: =IF('Server10 Lotto1 R630'!$C$16>=5,K28,"") ->  | E28: =IF('Server10 Lotto1 R630'!$C$16>=5,L28,"") ->  | F28: =IF('Server10 Lotto1 R630'!$C$16>=5,M28,"") ->  | H28: Servizi di manutenzione preventiva | I28: 1 | J28: 10L1-SO-PREV | K28: S10L1-T630-S-PREV | M28: 193
A30: Warranty Upgrades | G30: Protezione dei dati - Keep Your Hard Drive
A31: R730xd
A32: None | B32: ="" ->  | C32: ="" ->  | D32: ="" ->  | E32: ="" ->  | F32: ="" ->  | I32: =IF(($A$22=$A$12),"",IF($A$8=$A$3,I42,IF($A$8=$A$4,I43,IF($A$8=$A$5,I44)))) ->  | J32: =IF(($A$22=$A$12),"",IF($A$8=$A$3,J42,IF($A$8=$A$4,J43,IF($A$8=$A$5,J44)))) ->  | K32: =IF(($A$22=$A$12),"",IF($A$8=$A$3,K42,IF($A$8=$A$4,K43,IF($A$8=$A$5,K44)))) ->  | L32: =IF(($A$22=$A$12),"",IF($A$8=$A$3,L42,IF($A$8=$A$4,L43,IF($A$8=$A$5,L44)))) ->  | M32: =IF(($A$22=$A$12),"",IF($A$8=$A$3,M42,IF($A$8=$A$4,M43,IF($A$8=$A$5,M44)))) -> 
A33: 4Yr Warranty upgrade | B33: 1 | C33: 10L1-SO-12M-S | D33: S10L1-R730xd-S-12M | E33: ="" ->  | F33: 175
A34: 5Yr Warranty upgrade | B34: 1 | C34: 10L1-SO-24M-S | D34: S10L1-R730xd-S-24M | E34: ="" ->  | F34: 350
A36: Estensione Garanzia Selezionata
A37: ='Server10 Lotto3 HP CS250'!#REF! ->  | C37: R730xd
A38: ='Server10 Lotto1 R730xd 2'!$B$141 -> None | C38: R730xd 2
A39: ='Server10 Lotto1 R730xd 3'!$B$141 -> None | C39: R730xd 3
A41: None | B41: ="" ->  | C41: ="" ->  | D41: ="" ->  | E41: ="" ->  | F41: ="" ->  | H41: None
A42: =IF($A$37=$A$32,H42,IF($A$37=$A$33,H43,IF($A$37=$A$34,H44))) ->  | B42: 1 | C42: 10L1-SO-HDD | D42: S10L1-R730xd-S-HDD | E42: =IF($A$37=$A$32,L42,IF($A$37=$A$33,L43,IF($A$37=$A$34,L44))) ->  | F42: 150 | H42: 3Yr Data Protection - Keep Your Hard Drive | I42: 1 | J42: 10L1-SO-HDD | K42: S10L1-R730xd-S-HDD | L42: [733-10057] | M42: 150
A43: None | B43: ="" ->  | C43: ="" ->  | D43: ="" ->  | E43: ="" ->  | F43: ="" ->  | H43: 4Yr Data Protection - Keep Your Hard Drive | I43: =I42 -> 1 | J43: =J42 -> 10L1-SO-HDD | K43: =K42 -> S10L1-R730xd-S-HDD | L43: [733-10058] | M43: =M42 -> 150
A44: =IF(A38=A32,H42,IF(A38=A33,H43,IF(A38=A34,H44))) -> 3Yr Data Protection - Keep Your Hard Drive | B44: 1 | C44: 10L1-SO-HDD | D44: S10L1-R730xd-S-HDD | E44: =IF(A38=A32,L42,IF(A38=A33,L43,IF(A38=A34,L44))) -> [733-10057] | F44: 150 | H44: 5Yr Data Protection - Keep Your Hard Drive | I44: =I42 -> 1 | J44: =J42 -> 10L1-SO-HDD | K44: =K42 -> S10L1-R730xd-S-HDD | L44: [733-10059] | M44: =M42 -> 150
A45: None | B45: ="" ->  | C45: ="" ->  | D45: ="" ->  | E45: ="" ->  | F45: ="" -> 
A46: =IF(A39=A32,H42,IF(A39=A33,H43,IF(A39=A34,H44))) -> 3Yr Data Protection - Keep Your Hard Drive | B46: 1 | C46: 10L1-SO-HDD | D46: S10L1-R730xd-S-HDD | E46: =IF(A39=A32,L42,IF(A39=A33,L43,IF(A39=A34,L44))) -> [733-10057] | F46: 150
A50: Protezione dei dati Selezionata
A51: ='Server10 Lotto3 HP CS250'!#REF! -> 
A53: Servizio Specialistico di System and Network Management per sistema opertivo Windows, erogato on site. | B53: 1 | C53: 10L1-SO-WIN | D53: S10L1-R730xd-S-WIN | F53: 193
A54: Servizio Specialistico di System and Network Management per sistema opertivo Linux, erogato on site. | B54: 1 | C54: 10L1-SO-LINUX | D54: S10L1-R730xd-S-LINUX | F54: 193
A56: None | B56: ="" ->  | C56: ="" ->  | D56: ="" ->  | E56: ="" ->  | F56: ="" -> 
A57: =IF('Server10 Lotto3 HP CS250'!$C$16>=5,H57,"None") -> None | B57: =IF('Server10 Lotto3 HP CS250'!$C$16>=5,I57,"") ->  | C57: =IF('Server10 Lotto3 HP CS250'!$C$16>=5,J57,"") ->  | D57: =IF('Server10 Lotto3 HP CS250'!$C$16>=5,K57,"") ->  | E57: =IF('Server10 Lotto3 HP CS250'!$C$16>=5,L57,"") ->  | F57: =IF('Server10 Lotto3 HP CS250'!$C$16>=5,M57,"") ->  | H57: Servizi di manutenzione preventiva | I57: 1 | J57: 10L1-SO-PREV | K57: S10L1-R730xd-S-PREV | M57: 193
A60: Warranty Upgrades | G60: Protezione dei dati - Keep Your Hard Drive
A61: T630
A62: None | B62: ="" ->  | C62: ="" ->  | D62: ="" ->  | E62: ="" ->  | F62: ="" ->  | I62: =IF(($A$22=$A$12),"",IF($A$8=$A$3,I70,IF($A$8=$A$4,I71,IF($A$8=$A$5,I72)))) ->  | J62: =IF(($A$22=$A$12),"",IF($A$8=$A$3,J70,IF($A$8=$A$4,J71,IF($A$8=$A$5,J72)))) ->  | K62: =IF(($A$22=$A$12),"",IF($A$8=$A$3,K70,IF($A$8=$A$4,K71,IF($A$8=$A$5,K72)))) ->  | L62: =IF(($A$22=$A$12),"",IF($A$8=$A$3,L70,IF($A$8=$A$4,L71,IF($A$8=$A$5,L72)))) ->  | M62: =IF(($A$22=$A$12),"",IF($A$8=$A$3,M70,IF($A$8=$A$4,M71,IF($A$8=$A$5,M72)))) -> 
A63: 4Yr Warranty upgrade | B63: 1 | C63: 10L1-SO-12M-T | D63: S10L1-T630-S-12M | E63: ="" ->  | F63: 175
A64: 5Yr Warranty upgrade | B64: 1 | C64: 10L1-SO-24M-T | D64: S10L1-T630-S-24M | E64: ="" ->  | F64: 350
A66: Estensione Garanzia Selezionata
A67: ='Server10 Lotto3 VRTX'!#REF! -> 
A69: None | B69: ="" ->  | C69: ="" ->  | D69: ="" ->  | E69: ="" ->  | F69: ="" ->  | H69: None
A70: =IF($A$67=$A$62,H70,IF($A$67=$A$63,H71,IF($A$67=$A$64,H72))) ->  | B70: 1 | C70: 10L1-SO-HDD | D70: S10L1-T630-S-HDD | E70: =IF($A$67=$A$62,L70,IF($A$67=$A$63,L71,IF($A$67=$A$64,L72))) ->  | F70: 150 | H70: 3Yr Data Protection - Keep Your Hard Drive | I70: 1 | J70: 10L1-SO-HDD | K70: S10L1-T630-S-HDD | L70: [733-10057] | M70: 150
H71: 4Yr Data Protection - Keep Your Hard Drive | I71: =I70 -> 1 | J71: =J70 -> 10L1-SO-HDD | K71: =K70 -> S10L1-T630-S-HDD | L71: [733-10058] | M71: =M70 -> 150
H72: 5Yr Data Protection - Keep Your Hard Drive | I72: =I70 -> 1 | J72: =J70 -> 10L1-SO-HDD | K72: =K70 -> S10L1-T630-S-HDD | L72: [733-10059] | M72: =M70 -> 150
A74: Protezione dei dati Selezionata
A75: ='Server10 Lotto3 VRTX'!#REF! -> 
A77: Servizio Specialistico di System and Network Management per sistema opertivo Windows, erogato on site. | B77: 1 | C77: 10L1-SO-WIN | D77: S10L1-T630-S-WIN | F77: 193
A78: Servizio Specialistico di System and Network Management per sistema opertivo Linux, erogato on site. | B78: 1 | C78: 10L1-SO-LINUX | D78: S10L1-T630-S-LINUX | F78: 193
A80: None | B80: ="" ->  | C80: ="" ->  | D80: ="" ->  | E80: ="" ->  | F80: ="" -> 
A81: =IF('Server10 Lotto3 VRTX'!$C$12>=5,H81,"None") -> None | B81: =IF('Server10 Lotto3 VRTX'!$C$12>=5,I81,"") ->  | C81: =IF('Server10 Lotto3 VRTX'!$C$12>=5,J81,"") ->  | D81: =IF('Server10 Lotto3 VRTX'!$C$12>=5,K81,"") ->  | E81: =IF('Server10 Lotto3 VRTX'!$C$12>=5,L81,"") ->  | F81: =IF('Server10 Lotto3 VRTX'!$C$12>=5,M81,"") ->  | H81: Servizi di manutenzione preventiva | I81: 1 | J81: 10L1-SO-PREV | K81: S10L1-T630-S-PREV | M81: 193
